Workbook

Sheet PESSOA FÍSICA
A1: CATEGORIA | B1: INSCRIÇÃO | C1: CIDADE | D1: UF | E1: REGIÃO | F1: AVALIADOR | G1: CRITÉRIOS DE AVALIAÇÃO E SELEÇÃO 1 | H1: CRITÉRIOS DE AVALIAÇÃO E SELEÇÃO 2 | I1: CRITÉRIOS DE AVALIAÇÃO E SELEÇÃO 3 | J1: CRITÉRIOS DE AVALIAÇÃO E SELEÇÃO 4 | K1: CRITÉRIOS DE AVALIAÇÃO E SELEÇÃO 5 | L1: CRITÉRIOS DE AVALIAÇÃO E SELEÇÃO 6 | M1: CRITÉRIOS DE AVALIAÇÃO E SELEÇÃO 7 | N1: CRITÉRIOS DE AVALIAÇÃO E SELEÇÃO 8 | O1: PONTUAÇÃO EXTRA - Pessoa com deficiência | P1: PONTUAÇÃO EXTRA - Mulher | Q1: PONTUAÇÃO EXTRA - Pessoa negra | R1: PONTUAÇÃO EXTRA -Indígena, matriz africana, de terreiro ou de povos ou de comunidades tradicionais | S1: PONTUAÇÃO EXTRA LGBTQIA+ | T1: PONTUAÇÃO EXTRA Idosa com 60 anos ou mais? | U1: NOTA POR AVALIADOR | V1: OBSERVAÇÃO | W1: NOTA PRELIMINAR | X1: STATUS
A2: PESSOA FÍSICA | B2: =HYPERLINK("https://mapas.cultura.gov.br/inscricao/1792868005","on-1792868005") -> on-1792868005 | C2: João Pessoa | D2: PB | E2: NORDESTE | F2: Avaliador 1 | G2: 20 | H2: 15 | I2: 15 | J2: 10 | K2: 10 | L2: 10 | M2: 10 | N2: 10 | O2: 0 | P2: 3 | Q2: 3 | R2: 3 | S2: 3 | T2: 0 | U2: =SUM(G2:T2) -> 112 | W2: =AVERAGE(U2,U3) -> 112 | X2: PRÉ-SELECIONADO
A3: PESSOA FÍSICA | B3: =HYPERLINK("https://mapas.cultura.gov.br/inscricao/1792868005","on-1792868005") -> on-1792868005 | C3: João Pessoa | D3: PB | E3: NORDESTE | F3: Avaliador 2 | G3: 20 | H3: 15 | I3: 15 | J3: 10 | K3: 10 | L3: 10 | M3: 10 | N3: 10 | O3: 0 | P3: 3 | Q3: 3 | R3: 3 | S3: 3 | T3: 0 | U3: 112 | W3: =W2 -> 112 | X3: =X2 -> PRÉ-SELECIONADO
A4: PESSOA FÍSICA | B4: =HYPERLINK("https://mapas.cultura.gov.br/inscricao/446403035","on-446403035") -> on-446403035 | C4: João Pessoa | D4: PB | E4: NORDESTE | F4: Avaliador 1 | G4: 20 | H4: 15 | I4: 15 | J4: 10 | K4: 10 | L4: 10 | M4: 10 | N4: 10 | O4: 0 | P4: 3 | Q4: 3 | R4: 3 | S4: 0 | T4: 0 | U4: 109 | W4: =AVERAGE(U4,U5) -> 109 | X4: PRÉ-SELECIONADO
A5: PESSOA FÍSICA | B5: =HYPERLINK("https://mapas.cultura.gov.br/inscricao/446403035","on-446403035") -> on-446403035 | C5: João Pessoa | D5: PB | E5: NORDESTE | F5: Avaliador 2 | G5: 20 | H5: 15 | I5: 15 | J5: 10 | K5: 10 | L5: 10 | M5: 10 | N5: 10 | O5: 0 | P5: 3 | Q5: 3 | R5: 3 | S5: 0 | T5: 0 | U5: 109 | W5: =W4 -> 109 | X5: =X4 -> PRÉ-SELECIONADO
A6: PESSOA FÍSICA | B6: =HYPERLINK("https://mapas.cultura.gov.br/inscricao/1835839382","on-1835839382") -> on-1835839382 | C6: João Pessoa | D6: PB | E6: NORDESTE | F6: Avaliador 1 | G6: 20 | H6: 15 | I6: 15 | J6: 10 | K6: 10 | L6: 10 | M6: 10 | N6: 10 | O6: 0 | P6: 3 | Q6: 3 | R6: 3 | S6: 3 | T6: 0 | U6: 112 | W6: =AVERAGE(U6,U7) -> 108.5 | X6: PRÉ-SELECIONADO
A7: PESSOA FÍSICA | B7: =HYPERLINK("https://mapas.cultura.gov.br/inscricao/1835839382","on-1835839382") -> on-1835839382 | C7: João Pessoa | D7: PB | E7: NORDESTE | F7: Avaliador 2 | G7: 20 | H7: 15 | I7: 15 | J7: 10 | K7: 10 | L7: 10 | M7: 10 | N7: 3 | O7: 0 | P7: 3 | Q7: 3 | R7: 3 | S7: 3 | T7: 0 | U7: 105 | W7: =W6 -> 108.5 | X7: =X6 -> PRÉ-SELECIONADO
A8: PESSOA FÍSICA | B8: =HYPERLINK("https://mapas.cultura.gov.br/inscricao/697617314","on-697617314") -> on-697617314 | C8: Aracaju | D8: SE | E8: NORDESTE | F8: Avaliador 1 | G8: 20 | H8: 15 | I8: 15 | J8: 10 | K8: 10 | L8: 10 | M8: 8 | N8: 8 | O8: 0 | P8: 3 | Q8: 3 | R8: 0 | S8: 3 | T8: 0 | U8: 105 | W8: =AVERAGE(U8,U9) -> 107 | X8: PRÉ-SELECIONADO
A9: PESSOA FÍSICA | B9: =HYPERLINK("https://mapas.cultura.gov.br/inscricao/697617314","on-697617314") -> on-697617314 | C9: Aracaju | D9: SE | E9: NORDESTE | F9: Avaliador 2 | G9: 20 | H9: 15 | I9: 15 | J9: 10 | K9: 10 | L9: 10 | M9: 10 | N9: 10 | O9: 0 | P9: 3 | Q9: 3 | R9: 0 | S9: 3 | T9: 0 | U9: 109 | W9: =W8 -> 107 | X9: =X8 -> PRÉ-SELECIONADO
A10: PESSOA FÍSICA | B10: =HYPERLINK("https://mapas.cultura.gov.br/inscricao/1735237134","on-1735237134") -> on-1735237134 | C10: Santa Rita | D10: PB | E10: NORDESTE | F10: Avaliador 1 | G10: 20 | H10: 15 | I10: 15 | J10: 10 | K10: 10 | L10: 10 | M10: 10 | N10: 10 | O10: 0 | P10: 3 | Q10: 0 | R10: 0 | S10: 3 | T10: 0 | U10: 106 | W10: =AVERAGE(U10,U11) -> 106 | X10: PRÉ-SELECIONADO
A11: PESSOA FÍSICA | B11: =HYPERLINK("https://mapas.cultura.gov.br/inscricao/1735237134","on-1735237134") -> on-1735237134 | C11: Santa Rita | D11: PB | E11: NORDESTE | F11: Avaliador 2 | G11: 20 | H11: 15 | I11: 15 | J11: 10 | K11: 10 | L11: 10 | M11: 10 | N11: 10 | O11: 0 | P11: 3 | Q11: 0 | R11: 0 | S11: 3 | T11: 0 | U11: 106 | W11: =W10 -> 106 | X11: =X10 -> PRÉ-SELECIONADO
A12: PESSOA FÍSICA | B12: =HYPERLINK("https://mapas.cultura.gov.br/inscricao/261938357","on-261938357") -> on-261938357 | C12: Teresina | D12: PI | E12: NORDESTE | F12: Avaliador 1 | G12: 20 | H12: 15 | I12: 15 | J12: 10 | K12: 10 | L12: 10 | M12: 10 | N12: 10 | O12: 0 | P12: 3 | Q12: 3 | R12: 0 | S12: 0 | T12: 0 | U12: 106 | W12: =AVERAGE(U12,U13) -> 105 | X12: PRÉ-SELECIONADO
A13: PESSOA FÍSICA | B13: =HYPERLINK("https://mapas.cultura.gov.br/inscricao/261938357","on-261938357") -> on-261938357 | C13: Teresina | D13: PI | E13: NORDESTE | F13: Avaliador 2 | G13: 20 | H13: 15 | I13: 15 | J13: 10 | K13: 10 | L13: 10 | M13: 10 | N13: 8 | O13: 0 | P13: 3 | Q13: 3 | R13: 0 | S13: 0 | T13: 0 | U13: 104 | W13: =W12 -> 105 | X13: =X12 -> PRÉ-SELECIONADO
A14: PESSOA FÍSICA | B14: =HYPERLINK("https://mapas.cultura.gov.br/inscricao/1072540758","on-1072540758") -> on-1072540758 | C14: Amarante | D14: PI | E14: NORDESTE | F14: Avaliador 1 | G14: 20 | H14: 15 | I14: 15 | J14: 10 | K14: 10 | L14: 10 | M14: 10 | N14: 10 | O14: 0 | P14: 0 | Q14: 3 | R14: 3 | S14: 0 | T14: 0 | U14: 106 | W14: =AVERAGE(U14,U15) -> 105 | X14: PRÉ-SELECIONADO
A15: PESSOA FÍSICA | B15: =HYPERLINK("https://mapas.cultura.gov.br/inscricao/1072540758","on-1072540758") -> on-1072540758 | C15: Amarante | D15: PI | E15: NORDESTE | F15: Avaliador 2 | G15: 20 | H15: 15 | I15: 15 | J15: 8 | K15: 10 | L15: 10 | M15: 10 | N15: 10 | O15: 0 | P15: 0 | Q15: 3 | R15: 3 | S15: 0 | T15: 0 | U15: 104 | W15: =W14 -> 105 | X15: =X14 -> PRÉ-SELECIONADO
A16: PESSOA FÍSICA | B16: =HYPERLINK("https://mapas.cultura.gov.br/inscricao/1528931833","on-1528931833") -> on-1528931833 | C16: Natal | D16: RN | E16: NORDESTE | F16: Avaliador 1 | G16: 20 | H16: 15 | I16: 15 | J16: 10 | K16: 10 | L16: 10 | M16: 10 | N16: 8 | O16: 0 | P16: 3 | Q16: 3 | R16: 0 | S16: 0 | T16: 0 | U16: 104 | W16: =AVERAGE(U16,U17) -> 103 | X16: PRÉ-SELECIONADO
A17: PESSOA FÍSICA | B17: =HYPERLINK("https://mapas.cultura.gov.br/inscricao/1528931833","on-1528931833") -> on-1528931833 | C17: Natal | D17: RN | E17: NORDESTE | F17: Avaliador 2 | G17: 20 | H17: 15 | I17: 15 | J17: 10 | K17: 8 | L17: 10 | M17: 8 | N17: 10 | O17: 0 | P17: 3 | Q17: 3 | R17: 0 | S17: 0 | T17: 0 | U17: 102 | W17: =W16 -> 103 | X17: =X16 -> PRÉ-SELECIONADO
A18: PESSOA FÍSICA | B18: =HYPERLINK("https://mapas.cultura.gov.br/inscricao/865793181","on-865793181") -> on-865793181 | C18: Recife | D18: PE | E18: NORDESTE | F18: Avaliador 1 | G18: 20 | H18: 15 | I18: 15 | J18: 8 | K18: 10 | L18: 10 | M18: 10 | N18: 8 | O18: 0 | P18: 0 | Q18: 3 | R18: 3 | S18: 0 | T18: 0 | U18: 102 | W18: =AVERAGE(U18,U19) -> 103 | X18: PRÉ-SELECIONADO
A19: PESSOA FÍSICA | B19: =HYPERLINK("https://mapas.cultura.gov.br/inscricao/865793181","on-865793181") -> on-865793181 | C19: Recife | D19: PE | E19: NORDESTE | F19: Avaliador 2 | G19: 20 | H19: 15 | I19: 15 | J19: 8 | K19: 10 | L19: 10 | M19: 10 | N19: 10 | O19: 0 | P19: 0 | Q19: 3 | R19: 3 | S19: 0 | T19: 0 | U19: 104 | W19: =W18 -> 103 | X19: =X18 -> PRÉ-SELECIONADO
A20: PESSOA FÍSICA | B20: =HYPERLINK("https://mapas.cultura.gov.br/inscricao/899350383","on-899350383") -> on-899350383 | C20: Joao Pessoa | D20: PB | E20: NORDESTE | F20: Avaliador 1 | G20: 20 | H20: 15 | I20: 15 | J20: 10 | K20: 10 | L20: 10 | M20: 10 | N20: 10 | O20: 0 | P20: 0 | Q20: 3 | R20: 0 | S20: 0 | T20: 0 | U20: 103 | W20: =AVERAGE(U20,U21) -> 103 | X20: PRÉ-SELECIONADO
A21: PESSOA FÍSICA | B21: =HYPERLINK("https://mapas.cultura.gov.br/inscricao/899350383","on-899350383") -> on-899350383 | C21: Joao Pessoa | D21: PB | E21: NORDESTE | F21: Avaliador 2 | G21: 20 | H21: 15 | I21: 15 | J21: 10 | K21: 10 | L21: 10 | M21: 10 | N21: 10 | O21: 0 | P21: 0 | Q21: 3 | R21: 0 | S21: 0 | T21: 0 | U21: 103 | W21: =W20 -> 103 | X21: =X20 -> PRÉ-SELECIONADO
A22: PESSOA FÍSICA | B22: =HYPERLINK("https://mapas.cultura.gov.br/inscricao/2085412525","on-2085412525") -> on-2085412525 | C22: São Luis | D22: MA | E22: NORDESTE | F22: Avaliador 1 | G22: 20 | H22: 12 | I22: 15 | J22: 10 | K22: 10 | L22: 10 | M22: 8 | N22: 10 | O22: 0 | P22: 3 | Q22: 3 | R22: 3 | S22: 3 | T22: 0 | U22: 107 | W22: =AVERAGE(U22,U23) -> 102.5 | X22: PRÉ-SELECIONADO
A23: PESSOA FÍSICA | B23: =HYPERLINK("https://mapas.cultura.gov.br/inscricao/2085412525","on-2085412525") -> on-2085412525 | C23: São Luis | D23: MA | E23: NORDESTE | F23: Avaliador 2 | G23: 15 | H23: 8 | I23: 15 | J23: 10 | K23: 10 | L23: 10 | M23: 8 | N23: 10 | O23: 0 | P23: 3 | Q23: 3 | R23: 3 | S23: 3 | T23: 0 | U23: 98 | W23: =W22 -> 102.5 | X23: =X22 -> PRÉ-SELECIONADO
A24: PESSOA FÍSICA | B24: =HYPERLINK("https://mapas.cultura.gov.br/inscricao/694279057","on-694279057") -> on-694279057 | C24: Pedras de Fogo | D24: PB | E24: NORDESTE | F24: Avaliador 1 | G24: 20 | H24: 15 | I24: 15 | J24: 10 | K24: 10 | L24: 10 | M24: 10 | N24: 10 | O24: 0 | P24: 0 | Q24: 3 | R24: 0 | S24: 0 | T24: 0 | U24: 103 | W24: =AVERAGE(U24,U25) -> 102 | X24: PRÉ-SELECIONADO
A25: PESSOA FÍSICA | B25: =HYPERLINK("https://mapas.cultura.gov.br/inscricao/694279057","on-694279057") -> on-694279057 | C25: Pedras de Fogo | D25: PB | E25: NORDESTE | F25: Avaliador 2 | G25: 20 | H25: 15 | I25: 15 | J25: 8 | K25: 10 | L25: 10 | M25: 10 | N25: 10 | O25: 0 | P25: 0 | Q25: 3 | R25: 0 | S25: 0 | T25: 0 | U25: 101 | W25: =W24 -> 102 | X25: =X24 -> PRÉ-SELECIONADO
A26: PESSOA FÍSICA | B26: =HYPERLINK("https://mapas.cultura.gov.br/inscricao/711707261","on-711707261") -> on-711707261 | C26: João Pessoa | D26: PB | E26: NORDESTE | F26: Avaliador 1 | G26: 20 | H26: 15 | I26: 15 | J26: 10 | K26: 10 | L26: 10 | M26: 10 | N26: 10 | O26: 0 | P26: 0 | Q26: 3 | R26: 0 | S26: 0 | T26: 0 | U26: 103 | W26: =AVERAGE(U26,U27) -> 102 | X26: PRÉ-SELECIONADO
A27: PESSOA FÍSICA | B27: =HYPERLINK("https://mapas.cultura.gov.br/inscricao/711707261","on-711707261") -> on-711707261 | C27: João Pessoa | D27: PB | E27: NORDESTE | F27: Avaliador 2 | G27: 20 | H27: 15 | I27: 15 | J27: 8 | K27: 10 | L27: 10 | M27: 10 | N27: 10 | O27: 0 | P27: 0 | Q27: 3 | R27: 0 | S27: 0 | T27: 0 | U27: 101 | W27: =W26 -> 102 | X27: =X26 -> PRÉ-SELECIONADO
A28: PESSOA FÍSICA | B28: =HYPERLINK("https://mapas.cultura.gov.br/inscricao/1868425285","on-1868425285") -> on-1868425285 | C28: Aracaju | D28: SE | E28: NORDESTE | F28: Avaliador 1 | G28: 20 | H28: 15 | I28: 12 | J28: 10 | K28: 8 | L28: 10 | M28: 8 | N28: 10 | O28: 0 | P28: 3 | Q28: 3 | R28: 0 | S28: 0 | T28: 0 | U28: 99 | W28: =AVERAGE(U28,U29) -> 101.5 | X28: PRÉ-SELECIONADO
A29: PESSOA FÍSICA | B29: =HYPERLINK("https://mapas.cultura.gov.br/inscricao/1868425285","on-1868425285") -> on-1868425285 | C29: Aracaju | D29: SE | E29: NORDESTE | F29: Avaliador 2 | G29: 20 | H29: 15 | I29: 15 | J29: 10 | K29: 10 | L29: 10 | M29: 10 | N29: 8 | O29: 0 | P29: 3 | Q29: 3 | R29: 0 | S29: 0 | T29: 0 | U29: 104 | W29: =W28 -> 101.5 | X29: =X28 -> PRÉ-SELECIONADO
A30: PESSOA FÍSICA | B30: =HYPERLINK("https://mapas.cultura.gov.br/inscricao/1118948279","on-1118948279") -> on-1118948279 | C30: Recife | D30: PE | E30: NORDESTE | F30: Avaliador 1 | G30: 20 | H30: 15 | I30: 12 | J30: 10 | K30: 8 | L30: 8 | M30: 8 | N30: 10 | O30: 3 | P30: 3 | Q30: 0 | R30: 0 | S30: 3 | T30: 0 | U30: 100 | W30: =AVERAGE(U30,U31) -> 101.5 | X30: PRÉ-SELECIONADO
A31: PESSOA FÍSICA | B31: =HYPERLINK("https://mapas.cultura.gov.br/inscricao/1118948279","on-1118948279") -> on-1118948279 | C31: Recife | D31: PE | E31: NORDESTE | F31: Avaliador 2 | G31: 20 | H31: 15 | I31: 15 | J31: 10 | K31: 8 | L31: 8 | M31: 8 | N31: 10 | O31: 3 | P31: 3 | Q31: 0 | R31: 0 | S31: 3 | T31: 0 | U31: 103 | W31: =W30 -> 101.5 | X31: =X30 -> PRÉ-SELECIONADO
A32: PESSOA FÍSICA | B32: =HYPERLINK("https://mapas.cultura.gov.br/inscricao/400467848","on-400467848") -> on-400467848 | C32: João Pessoa | D32: PB | E32: NORDESTE | F32: Avaliador 1 | G32: 20 | H32: 15 | I32: 15 | J32: 10 | K32: 10 | L32: 10 | M32: 10 | N32: 10 | O32: 0 | P32: 3 | Q32: 0 | R32: 0 | S32: 3 | T32: 0 | U32: 106 | W32: =AVERAGE(U32,U33) -> 101.5 | X32: PRÉ-SELECIONADO
A33: PESSOA FÍSICA | B33: =HYPERLINK("https://mapas.cultura.gov.br/inscricao/400467848","on-400467848") -> on-400467848 | C33: João Pessoa | D33: PB | E33: NORDESTE | F33: Avaliador 2 | G33: 15 | H33: 15 | I33: 15 | J33: 10 | K33: 10 | L33: 10 | M33: 10 | N33: 3 | O33: 0 | P33: 3 | Q33: 3 | R33: 0 | S33: 3 | T33: 0 | U33: 97 | W33: =W32 -> 101.5 | X33: =X32 -> PRÉ-SELECIONADO
A34: PESSOA FÍSICA | B34: =HYPERLINK("https://mapas.cultura.gov.br/inscricao/1781311113","on-1781311113") -> on-1781311113 | C34: São Luís | D34: MA | E34: NORDESTE | F34: Avaliador 1 | G34: 20 | H34: 15 | I34: 15 | J34: 10 | K34: 3 | L34: 10 | M34: 8 | N34: 5 | O34: 3 | P34: 3 | Q34: 3 | R34: 3 | S34: 3 | T34: 0 | U34: 101 | W34: =AVERAGE(U34,U35) -> 101 | X34: PRÉ-SELECIONADO
A35: PESSOA FÍSICA | B35: =HYPERLINK("https://mapas.cultura.gov.br/inscricao/1781311113","on-1781311113") -> on-1781311113 | C35: São Luís | D35: MA | E35: NORDESTE | F35: Avaliador 2 | G35: 20 | H35: 15 | I35: 15 | J35: 10 | K35: 3 | L35: 10 | M35: 8 | N35: 5 | O35: 3 | P35: 3 | Q35: 3 | R35: 3 | S35: 3 | T35: 0 | U35: 101 | W35: =W34 -> 101 | X35: =X34 -> PRÉ-SELECIONADO
A36: PESSOA FÍSICA | B36: =HYPERLINK("https://mapas.cultura.gov.br/inscricao/627177861","on-627177861") -> on-627177861 | C36: Salvador | D36: BA | E36: NORDESTE | F36: Avaliador 1 | G36: 20 | H36: 15 | I36: 12 | J36: 10 | K36: 10 | L36: 10 | M36: 8 | N36: 10 | O36: 0 | P36: 3 | Q36: 0 | R36: 0 | S36: 3 | T36: 0 | U36: 101 | W36: =AVERAGE(U36,U37) -> 101 | X36: PRÉ-SELECIONADO
A37: PESSOA FÍSICA | B37: =HYPERLINK("https://mapas.cultura.gov.br/inscricao/627177861","on-627177861") -> on-627177861 | C37: Salvador | D37: BA | E37: NORDESTE | F37: Avaliador 2 | G37: 20 | H37: 15 | I37: 15 | J37: 10 | K37: 10 | L37: 10 | M37: 10 | N37: 5 | O37: 0 | P37: 3 | Q37: 0 | R37: 0 | S37: 3 | T37: 0 | U37: 101 | W37: =W36 -> 101 | X37: =X36 -> PRÉ-SELECIONADO
A38: PESSOA FÍSICA | B38: =HYPERLINK("https://mapas.cultura.gov.br/inscricao/228717619","on-228717619") -> on-228717619 | C38: Salvador | D38: BA | E38: NORDESTE | F38: Avaliador 1 | G38: 15 | H38: 12 | I38: 12 | J38: 10 | K38: 10 | L38: 10 | M38: 10 | N38: 8 | O38: 0 | P38: 3 | Q38: 3 | R38: 0 | S38: 3 | T38: 0 | U38: 96 | W38: =AVERAGE(U38,U39) -> 101 | X38: PRÉ-SELECIONADO
A39: PESSOA FÍSICA | B39: =HYPERLINK("https://mapas.cultura.gov.br/inscricao/228717619","on-228717619") -> on-228717619 | C39: Salvador | D39: BA | E39: NORDESTE | F39: Avaliador 2 | G39: 20 | H39: 15 | I39: 12 | J39: 10 | K39: 10 | L39: 10 | M39: 10 | N39: 10 | O39: 0 | P39: 3 | Q39: 3 | R39: 0 | S39: 3 | T39: 0 | U39: 106 | W39: =W38 -> 101 | X39: =X38 -> PRÉ-SELECIONADO
A40: PESSOA FÍSICA | B40: =HYPERLINK("https://mapas.cultura.gov.br/inscricao/1146805145","on-1146805145") -> on-1146805145 | C40: Fortaleza | D40: CE | E40: NORDESTE | F40: Avaliador 1 | G40: 20 | H40: 15 | I40: 15 | J40: 10 | K40: 8 | L40: 10 | M40: 10 | N40: 10 | O40: 0 | P40: 0 | Q40: 3 | R40: 0 | S40: 3 | T40: 0 | U40: 104 | W40: =AVERAGE(U40,U41) -> 100 | X40: PRÉ-SELECIONADO
A41: PESSOA FÍSICA | B41: =HYPERLINK("https://mapas.cultura.gov.br/inscricao/1146805145","on-1146805145") -> on-1146805145 | C41: Fortaleza | D41: CE | E41: NORDESTE | F41: Avaliador 2 | G41: 20 | H41: 15 | I41: 15 | J41: 8 | K41: 8 | L41: 8 | M41: 8 | N41: 8 | O41: 0 | P41: 0 | Q41: 3 | R41: 0 | S41: 3 | T41: 0 | U41: 96 | W41: =W40 -> 100 | X41: =X40 -> PRÉ-SELECIONADO
A42: PESSOA FÍSICA | B42: =HYPERLINK("https://mapas.cultura.gov.br/inscricao/194563596","on-194563596") -> on-194563596 | C42: Teresina | D42: PI | E42: NORDESTE | F42: Avaliador 1 | G42: 20 | H42: 15 | I42: 15 | J42: 10 | K42: 10 | L42: 10 | M42: 10 | N42: 10 | O42: 0 | P42: 0 | Q42: 3 | R42: 0 | S42: 0 | T42: 0 | U42: 103 | W42: =AVERAGE(U42,U43) -> 99.5 | X42: PRÉ-SELECIONADO
A43: PESSOA FÍSICA | B43: =HYPERLINK("https://mapas.cultura.gov.br/inscricao/194563596","on-194563596") -> on-194563596 | C43: Teresina | D43: PI | E43: NORDESTE | F43: Avaliador 2 | G43: 20 | H43: 15 | I43: 15 | J43: 10 | K43: 10 | L43: 10 | M43: 10 | N43: 3 | O43: 0 | P43: 0 | Q43: 3 | R43: 0 | S43: 0 | T43: 0 | U43: 96 | W43: =W42 -> 99.5 | X43: =X42 -> PRÉ-SELECIONADO
A44: PESSOA FÍSICA | B44: =HYPERLINK("https://mapas.cultura.gov.br/inscricao/1094973198","on-1094973198") -> on-1094973198 | C44: SALVADOR | D44: BA | E44: NORDESTE | F44: Avaliador 1 | G44: 20 | H44: 15 | I44: 15 | J44: 5 | K44: 10 | L44: 10 | M44: 10 | N44: 8 | O44: 0 | P44: 0 | Q44: 3 | R44: 0 | S44: 0 | T44: 0 | U44: 96 | W44: =AVERAGE(U44,U45) -> 99.5 | X44: PRÉ-SELECIONADO
A45: PESSOA FÍSICA | B45: =HYPERLINK("https://mapas.cultura.gov.br/inscricao/1094973198","on-1094973198") -> on-1094973198 | C45: SALVADOR | D45: BA | E45: NORDESTE | F45: Avaliador 2 | G45: 20 | H45: 15 | I45: 15 | J45: 10 | K45: 10 | L45: 10 | M45: 10 | N45: 10 | O45: 0 | P45: 0 | Q45: 3 | R45: 0 | S45: 0 | T45: 0 | U45: 103 | W45: =W44 -> 99.5 | X45: =X44 -> PRÉ-SELECIONADO
A46: PESSOA FÍSICA | B46: =HYPERLINK("https://mapas.cultura.gov.br/inscricao/674273076","on-674273076") -> on-674273076 | C46: Recife | D46: PE | E46: NORDESTE | F46: Avaliador 1 | G46: 20 | H46: 15 | I46: 15 | J46: 5 | K46: 10 | L46: 10 | M46: 10 | N46: 10 | O46: 0 | P46: 0 | Q46: 3 | R46: 0 | S46: 0 | T46: 0 | U46: 98 | W46: =AVERAGE(U46,U47) -> 99.5 | X46: PRÉ-SELECIONADO
A47: PESSOA FÍSICA | B47: =HYPERLINK("https://mapas.cultura.gov.br/inscricao/674273076","on-674273076") -> on-674273076 | C47: Recife | D47: PE | E47: NORDESTE | F47: Avaliador 2 | G47: 20 | H47: 15 | I47: 15 | J47: 8 | K47: 10 | L47: 10 | M47: 10 | N47: 10 | O47: 0 | P47: 0 | Q47: 3 | R47: 0 | S47: 0 | T47: 0 | U47: 101 | W47: =W46 -> 99.5 | X47: =X46 -> PRÉ-SELECIONADO
A48: PESSOA FÍSICA | B48: =HYPERLINK("https://mapas.cultura.gov.br/inscricao/1602549030","on-1602549030") -> on-1602549030 | C48: São Gonçalo do Amarante | D48: RN | E48: NORDESTE | F48: Avaliador 1 | G48: 20 | H48: 15 | I48: 15 | J48: 10 | K48: 5 | L48: 8 | M48: 8 | N48: 8 | O48: 0 | P48: 3 | Q48: 3 | R48: 0 | S48: 3 | T48: 0 | U48: 98 | W48: =AVERAGE(U48,U49) -> 99 | X48: PRÉ-SELECIONADO
A49: PESSOA FÍSICA | B49: =HYPERLINK("https://mapas.cultura.gov.br/inscricao/1602549030","on-1602549030") -> on-1602549030 | C49: São Gonçalo do Amarante | D49: RN | E49: NORDESTE | F49: Avaliador 2 | G49: 20 | H49: 15 | I49: 15 | J49: 10 | K49: 5 | L49: 10 | M49: 8 | N49: 8 | O49: 0 | P49: 3 | Q49: 3 | R49: 0 | S49: 3 | T49: 0 | U49: 100 | W49: =W48 -> 99 | X49: =X48 -> PRÉ-SELECIONADO
A50: PESSOA FÍSICA | B50: =HYPERLINK("https://mapas.cultura.gov.br/inscricao/597076935","on-597076935") -> on-597076935 | C50: Itacaré | D50: BA | E50: NORDESTE | F50: Avaliador 1 | G50: 20 | H50: 15 | I50: 12 | J50: 8 | K50: 10 | L50: 10 | M50: 10 | N50: 8 | O50: 0 | P50: 0 | Q50: 3 | R50: 3 | S50: 3 | T50: 0 | U50: 102 | W50: =AVERAGE(U50,U51) -> 99 | X50: PRÉ-SELECIONADO
A51: PESSOA FÍSICA | B51: =HYPERLINK("https://mapas.cultura.gov.br/inscricao/597076935","on-597076935") -> on-597076935 | C51: Itacaré | D51: BA | E51: NORDESTE | F51: Avaliador 2 | G51: 15 | H51: 12 | I51: 12 | J51: 10 | K51: 10 | L51: 10 | M51: 10 | N51: 8 | O51: 0 | P51: 0 | Q51: 3 | R51: 3 | S51: 3 | T51: 0 | U51: 96 | W51: =W50 -> 99 | X51: =X50 -> PRÉ-SELECIONADO
A52: PESSOA FÍSICA | B52: =HYPERLINK("https://mapas.cultura.gov.br/inscricao/2060560565","on-2060560565") -> on-2060560565 | C52: Teresina | D52: PI | E52: NORDESTE | F52: Avaliador 1 | G52: 20 | H52: 15 | I52: 15 | J52: 10 | K52: 10 | L52: 10 | M52: 10 | N52: 10 | O52: 0 | P52: 3 | Q52: 0 | R52: 0 | S52: 0 | T52: 0 | U52: 103 | W52: =AVERAGE(U52,U53) -> 98.5 | X52: PRÉ-SELECIONADO
A53: PESSOA FÍSICA | B53: =HYPERLINK("https://mapas.cultura.gov.br/inscricao/2060560565","on-2060560565") -> on-2060560565 | C53: Teresina | D53: PI | E53: NORDESTE | F53: Avaliador 2 | G53: 20 | H53: 15 | I53: 15 | J53: 8 | K53: 10 | L53: 10 | M53: 10 | N53: 3 | O53: 0 | P53: 3 | Q53: 0 | R53: 0 | S53: 0 | T53: 0 | U53: 94 | W53: =W52 -> 98.5 | X53: =X52 -> PRÉ-SELECIONADO
A54: PESSOA FÍSICA | B54: =HYPERLINK("https://mapas.cultura.gov.br/inscricao/315227687","on-315227687") -> on-315227687 | C54: Recife | D54: PE | E54: NORDESTE | F54: Avaliador 1 | G54: 20 | H54: 15 | I54: 15 | J54: 8 | K54: 8 | L54: 10 | M54: 10 | N54: 10 | O54: 0 | P54: 0 | Q54: 3 | R54: 0 | S54: 0 | T54: 0 | U54: 99 | W54: =AVERAGE(U54,U55) -> 98.5 | X54: PRÉ-SELECIONADO
A55: PESSOA FÍSICA | B55: =HYPERLINK("https://mapas.cultura.gov.br/inscricao/315227687","on-315227687") -> on-315227687 | C55: Recife | D55: PE | E55: NORDESTE | F55: Avaliador 2 | G55: 20 | H55: 15 | I55: 15 | J55: 5 | K55: 10 | L55: 10 | M55: 10 | N55: 10 | O55: 0 | P55: 0 | Q55: 3 | R55: 0 | S55: 0 | T55: 0 | U55: 98 | W55: =W54 -> 98.5 | X55: =X54 -> PRÉ-SELECIONADO
A56: PESSOA FÍSICA | B56: =HYPERLINK("https://mapas.cultura.gov.br/inscricao/1874567122","on-1874567122") -> on-1874567122 | C56: Mossoró | D56: RN | E56: NORDESTE | F56: Avaliador 1 | G56: 20 | H56: 15 | I56: 15 | J56: 10 | K56: 10 | L56: 10 | M56: 10 | N56: 5 | O56: 0 | P56: 0 | Q56: 0 | R56: 0 | S56: 3 | T56: 0 | U56: 98 | W56: =AVERAGE(U56,U57) -> 98.5 | X56: PRÉ-SELECIONADO
A57: PESSOA FÍSICA | B57: =HYPERLINK("https://mapas.cultura.gov.br/inscricao/1874567122","on-1874567122") -> on-1874567122 | C57: Mossoró | D57: RN | E57: NORDESTE | F57: Avaliador 2 | G57: 20 | H57: 15 | I57: 15 | J57: 10 | K57: 8 | L57: 10 | M57: 10 | N57: 8 | O57: 0 | P57: 0 | Q57: 0 | R57: 0 | S57: 3 | T57: 0 | U57: 99 | W57: =W56 -> 98.5 | X57: =X56 -> PRÉ-SELECIONADO
A58: PESSOA FÍSICA | B58: =HYPERLINK("https://mapas.cultura.gov.br/inscricao/1615001059","on-1615001059") -> on-1615001059 | C58: Aracaju | D58: SE | E58: NORDESTE | F58: Avaliador 1 | G58: 20 | H58: 12 | I58: 12 | J58: 10 | K58: 10 | L58: 10 | M58: 10 | N58: 10 | O58: 0 | P58: 0 | Q58: 3 | R58: 0 | S58: 0 | T58: 0 | U58: 97 | W58: =AVERAGE(U58,U59) -> 98.5 | X58: PRÉ-SELECIONADO
A59: PESSOA FÍSICA | B59: =HYPERLINK("https://mapas.cultura.gov.br/inscricao/1615001059","on-1615001059") -> on-1615001059 | C59: Aracaju | D59: SE | E59: NORDESTE | F59: Avaliador 2 | G59: 20 | H59: 12 | I59: 15 | J59: 10 | K59: 10 | L59: 10 | M59: 10 | N59: 10 | O59: 0 | P59: 0 | Q59: 3 | R59: 0 | S59: 0 | T59: 0 | U59: 100 | W59: =W58 -> 98.5 | X59: =X58 -> PRÉ-SELECIONADO
A60: PESSOA FÍSICA | B60: =HYPERLINK("https://mapas.cultura.gov.br/inscricao/1704774432","on-1704774432") -> on-1704774432 | C60: Itarantim | D60: BA | E60: NORDESTE | F60: Avaliador 1 | G60: 15 | H60: 15 | I60: 15 | J60: 8 | K60: 10 | L60: 10 | M60: 10 | N60: 8 | O60: 0 | P60: 3 | Q60: 0 | R60: 0 | S60: 0 | T60: 0 | U60: 94 | W60: =AVERAGE(U60,U61) -> 98.5 | X60: PRÉ-SELECIONADO
A61: PESSOA FÍSICA | B61: =HYPERLINK("https://mapas.cultura.gov.br/inscricao/1704774432","on-1704774432") -> on-1704774432 | C61: Itarantim | D61: BA | E61: NORDESTE | F61: Avaliador 2 | G61: 20 | H61: 15 | I61: 15 | J61: 10 | K61: 10 | L61: 10 | M61: 10 | N61: 10 | O61: 0 | P61: 3 | Q61: 0 | R61: 0 | S61: 0 | T61: 0 | U61: 103 | W61: =W60 -> 98.5 | X61: =X60 -> PRÉ-SELECIONADO
A62: PESSOA FÍSICA | B62: =HYPERLINK("https://mapas.cultura.gov.br/inscricao/224506838","on-224506838") -> on-224506838 | C62: Salvador | D62: BA | E62: NORDESTE | F62: Avaliador 1 | G62: 10 | H62: 15 | I62: 15 | J62: 8 | K62: 10 | L62: 10 | M62: 8 | N62: 5 | O62: 0 | P62: 3 | Q62: 3 | R62: 0 | S62: 3 | T62: 0 | U62: 90 | W62: =AVERAGE(U62,U63) -> 98.5 | X62: PRÉ-SELECIONADO
A63: PESSOA FÍSICA | B63: =HYPERLINK("https://mapas.cultura.gov.br/inscricao/224506838","on-224506838") -> on-224506838 | C63: Salvador | D63: BA | E63: NORDESTE | F63: Avaliador 2 | G63: 20 | H63: 15 | I63: 15 | J63: 8 | K63: 10 | L63: 10 | M63: 10 | N63: 10 | O63: 0 | P63: 3 | Q63: 3 | R63: 0 | S63: 3 | T63: 0 | U63: 107 | W63: =W62 -> 98.5 | X63: =X62 -> PRÉ-SELECIONADO
A64: PESSOA FÍSICA | B64: =HYPERLINK("https://mapas.cultura.gov.br/inscricao/1748754850","on-1748754850") -> on-1748754850 | C64: Santo Antonio de Jesus | D64: BA | E64: NORDESTE | F64: Avaliador 1 | G64: 20 | H64: 15 | I64: 12 | J64: 8 | K64: 10 | L64: 10 | M64: 10 | N64: 5 | O64: 0 | P64: 0 | Q64: 3 | R64: 0 | S64: 0 | T64: 0 | U64: 93 | W64: =AVERAGE(U64,U65) -> 98 | X64: PRÉ-SELECIONADO
A65: PESSOA FÍSICA | B65: =HYPERLINK("https://mapas.cultura.gov.br/inscricao/1748754850","on-1748754850") -> on-1748754850 | C65: Santo Antonio de Jesus | D65: BA | E65: NORDESTE | F65: Avaliador 2 | G65: 20 | H65: 15 | I65: 15 | J65: 10 | K65: 10 | L65: 10 | M65: 10 | N65: 10 | O65: 0 | P65: 0 | Q65: 3 | R65: 0 | S65: 0 | T65: 0 | U65: 103 | W65: =W64 -> 98 | X65: =X64 -> PRÉ-SELECIONADO
A66: PESSOA FÍSICA | B66: =HYPERLINK("https://mapas.cultura.gov.br/inscricao/2062075782","on-2062075782") -> on-2062075782 | C66: Maceió | D66: AL | E66: NORDESTE | F66: Avaliador 1 | G66: 20 | H66: 15 | I66: 15 | J66: 8 | K66: 10 | L66: 10 | M66: 10 | N66: 8 | O66: 0 | P66: 0 | Q66: 3 | R66: 0 | S66: 0 | T66: 0 | U66: =SUM(G66:T66) -> 99 | W66: =AVERAGE(U66,U67) -> 97.5 | X66: PRÉ-SELECIONADO
A67: PESSOA FÍSICA | B67: =HYPERLINK("https://mapas.cultura.gov.br/inscricao/2062075782","on-2062075782") -> on-2062075782 | C67: Maceió | D67: AL | E67: NORDESTE | F67: Avaliador 2 | G67: 20 | H67: 15 | I67: 15 | J67: 10 | K67: 10 | L67: 10 | M67: 10 | N67: 3 | O67: 0 | P67: 0 | Q67: 3 | R67: 0 | S67: 0 | T67: 0 | U67: 96 | W67: =W66 -> 97.5 | X67: =X66 -> PRÉ-SELECIONADO
A68: PESSOA FÍSICA | B68: =HYPERLINK("https://mapas.cultura.gov.br/inscricao/228825714","on-228825714") -> on-228825714 | C68: Juazeiro do Norte | D68: CE | E68: NORDESTE | F68: Avaliador 1 | G68: 20 | H68: 15 | I68: 15 | J68: 8 | K68: 8 | L68: 10 | M68: 10 | N68: 10 | O68: 0 | P68: 0 | Q68: 3 | R68: 0 | S68: 0 | T68: 0 | U68: 99 | W68: =AVERAGE(U68,U69) -> 97.5 | X68: PRÉ-SELECIONADO
A69: PESSOA FÍSICA | B69: =HYPERLINK("https://mapas.cultura.gov.br/inscricao/228825714","on-228825714") -> on-228825714 | C69: Juazeiro do Norte | D69: CE | E69: NORDESTE | F69: Avaliador 2 | G69: 20 | H69: 15 | I69: 12 | J69: 8 | K69: 8 | L69: 10 | M69: 10 | N69: 10 | O69: 0 | P69: 0 | Q69: 3 | R69: 0 | S69: 0 | T69: 0 | U69: 96 | W69: =W68 -> 97.5 | X69: =X68 -> PRÉ-SELECIONADO
A70: PESSOA FÍSICA | B70: =HYPERLINK("https://mapas.cultura.gov.br/inscricao/1563412712","on-1563412712") -> on-1563412712 | C70: Cruz das Almas | D70: BA | E70: NORDESTE | F70: Avaliador 1 | G70: 15 | H70: 15 | I70: 15 | J70: 8 | K70: 10 | L70: 10 | M70: 10 | N70: 8 | O70: 0 | P70: 0 | Q70: 0 | R70: 0 | S70: 3 | U70: 94 | W70: =AVERAGE(U70,U71) -> 97.5 | X70: PRÉ-SELECIONADO
A71: PESSOA FÍSICA | B71: =HYPERLINK("https://mapas.cultura.gov.br/inscricao/1563412712","on-1563412712") -> on-1563412712 | C71: Cruz das Almas | D71: BA | E71: NORDESTE | F71: Avaliador 2 | G71: 20 | H71: 15 | I71: 15 | J71: 10 | K71: 10 | L71: 10 | M71: 10 | N71: 8 | O71: 0 | P71: 0 | Q71: 0 | R71: 0 | S71: 3 | T71: 0 | U71: 101 | W71: =W70 -> 97.5 | X71: =X70 -> PRÉ-SELECIONADO
A72: PESSOA FÍSICA | B72: =HYPERLINK("https://mapas.cultura.gov.br/inscricao/372103663","on-372103663") -> on-372103663 | C72: São Luis | D72: MA | E72: NORDESTE | F72: Avaliador 1 | G72: 15 | H72: 12 | I72: 15 | J72: 10 | K72: 8 | L72: 10 | M72: 10 | N72: 10 | O72: 0 | P72: 3 | Q72: 3 | R72: 3 | S72: 0 | T72: 0 | U72: 99 | W72: =AVERAGE(U72,U73) -> 97.5 | X72: PRÉ-SELECIONADO
A73: PESSOA FÍSICA | B73: =HYPERLINK("https://mapas.cultura.gov.br/inscricao/372103663","on-372103663") -> on-372103663 | C73: São Luis | D73: MA | E73: NORDESTE | F73: Avaliador 2 | G73: 15 | H73: 12 | I73: 12 | J73: 10 | K73: 8 | L73: 10 | M73: 10 | N73: 10 | O73: 0 | P73: 3 | Q73: 3 | R73: 3 | S73: 0 | T73: 0 | U73: 96 | W73: =W72 -> 97.5 | X73: =X72 -> PRÉ-SELECIONADO
A74: PESSOA FÍSICA | B74: =HYPERLINK("https://mapas.cultura.gov.br/inscricao/431022008","on-431022008") -> on-431022008 | C74: Palmeira Dos Índios | D74: AL | E74: NORDESTE | F74: Avaliador 1 | G74: 20 | H74: 15 | I74: 15 | J74: 10 | K74: 8 | L74: 10 | M74: 10 | N74: 10 | O74: 0 | P74: 0 | Q74: 3 | R74: 0 | S74: 0 | T74: 0 | U74: 101 | W74: =AVERAGE(U74,U75) -> 97 | X74: PRÉ-SELECIONADO
A75: PESSOA FÍSICA | B75: =HYPERLINK("https://mapas.cultura.gov.br/inscricao/431022008","on-431022008") -> on-431022008 | C75: Palmeira Dos Índios | D75: AL | E75: NORDESTE | F75: Avaliador 2 | G75: 20 | H75: 15 | I75: 15 | J75: 5 | K75: 5 | L75: 10 | M75: 10 | N75: 10 | O75: 0 | P75: 0 | Q75: 3 | R75: 0 | S75: 0 | T75: 0 | U75: 93 | W75: =W74 -> 97 | X75: =X74 -> PRÉ-SELECIONADO
A76: PESSOA FÍSICA | B76: =HYPERLINK("https://mapas.cultura.gov.br/inscricao/919989363","on-919989363") -> on-919989363 | C76: Natal | D76: RN | E76: NORDESTE | F76: Avaliador 1 | G76: 20 | H76: 12 | I76: 12 | J76: 8 | K76: 10 | L76: 10 | M76: 10 | N76: 10 | O76: 0 | P76: 0 | Q76: 3 | R76: 0 | S76: 0 | T76: 0 | U76: 95 | W76: =AVERAGE(U76,U77) -> 96.5 | X76: PRÉ-SELECIONADO
A77: PESSOA FÍSICA | B77: =HYPERLINK("https://mapas.cultura.gov.br/inscricao/919989363","on-919989363") -> on-919989363 | C77: Natal | D77: RN | E77: NORDESTE | F77: Avaliador 2 | G77: 20 | H77: 15 | I77: 12 | J77: 8 | K77: 10 | L77: 10 | M77: 10 | N77: 10 | O77: 0 | P77: 0 | Q77: 3 | R77: 0 | S77: 0 | T77: 0 | U77: 98 | W77: =W76 -> 96.5 | X77: =X76 -> PRÉ-SELECIONADO
A78: PESSOA FÍSICA | B78: =HYPERLINK("https://mapas.cultura.gov.br/inscricao/2108132779","on-2108132779") -> on-2108132779 | C78: Abreu e Lima | D78: PE | E78: NORDESTE | F78: Avaliador 1 | G78: 20 | H78: 15 | I78: 12 | J78: 10 | K78: 8 | L78: 10 | M78: 8 | N78: 8 | O78: 0 | P78: 3 | Q78: 3 | R78: 0 | S78: 3 | T78: 0 | U78: 100 | W78: =AVERAGE(U78,U79) -> 96.5 | X78: PRÉ-SELECIONADO
A79: PESSOA FÍSICA | B79: =HYPERLINK("https://mapas.cultura.gov.br/inscricao/2108132779","on-2108132779") -> on-2108132779 | C79: Abreu e Lima | D79: PE | E79: NORDESTE | F79: Avaliador 2 | G79: 15 | H79: 15 | I79: 12 | J79: 10 | K79: 8 | L79: 8 | M79: 8 | N79: 8 | O79: 0 | P79: 3 | Q79: 3 | R79: 0 | S79: 3 | T79: 0 | U79: 93 | W79: =W78 -> 96.5 | X79: =X78 -> PRÉ-SELECIONADO
A80: PESSOA FÍSICA | B80: =HYPERLINK("https://mapas.cultura.gov.br/inscricao/1591772814","on-1591772814") -> on-1591772814 | C80: Natal | D80: RN | E80: NORDESTE | F80: Avaliador 1 | G80: 20 | H80: 15 | I80: 15 | J80: 10 | K80: 5 | L80: 10 | M80: 10 | N80: 10 | O80: 0 | P80: 0 | Q80: 3 | R80: 0 | S80: 0 | T80: 0 | U80: 98 | W80: =AVERAGE(U80,U81) -> 96 | X80: PRÉ-SELECIONADO
A81: PESSOA FÍSICA | B81: =HYPERLINK("https://mapas.cultura.gov.br/inscricao/1591772814","on-1591772814") -> on-1591772814 | C81: Natal | D81: RN | E81: NORDESTE | F81: Avaliador 2 | G81: 20 | H81: 15 | I81: 15 | J81: 8 | K81: 5 | L81: 10 | M81: 10 | N81: 8 | O81: 0 | P81: 0 | Q81: 3 | R81: 0 | S81: 0 | T81: 0 | U81: 94 | W81: =W80 -> 96 | X81: =X80 -> PRÉ-SELECIONADO
A82: PESSOA FÍSICA | B82: =HYPERLINK("https://mapas.cultura.gov.br/inscricao/641990272","on-641990272") -> on-641990272 | C82: Fortaleza | D82: CE | E82: NORDESTE | F82: Avaliador 1 | G82: 20 | H82: 15 | I82: 15 | J82: 10 | K82: 10 | L82: 10 | M82: 10 | N82: 5 | O82: 0 | P82: 0 | Q82: 0 | R82: 0 | S82: 3 | T82: 0 | U82: 98 | W82: =AVERAGE(U82,U83) -> 96 | X82: PRÉ-SELECIONADO
A83: PESSOA FÍSICA | B83: =HYPERLINK("https://mapas.cultura.gov.br/inscricao/641990272","on-641990272") -> on-641990272 | C83: Fortaleza | D83: CE | E83: NORDESTE | F83: Avaliador 2 | G83: 20 | H83: 15 | I83: 15 | J83: 8 | K83: 8 | L83: 10 | M83: 10 | N83: 5 | O83: 0 | P83: 0 | Q83: 0 | R83: 0 | S83: 3 | T83: 0 | U83: 94 | W83: =W82 -> 96 | X83: =X82 -> PRÉ-SELECIONADO
A84: PESSOA FÍSICA | B84: =HYPERLINK("https://mapas.cultura.gov.br/inscricao/1637782632","on-1637782632") -> on-1637782632 | C84: Recife | D84: PE | E84: NORDESTE | F84: Avaliador 1 | G84: 20 | H84: 15 | I84: 12 | J84: 5 | K84: 8 | L84: 10 | M84: 10 | N84: 10 | O84: 0 | P84: 0 | Q84: 3 | R84: 0 | S84: 0 | T84: 0 | U84: 93 | W84: =AVERAGE(U84,U85) -> 95.5 | X84: PRÉ-SELECIONADO
A85: PESSOA FÍSICA | B85: =HYPERLINK("https://mapas.cultura.gov.br/inscricao/1637782632","on-1637782632") -> on-1637782632 | C85: Recife | D85: PE | E85: NORDESTE | F85: Avaliador 2 | G85: 20 | H85: 15 | I85: 15 | J85: 5 | K85: 10 | L85: 10 | M85: 10 | N85: 10 | O85: 0 | P85: 0 | Q85: 3 | R85: 0 | S85: 0 | T85: 0 | U85: 98 | W85: =W84 -> 95.5 | X85: =X84 -> PRÉ-SELECIONADO
A86: PESSOA FÍSICA | B86: =HYPERLINK("https://mapas.cultura.gov.br/inscricao/1185124430","on-1185124430") -> on-1185124430 | C86: Salvador | D86: BA | E86: NORDESTE | F86: Avaliador 1 | G86: 10 | H86: 12 | I86: 12 | J86: 10 | K86: 10 | L86: 8 | M86: 8 | N86: 5 | O86: 0 | P86: 3 | Q86: 3 | R86: 3 | S86: 0 | U86: 84 | W86: =AVERAGE(U86,U87) -> 95.5 | X86: PRÉ-SELECIONADO
A87: PESSOA FÍSICA | B87: =HYPERLINK("https://mapas.cultura.gov.br/inscricao/1185124430","on-1185124430") -> on-1185124430 | C87: Salvador | D87: BA | E87: NORDESTE | F87: Avaliador 2 | G87: 20 | H87: 15 | I87: 15 | J87: 10 | K87: 10 | L87: 10 | M87: 8 | N87: 10 | O87: 0 | P87: 3 | Q87: 3 | R87: 3 | S87: 0 | T87: 0 | U87: 107 | W87: =W86 -> 95.5 | X87: =X86 -> PRÉ-SELECIONADO
A88: PESSOA FÍSICA | B88: =HYPERLINK("https://mapas.cultura.gov.br/inscricao/2040051190","on-2040051190") -> on-2040051190 | C88: Fortaleza | D88: CE | E88: NORDESTE | F88: Avaliador 1 | G88: 20 | H88: 15 | I88: 15 | J88: 10 | K88: 10 | L88: 10 | M88: 10 | N88: 5 | O88: 0 | P88: 3 | Q88: 0 | R88: 0 | S88: 0 | T88: 0 | U88: 98 | W88: =AVERAGE(U88,U89) -> 95 | X88: PRÉ-SELECIONADO
A89: PESSOA FÍSICA | B89: =HYPERLINK("https://mapas.cultura.gov.br/inscricao/2040051190","on-2040051190") -> on-2040051190 | C89: Fortaleza | D89: CE | E89: NORDESTE | F89: Avaliador 2 | G89: 20 | H89: 15 | I89: 15 | J89: 3 | K89: 10 | L89: 10 | M89: 8 | N89: 8 | O89: 0 | P89: 3 | Q89: 0 | R89: 0 | S89: 0 | T89: 0 | U89: 92 | W89: =W88 -> 95 | X89: =X88 -> PRÉ-SELECIONADO
A90: PESSOA FÍSICA | B90: =HYPERLINK("https://mapas.cultura.gov.br/inscricao/1643108328","on-1643108328") -> on-1643108328 | C90: São Luís | D90: MA | E90: NORDESTE | F90: Avaliador 1 | G90: 20 | H90: 15 | I90: 15 | J90: 3 | K90: 5 | L90: 10 | M90: 10 | N90: 8 | O90: 0 | P90: 0 | Q90: 3 | R90: 3 | S90: 3 | T90: 0 | U90: 95 | W90: =AVERAGE(U90,U91) -> 95 | X90: PRÉ-SELECIONADO
A91: PESSOA FÍSICA | B91: =HYPERLINK("https://mapas.cultura.gov.br/inscricao/1643108328","on-1643108328") -> on-1643108328 | C91: São Luís | D91: MA | E91: NORDESTE | F91: Avaliador 2 | G91: 20 | H91: 15 | I91: 15 | J91: 3 | K91: 5 | L91: 10 | M91: 10 | N91: 8 | O91: 0 | P91: 0 | Q91: 3 | R91: 3 | S91: 3 | T91: 0 | U91: 95 | W91: =W90 -> 95 | X91: =X90 -> PRÉ-SELECIONADO
A92: PESSOA FÍSICA | B92: =HYPERLINK("https://mapas.cultura.gov.br/inscricao/768247920","on-768247920") -> on-768247920 | C92: Caucaia | D92: CE | E92: NORDESTE | F92: Avaliador 1 | G92: 20 | H92: 15 | I92: 12 | J92: 5 | K92: 10 | L92: 8 | M92: 10 | N92: 8 | O92: 0 | P92: 3 | Q92: 3 | R92: 0 | S92: 0 | T92: 0 | U92: 94 | W92: =AVERAGE(U92,U93) -> 95 | X92: PRÉ-SELECIONADO
A93: PESSOA FÍSICA | B93: =HYPERLINK("https://mapas.cultura.gov.br/inscricao/768247920","on-768247920") -> on-768247920 | C93: Caucaia | D93: CE | E93: NORDESTE | F93: Avaliador 2 | G93: 20 | H93: 15 | I93: 12 | J93: 5 | K93: 10 | L93: 10 | M93: 10 | N93: 8 | O93: 0 | P93: 3 | Q93: 3 | R93: 0 | S93: 0 | T93: 0 | U93: 96 | W93: =W92 -> 95 | X93: =X92 -> PRÉ-SELECIONADO
A94: PESSOA FÍSICA | B94: =HYPERLINK("https://mapas.cultura.gov.br/inscricao/227459507","on-227459507") -> on-227459507 | C94: Maceió | D94: AL | E94: NORDESTE | F94: Avaliador 1 | G94: 20 | H94: 15 | I94: 15 | J94: 8 | K94: 10 | L94: 10 | M94: 10 | N94: 10 | O94: 0 | P94: 3 | Q94: 0 | R94: 0 | S94: 0 | T94: 0 | U94: 101 | W94: =AVERAGE(U94,U95) -> 95 | X94: PRÉ-SELECIONADO
A95: PESSOA FÍSICA | B95: =HYPERLINK("https://mapas.cultura.gov.br/inscricao/227459507","on-227459507") -> on-227459507 | C95: Maceió | D95: AL | E95: NORDESTE | F95: Avaliador 2 | G95: 20 | H95: 12 | I95: 15 | J95: 10 | K95: 8 | L95: 5 | M95: 8 | N95: 8 | O95: 0 | P95: 3 | Q95: 0 | R95: 0 | S95: 0 | T95: 0 | U95: 89 | W95: =W94 -> 95 | X95: =X94 -> PRÉ-SELECIONADO
A96: PESSOA FÍSICA | B96: =HYPERLINK("https://mapas.cultura.gov.br/inscricao/913238395","on-913238395") -> on-913238395 | C96: Maceió | D96: AL | E96: NORDESTE | F96: Avaliador 1 | G96: 20 | H96: 12 | I96: 15 | J96: 10 | K96: 8 | L96: 10 | M96: 10 | N96: 10 | O96: 0 | P96: 3 | Q96: 3 | R96: 0 | S96: 0 | T96: 0 | U96: 101 | W96: =AVERAGE(U96,U97) -> 95 | X96: PRÉ-SELECIONADO
A97: PESSOA FÍSICA | B97: =HYPERLINK("https://mapas.cultura.gov.br/inscricao/913238395","on-913238395") -> on-913238395 | C97: Maceió | D97: AL | E97: NORDESTE | F97: Avaliador 2 | G97: 20 | H97: 12 | I97: 12 | J97: 10 | K97: 8 | L97: 8 | M97: 8 | N97: 5 | O97: 0 | P97: 3 | Q97: 3 | R97: 0 | S97: 0 | T97: 0 | U97: 89 | W97: =W96 -> 95 | X97: =X96 -> PRÉ-SELECIONADO
A98: PESSOA FÍSICA | B98: =HYPERLINK("https://mapas.cultura.gov.br/inscricao/905035149","on-905035149") -> on-905035149 | C98: Maceió | D98: AL | E98: NORDESTE | F98: Avaliador 1 | G98: 20 | H98: 12 | I98: 12 | J98: 10 | K98: 10 | L98: 10 | M98: 10 | N98: 10 | O98: 0 | P98: 0 | Q98: 3 | R98: 0 | S98: 0 | T98: 0 | U98: 97 | W98: =AVERAGE(U98,U99) -> 95 | X98: PRÉ-SELECIONADO
A99: PESSOA FÍSICA | B99: =HYPERLINK("https://mapas.cultura.gov.br/inscricao/905035149","on-905035149") -> on-905035149 | C99: Maceió | D99: AL | E99: NORDESTE | F99: Avaliador 2 | G99: 20 | H99: 12 | I99: 15 | J99: 3 | K99: 10 | L99: 10 | M99: 10 | N99: 10 | O99: 0 | P99: 0 | Q99: 3 | S99: 0 | U99: 93 | W99: =W98 -> 95 | X99: =X98 -> PRÉ-SELECIONADO
A100: PESSOA FÍSICA | B100: =HYPERLINK("https://mapas.cultura.gov.br/inscricao/1732025954","on-1732025954") -> on-1732025954 | C100: Jaboatão dos Guararapes | D100: PE | E100: NORDESTE | F100: Avaliador 1 | G100: 20 | H100: 15 | I100: 12 | J100: 10 | K100: 8 | L100: 8 | M100: 8 | N100: 5 | O100: 0 | P100: 3 | Q100: 3 | R100: 3 | S100: 0 | T100: 0 | U100: 95 | W100: =AVERAGE(U100,U101) -> 95 | X100: PRÉ-SELECIONADO
A101: PESSOA FÍSICA | B101: =HYPERLINK("https://mapas.cultura.gov.br/inscricao/1732025954","on-1732025954") -> on-1732025954 | C101: Jaboatão dos Guararapes | D101: PE | E101: NORDESTE | F101: Avaliador 2 | G101: 15 | H101: 15 | I101: 12 | J101: 10 | K101: 10 | L101: 8 | M101: 8 | N101: 8 | O101: 0 | P101: 3 | Q101: 3 | R101: 3 | S101: 0 | T101: 0 | U101: 95 | W101: =W100 -> 95 | X101: =X100 -> PRÉ-SELECIONADO
A102: PESSOA FÍSICA | B102: =HYPERLINK("https://mapas.cultura.gov.br/inscricao/304995548","on-304995548") -> on-304995548 | C102: São Luís | D102: MA | E102: NORDESTE | F102: Avaliador 1 | G102: 20 | H102: 15 | I102: 15 | J102: 5 | K102: 10 | L102: 10 | M102: 10 | N102: 5 | O102: 0 | P102: 0 | Q102: 3 | R102: 0 | S102: 0 | T102: 0 | U102: 93 | W102: =AVERAGE(U102,U103) -> 94.5 | X102: PRÉ-SELECIONADO
A103: PESSOA FÍSICA | B103: =HYPERLINK("https://mapas.cultura.gov.br/inscricao/304995548","on-304995548") -> on-304995548 | C103: São Luís | D103: MA | E103: NORDESTE | F103: Avaliador 2 | G103: 20 | H103: 15 | I103: 15 | J103: 8 | K103: 10 | L103: 10 | M103: 10 | N103: 5 | O103: 0 | P103: 0 | Q103: 3 | R103: 0 | S103: 0 | T103: 0 | U103: 96 | W103: =W102 -> 94.5 | X103: =X102 -> PRÉ-SELECIONADO
A104: PESSOA FÍSICA | B104: =HYPERLINK("https://mapas.cultura.gov.br/inscricao/778609379","on-778609379") -> on-778609379 | C104: Recife | D104: PE | E104: NORDESTE | F104: Avaliador 1 | G104: 20 | H104: 12 | I104: 15 | J104: 10 | K104: 8 | L104: 10 | M104: 8 | N104: 5 | O104: 0 | P104: 3 | Q104: 0 | R104: 0 | S104: 3 | T104: 0 | U104: 94 | W104: =AVERAGE(U104,U105) -> 94.5 | X104: PRÉ-SELECIONADO
A105: PESSOA FÍSICA | B105: =HYPERLINK("https://mapas.cultura.gov.br/inscricao/778609379","on-778609379") -> on-778609379 | C105: Recife | D105: PE | E105: NORDESTE | F105: Avaliador 2 | G105: 20 | H105: 12 | I105: 15 | J105: 10 | K105: 8 | L105: 8 | M105: 8 | N105: 8 | O105: 0 | P105: 3 | Q105: 0 | R105: 0 | S105: 3 | T105: 0 | U105: 95 | W105: =W104 -> 94.5 | X105: =X104 -> PRÉ-SELECIONADO
A106: PESSOA FÍSICA | B106: =HYPERLINK("https://mapas.cultura.gov.br/inscricao/609270488","on-609270488") -> on-609270488 | C106: São Luís | D106: MA | E106: NORDESTE | F106: Avaliador 1 | G106: 20 | H106: 15 | I106: 15 | J106: 10 | K106: 5 | L106: 10 | M106: 8 | N106: 5 | O106: 0 | P106: 3 | Q106: 3 | R106: 0 | S106: 0 | T106: 0 | U106: 94 | W106: =AVERAGE(U106,U107) -> 94 | X106: PRÉ-SELECIONADO
A107: PESSOA FÍSICA | B107: =HYPERLINK("https://mapas.cultura.gov.br/inscricao/609270488","on-609270488") -> on-609270488 | C107: São Luís | D107: MA | E107: NORDESTE | F107: Avaliador 2 | G107: 20 | H107: 15 | I107: 15 | J107: 10 | K107: 5 | L107: 10 | M107: 8 | N107: 5 | O107: 0 | P107: 3 | Q107: 3 | R107: 0 | S107: 0 | T107: 0 | U107: 94 | W107: =W106 -> 94 | X107: =X106 -> PRÉ-SELECIONADO
A108: PESSOA FÍSICA | B108: =HYPERLINK("https://mapas.cultura.gov.br/inscricao/26409701","on-26409701") -> on-26409701 | C108: Codó | D108: MA | E108: NORDESTE | F108: Avaliador 1 | G108: 20 | H108: 15 | I108: 15 | J108: 8 | K108: 5 | L108: 10 | M108: 10 | N108: 8 | O108: 0 | P108: 0 | Q108: 3 | R108: 0 | S108: 0 | T108: 0 | U108: 94 | W108: =AVERAGE(U108,U109) -> 94 | X108: PRÉ-SELECIONADO
A109: PESSOA FÍSICA | B109: =HYPERLINK("https://mapas.cultura.gov.br/inscricao/26409701","on-26409701") -> on-26409701 | C109: Codó | D109: MA | E109: NORDESTE | F109: Avaliador 2 | G109: 20 | H109: 15 | I109: 15 | J109: 5 | K109: 8 | L109: 10 | M109: 10 | N109: 8 | O109: 0 | P109: 0 | Q109: 3 | R109: 0 | S109: 0 | T109: 0 | U109: 94 | W109: =W108 -> 94 | X109: =X108 -> PRÉ-SELECIONADO
A110: PESSOA FÍSICA | B110: =HYPERLINK("https://mapas.cultura.gov.br/inscricao/1879619645","on-1879619645") -> on-1879619645 | C110: Itarantim Bahia | D110: BA | E110: NORDESTE | F110: Avaliador 1 | G110: 20 | H110: 12 | I110: 12 | J110: 5 | K110: 10 | L110: 10 | M110: 8 | N110: 5 | O110: 0 | P110: 0 | Q110: 3 | R110: 0 | S110: 0 | T110: 0 | U110: 85 | W110: =AVERAGE(U110,U111) -> 94 | X110: PRÉ-SELECIONADO
A111: PESSOA FÍSICA | B111: =HYPERLINK("https://mapas.cultura.gov.br/inscricao/1879619645","on-1879619645") -> on-1879619645 | C111: Itarantim Bahia | D111: BA | E111: NORDESTE | F111: Avaliador 2 | G111: 20 | H111: 15 | I111: 15 | J111: 10 | K111: 10 | L111: 10 | M111: 10 | N111: 10 | O111: 0 | P111: 0 | Q111: 3 | R111: 0 | S111: 0 | T111: 0 | U111: 103 | W111: =W110 -> 94 | X111: =X110 -> PRÉ-SELECIONADO
A112: PESSOA FÍSICA | B112: =HYPERLINK("https://mapas.cultura.gov.br/inscricao/1737096834","on-1737096834") -> on-1737096834 | C112: LAURO DE FREITAS | D112: BA | E112: NORDESTE | F112: Avaliador 1 | G112: 15 | H112: 12 | I112: 15 | J112: 5 | K112: 10 | L112: 10 | M112: 8 | N112: 5 | O112: 0 | P112: 0 | Q112: 3 | R112: 3 | S112: 0 | T112: 0 | U112: 86 | W112: =AVERAGE(U112,U113) -> 94 | X112: PRÉ-SELECIONADO
A113: PESSOA FÍSICA | B113: =HYPERLINK("https://mapas.cultura.gov.br/inscricao/1737096834","on-1737096834") -> on-1737096834 | C113: LAURO DE FREITAS | D113: BA | E113: NORDESTE | F113: Avaliador 2 | G113: 20 | H113: 15 | I113: 15 | J113: 10 | K113: 10 | L113: 10 | M113: 8 | N113: 8 | O113: 0 | P113: 0 | Q113: 3 | R113: 3 | S113: 0 | T113: 0 | U113: 102 | W113: =W112 -> 94 | X113: =X112 -> PRÉ-SELECIONADO
A114: PESSOA FÍSICA | B114: =HYPERLINK("https://mapas.cultura.gov.br/inscricao/484036529","on-484036529") -> on-484036529 | C114: Recife | D114: PE | E114: NORDESTE | F114: Avaliador 1 | G114: 20 | H114: 12 | I114: 15 | J114: 8 | K114: 8 | L114: 10 | M114: 10 | N114: 8 | O114: 0 | P114: 0 | Q114: 3 | R114: 0 | S114: 0 | T114: 0 | U114: 94 | W114: =AVERAGE(U114,U115) -> 94 | X114: PRÉ-SELECIONADO
A115: PESSOA FÍSICA | B115: =HYPERLINK("https://mapas.cultura.gov.br/inscricao/484036529","on-484036529") -> on-484036529 | C115: Recife | D115: PE | E115: NORDESTE | F115: Avaliador 2 | G115: 15 | H115: 15 | I115: 15 | J115: 8 | K115: 8 | L115: 10 | M115: 10 | N115: 10 | O115: 0 | P115: 0 | Q115: 3 | R115: 0 | S115: 0 | T115: 0 | U115: 94 | W115: =W114 -> 94 | X115: =X114 -> PRÉ-SELECIONADO
A116: PESSOA FÍSICA | B116: =HYPERLINK("https://mapas.cultura.gov.br/inscricao/1368430189","on-1368430189") -> on-1368430189 | C116: CORRENTINA | D116: BA | E116: NORDESTE | F116: Avaliador 1 | G116: 15 | H116: 12 | I116: 12 | J116: 3 | K116: 8 | L116: 8 | M116: 8 | N116: 8 | O116: 0 | P116: 0 | Q116: 3 | R116: 3 | S116: 3 | T116: 0 | U116: 83 | W116: =AVERAGE(U116,U117) -> 94 | X116: PRÉ-SELECIONADO
A117: PESSOA FÍSICA | B117: =HYPERLINK("https://mapas.cultura.gov.br/inscricao/1368430189","on-1368430189") -> on-1368430189 | C117: CORRENTINA | D117: BA | E117: NORDESTE | F117: Avaliador 2 | G117: 20 | H117: 15 | I117: 15 | J117: 10 | K117: 10 | L117: 10 | M117: 8 | N117: 8 | O117: 0 | P117: 0 | Q117: 3 | R117: 3 | S117: 3 | T117: 0 | U117: 105 | W117: =W116 -> 94 | X117: =X116 -> PRÉ-SELECIONADO
A118: PESSOA FÍSICA | B118: =HYPERLINK("https://mapas.cultura.gov.br/inscricao/933414508","on-933414508") -> on-933414508 | C118: João Pessoa | D118: PB | E118: NORDESTE | F118: Avaliador 1 | G118: 20 | H118: 15 | I118: 15 | J118: 5 | K118: 8 | L118: 10 | M118: 8 | N118: 8 | O118: 0 | P118: 0 | Q118: 3 | R118: 0 | S118: 0 | T118: 0 | U118: 92 | W118: =AVERAGE(U118,U119) -> 93 | X118: CLASSIFICADO
A119: PESSOA FÍSICA | B119: =HYPERLINK("https://mapas.cultura.gov.br/inscricao/933414508","on-933414508") -> on-933414508 | C119: João Pessoa | D119: PB | E119: NORDESTE | F119: Avaliador 2 | G119: 20 | H119: 15 | I119: 15 | J119: 8 | K119: 5 | L119: 10 | M119: 10 | N119: 8 | O119: 0 | P119: 0 | Q119: 3 | R119: 0 | S119: 0 | T119: 0 | U119: 94 | W119: =W118 -> 93 | X119: =X118 -> CLASSIFICADO
A120: PESSOA FÍSICA | B120: =HYPERLINK("https://mapas.cultura.gov.br/inscricao/868267945","on-868267945") -> on-868267945 | C120: João Pessoa | D120: PB | E120: NORDESTE | F120: Avaliador 1 | G120: 20 | H120: 15 | I120: 15 | J120: 10 | K120: 8 | L120: 10 | M120: 8 | N120: 5 | O120: 0 | P120: 0 | Q120: 3 | R120: 0 | S120: 0 | T120: 0 | U120: 94 | W120: =AVERAGE(U120,U121) -> 93 | X120: CLASSIFICADO
A121: PESSOA FÍSICA | B121: =HYPERLINK("https://mapas.cultura.gov.br/inscricao/868267945","on-868267945") -> on-868267945 | C121: João Pessoa | D121: PB | E121: NORDESTE | F121: Avaliador 2 | G121: 20 | H121: 15 | I121: 15 | J121: 10 | K121: 8 | L121: 10 | M121: 8 | N121: 3 | O121: 0 | P121: 0 | Q121: 3 | R121: 0 | S121: 0 | T121: 0 | U121: 92 | W121: =W120 -> 93 | X121: =X120 -> CLASSIFICADO
A122: PESSOA FÍSICA | B122: =HYPERLINK("https://mapas.cultura.gov.br/inscricao/734768731","on-734768731") -> on-734768731 | C122: João Pessoa | D122: PB | E122: NORDESTE | F122: Avaliador 1 | G122: 20 | H122: 15 | I122: 15 | J122: 8 | K122: 10 | L122: 10 | M122: 8 | N122: 5 | O122: 0 | P122: 0 | Q122: 3 | R122: 0 | S122: 0 | T122: 0 | U122: 94 | W122: =AVERAGE(U122,U123) -> 93 | X122: CLASSIFICADO
A123: PESSOA FÍSICA | B123: =HYPERLINK("https://mapas.cultura.gov.br/inscricao/734768731","on-734768731") -> on-734768731 | C123: João Pessoa | D123: PB | E123: NORDESTE | F123: Avaliador 2 | G123: 20 | H123: 15 | I123: 15 | J123: 8 | K123: 10 | L123: 10 | M123: 8 | N123: 3 | O123: 0 | P123: 0 | Q123: 3 | R123: 0 | S123: 0 | T123: 0 | U123: 92 | W123: =W122 -> 93 | X123: =X122 -> CLASSIFICADO
A124: PESSOA FÍSICA | B124: =HYPERLINK("https://mapas.cultura.gov.br/inscricao/866635702","on-866635702") -> on-866635702 | C124: João Pessoa | D124: PB | E124: NORDESTE | F124: Avaliador 1 | G124: 20 | H124: 15 | I124: 15 | J124: 10 | K124: 8 | L124: 10 | M124: 8 | N124: 5 | O124: 0 | P124: 0 | Q124: 3 | R124: 0 | S124: 0 | T124: 0 | U124: 94 | W124: =AVERAGE(U124,U125) -> 93 | X124: CLASSIFICADO
A125: PESSOA FÍSICA | B125: =HYPERLINK("https://mapas.cultura.gov.br/inscricao/866635702","on-866635702") -> on-866635702 | C125: João Pessoa | D125: PB | E125: NORDESTE | F125: Avaliador 2 | G125: 20 | H125: 15 | I125: 15 | J125: 10 | K125: 8 | L125: 10 | M125: 8 | N125: 3 | O125: 0 | P125: 0 | Q125: 3 | R125: 0 | S125: 0 | T125: 0 | U125: 92 | W125: =W124 -> 93 | X125: =X124 -> CLASSIFICADO
A126: PESSOA FÍSICA | B126: =HYPERLINK("https://mapas.cultura.gov.br/inscricao/2071176227","on-2071176227") -> on-2071176227 | C126: João Pessoa | D126: PB | E126: NORDESTE | F126: Avaliador 1 | G126: 20 | H126: 15 | I126: 15 | J126: 10 | K126: 10 | L126: 8 | M126: 8 | N126: 5 | O126: 0 | P126: 0 | Q126: 3 | R126: 0 | S126: 0 | T126: 0 | U126: 94 | W126: =AVERAGE(U126,U127) -> 93 | X126: CLASSIFICADO
A127: PESSOA FÍSICA | B127: =HYPERLINK("https://mapas.cultura.gov.br/inscricao/2071176227","on-2071176227") -> on-2071176227 | C127: João Pessoa | D127: PB | E127: NORDESTE | F127: Avaliador 2 | G127: 20 | H127: 15 | I127: 15 | J127: 10 | K127: 10 | L127: 8 | M127: 8 | N127: 3 | O127: 0 | P127: 0 | Q127: 3 | R127: 0 | S127: 0 | T127: 0 | U127: 92 | W127: =W126 -> 93 | X127: =X126 -> CLASSIFICADO
A128: PESSOA FÍSICA | B128: =HYPERLINK("https://mapas.cultura.gov.br/inscricao/2111086112","on-2111086112") -> on-2111086112 | C128: Mamanguape | D128: PB | E128: NORDESTE | F128: Avaliador 1 | G128: 20 | H128: 15 | I128: 12 | J128: 8 | K128: 8 | L128: 8 | M128: 8 | N128: 8 | O128: 0 | P128: 0 | Q128: 0 | R128: 0 | S128: 3 | T128: 0 | U128: 90 | W128: =AVERAGE(U128,U129) -> 93 | X128: CLASSIFICADO
A129: PESSOA FÍSICA | B129: =HYPERLINK("https://mapas.cultura.gov.br/inscricao/2111086112","on-2111086112") -> on-2111086112 | C129: Mamanguape | D129: PB | E129: NORDESTE | F129: Avaliador 2 | G129: 20 | H129: 15 | I129: 15 | J129: 10 | K129: 10 | L129: 10 | M129: 10 | N129: 3 | O129: 0 | P129: 0 | Q129: 0 | R129: 0 | S129: 3 | T129: 0 | U129: 96 | W129: =W128 -> 93 | X129: =X128 -> CLASSIFICADO
A130: PESSOA FÍSICA | B130: =HYPERLINK("https://mapas.cultura.gov.br/inscricao/546825284","on-546825284") -> on-546825284 | C130: Cachoeira | D130: BA | E130: NORDESTE | F130: Avaliador 1 | G130: 20 | H130: 12 | I130: 12 | J130: 5 | K130: 10 | L130: 10 | M130: 10 | N130: 10 | O130: 0 | P130: 0 | Q130: 3 | R130: 0 | S130: 0 | T130: 0 | U130: =SUM(G130:T130) -> 92 | W130: =AVERAGE(U130,U131) -> 93 | X130: CLASSIFICADO
A131: PESSOA FÍSICA | B131: =HYPERLINK("https://mapas.cultura.gov.br/inscricao/546825284","on-546825284") -> on-546825284 | C131: Cachoeira | D131: BA | E131: NORDESTE | F131: Avaliador 2 | G131: 20 | H131: 15 | I131: 15 | J131: 5 | K131: 10 | L131: 10 | M131: 8 | N131: 8 | O131: 0 | P131: 0 | Q131: 3 | R131: 0 | S131: 0 | T131: 0 | U131: 94 | W131: =W130 -> 93 | X131: =X130 -> CLASSIFICADO
A132: PESSOA FÍSICA | B132: =HYPERLINK("https://mapas.cultura.gov.br/inscricao/1356524250","on-1356524250") -> on-1356524250 | C132: Natal | D132: RN | E132: NORDESTE | F132: Avaliador 1 | G132: 20 | H132: 15 | I132: 15 | J132: 8 | K132: 8 | L132: 10 | M132: 10 | N132: 5 | O132: 0 | P132: 0 | Q132: 3 | R132: 0 | S132: 3 | T132: 0 | U132: 97 | W132: =AVERAGE(U132,U133) -> 93 | X132: CLASSIFICADO
A133: PESSOA FÍSICA | B133: =HYPERLINK("https://mapas.cultura.gov.br/inscricao/1356524250","on-1356524250") -> on-1356524250 | C133: Natal | D133: RN | E133: NORDESTE | F133: Avaliador 2 | G133: 15 | H133: 15 | I133: 15 | J133: 8 | K133: 5 | L133: 10 | M133: 10 | N133: 5 | O133: 0 | P133: 0 | Q133: 3 | R133: 0 | S133: 3 | T133: 0 | U133: 89 | W133: =W132 -> 93 | X133: =X132 -> CLASSIFICADO
A134: PESSOA FÍSICA | B134: =HYPERLINK("https://mapas.cultura.gov.br/inscricao/1892545068","on-1892545068") -> on-1892545068 | C134: Teresina | D134: PI | E134: NORDESTE | F134: Avaliador 1 | G134: 15 | H134: 15 | I134: 15 | J134: 10 | K134: 10 | L134: 10 | M134: 10 | N134: 10 | O134: 0 | P134: 0 | Q134: 0 | R134: 0 | S134: 0 | T134: 0 | U134: 95 | W134: =AVERAGE(U134,U135) -> 93 | X134: CLASSIFICADO
A135: PESSOA FÍSICA | B135: =HYPERLINK("https://mapas.cultura.gov.br/inscricao/1892545068","on-1892545068") -> on-1892545068 | C135: Teresina | D135: PI | E135: NORDESTE | F135: Avaliador 2 | G135: 20 | H135: 15 | I135: 15 | J135: 8 | K135: 10 | L135: 10 | M135: 10 | N135: 3 | O135: 0 | P135: 0 | Q135: 0 | R135: 0 | S135: 0 | T135: 0 | U135: 91 | W135: =W134 -> 93 | X135: =X134 -> CLASSIFICADO
A136: PESSOA FÍSICA | B136: =HYPERLINK("https://mapas.cultura.gov.br/inscricao/564036878","on-564036878") -> on-564036878 | C136: Campina Grande | D136: PB | E136: NORDESTE | F136: Avaliador 1 | G136: 15 | H136: 15 | I136: 12 | J136: 10 | K136: 10 | L136: 10 | M136: 10 | N136: 10 | O136: 0 | P136: 3 | Q136: 0 | R136: 0 | S136: 0 | T136: 0 | U136: 95 | W136: =AVERAGE(U136,U137) -> 93 | X136: CLASSIFICADO
A137: PESSOA FÍSICA | B137: =HYPERLINK("https://mapas.cultura.gov.br/inscricao/564036878","on-564036878") -> on-564036878 | C137: Campina Grande | D137: PB | E137: NORDESTE | F137: Avaliador 2 | G137: 20 | H137: 12 | I137: 15 | J137: 10 | K137: 10 | L137: 10 | M137: 8 | N137: 3 | O137: 0 | P137: 3 | Q137: 0 | R137: 0 | S137: 0 | T137: 0 | U137: 91 | W137: =W136 -> 93 | X137: =X136 -> CLASSIFICADO
A138: PESSOA FÍSICA | B138: =HYPERLINK("https://mapas.cultura.gov.br/inscricao/967221081","on-967221081") -> on-967221081 | C138: Cajazeiras | D138: PB | E138: NORDESTE | F138: Avaliador 1 | G138: 20 | H138: 15 | I138: 15 | J138: 10 | K138: 10 | L138: 10 | M138: 10 | N138: 10 | O138: 0 | P138: 0 | Q138: 3 | R138: 0 | S138: 0 | T138: 0 | U138: 103 | W138: =AVERAGE(U138,U139) -> 92.5 | X138: CLASSIFICADO
A139: PESSOA FÍSICA | B139: =HYPERLINK("https://mapas.cultura.gov.br/inscricao/967221081","on-967221081") -> on-967221081 | C139: Cajazeiras | D139: PB | E139: NORDESTE | F139: Avaliador 2 | G139: 15 | H139: 12 | I139: 12 | J139: 8 | K139: 8 | L139: 8 | M139: 8 | N139: 8 | O139: 0 | P139: 0 | Q139: 3 | R139: 0 | S139: 0 | T139: 0 | U139: 82 | W139: =W138 -> 92.5 | X139: =X138 -> CLASSIFICADO
A140: PESSOA FÍSICA | B140: =HYPERLINK("https://mapas.cultura.gov.br/inscricao/617335810","on-617335810") -> on-617335810 | C140: Fortaleza | D140: CE | E140: NORDESTE | F140: Avaliador 1 | G140: 20 | H140: 15 | I140: 15 | J140: 10 | K140: 10 | L140: 10 | M140: 10 | N140: 5 | O140: 0 | P140: 0 | Q140: 0 | R140: 0 | S140: 0 | T140: 0 | U140: 95 | W140: =AVERAGE(U140,U141) -> 92.5 | X140: CLASSIFICADO
A141: PESSOA FÍSICA | B141: =HYPERLINK("https://mapas.cultura.gov.br/inscricao/617335810","on-617335810") -> on-617335810 | C141: Fortaleza | D141: CE | E141: NORDESTE | F141: Avaliador 2 | G141: 20 | H141: 15 | I141: 12 | J141: 10 | K141: 8 | L141: 10 | M141: 10 | N141: 5 | O141: 0 | P141: 0 | Q141: 0 | R141: 0 | S141: 0 | T141: 0 | U141: 90 | W141: =W140 -> 92.5 | X141: =X140 -> CLASSIFICADO
A142: PESSOA FÍSICA | B142: =HYPERLINK("https://mapas.cultura.gov.br/inscricao/287102417","on-287102417") -> on-287102417 | C142: Teresina | D142: PI | E142: NORDESTE | F142: Avaliador 1 | G142: 20 | H142: 15 | I142: 15 | J142: 8 | K142: 10 | L142: 10 | M142: 10 | N142: 8 | O142: 0 | P142: 0 | Q142: 3 | R142: 0 | S142: 0 | T142: 0 | U142: 99 | W142: =AVERAGE(U142,U143) -> 92.5 | X142: CLASSIFICADO
A143: PESSOA FÍSICA | B143: =HYPERLINK("https://mapas.cultura.gov.br/inscricao/287102417","on-287102417") -> on-287102417 | C143: Teresina | D143: PI | E143: NORDESTE | F143: Avaliador 2 | G143: 20 | H143: 12 | I143: 15 | J143: 5 | K143: 8 | L143: 10 | M143: 5 | N143: 8 | O143: 0 | P143: 0 | Q143: 3 | R143: 0 | S143: 0 | T143: 0 | U143: 86 | W143: =W142 -> 92.5 | X143: =X142 -> CLASSIFICADO
A144: PESSOA FÍSICA | B144: =HYPERLINK("https://mapas.cultura.gov.br/inscricao/836552049","on-836552049") -> on-836552049 | C144: Valença | D144: BA | E144: NORDESTE | F144: Avaliador 1 | G144: 15 | H144: 4 | I144: 15 | J144: 5 | K144: 10 | L144: 10 | M144: 8 | N144: 10 | O144: 0 | P144: 3 | Q144: 3 | R144: 0 | S144: 0 | U144: 83 | W144: =AVERAGE(U144,U145) -> 92.5 | X144: CLASSIFICADO
A145: PESSOA FÍSICA | B145: =HYPERLINK("https://mapas.cultura.gov.br/inscricao/836552049","on-836552049") -> on-836552049 | C145: Valença | D145: BA | E145: NORDESTE | F145: Avaliador 2 | G145: 20 | H145: 15 | I145: 15 | J145: 10 | K145: 10 | L145: 10 | M145: 8 | N145: 8 | O145: 0 | P145: 3 | Q145: 3 | R145: 0 | S145: 0 | T145: 0 | U145: 102 | W145: =W144 -> 92.5 | X145: =X144 -> CLASSIFICADO
A146: PESSOA FÍSICA | B146: =HYPERLINK("https://mapas.cultura.gov.br/inscricao/1222874652","on-1222874652") -> on-1222874652 | C146: Natal | D146: RN | E146: NORDESTE | F146: Avaliador 1 | G146: 15 | H146: 15 | I146: 15 | J146: 10 | K146: 8 | L146: 10 | M146: 10 | N146: 5 | O146: 0 | P146: 0 | Q146: 0 | R146: 0 | S146: 3 | T146: 0 | U146: 91 | W146: =AVERAGE(U146,U147) -> 92 | X146: CLASSIFICADO
A147: PESSOA FÍSICA | B147: =HYPERLINK("https://mapas.cultura.gov.br/inscricao/1222874652","on-1222874652") -> on-1222874652 | C147: Natal | D147: RN | E147: NORDESTE | F147: Avaliador 2 | G147: 15 | H147: 15 | I147: 15 | J147: 10 | K147: 10 | L147: 10 | M147: 10 | N147: 5 | O147: 0 | P147: 0 | Q147: 0 | R147: 0 | S147: 3 | T147: 0 | U147: 93 | W147: =W146 -> 92 | X147: =X146 -> CLASSIFICADO
A148: PESSOA FÍSICA | B148: =HYPERLINK("https://mapas.cultura.gov.br/inscricao/30979099","on-30979099") -> on-30979099 | C148: João Pessoa | D148: PB | E148: NORDESTE | F148: Avaliador 1 | G148: 15 | H148: 15 | I148: 15 | J148: 10 | K148: 8 | L148: 8 | M148: 10 | N148: 8 | O148: 0 | P148: 0 | Q148: 3 | R148: 0 | S148: 0 | T148: 0 | U148: 92 | W148: =AVERAGE(U148,U149) -> 92 | X148: CLASSIFICADO
A149: PESSOA FÍSICA | B149: =HYPERLINK("https://mapas.cultura.gov.br/inscricao/30979099","on-30979099") -> on-30979099 | C149: João Pessoa | D149: PB | E149: NORDESTE | F149: Avaliador 2 | G149: 15 | H149: 15 | I149: 15 | J149: 10 | K149: 8 | L149: 8 | M149: 10 | N149: 8 | O149: 0 | P149: 0 | Q149: 3 | R149: 0 | S149: 0 | T149: 0 | U149: 92 | W149: =W148 -> 92 | X149: =X148 -> CLASSIFICADO
A150: PESSOA FÍSICA | B150: =HYPERLINK("https://mapas.cultura.gov.br/inscricao/569233815","on-569233815") -> on-569233815 | C150: João Pessoa | D150: PB | E150: NORDESTE | F150: Avaliador 1 | G150: 20 | H150: 12 | I150: 15 | J150: 10 | K150: 8 | L150: 10 | M150: 10 | N150: 5 | O150: 0 | P150: 0 | Q150: 3 | R150: 0 | S150: 0 | T150: 0 | U150: 93 | W150: =AVERAGE(U150,U151) -> 92 | X150: CLASSIFICADO
A151: PESSOA FÍSICA | B151: =HYPERLINK("https://mapas.cultura.gov.br/inscricao/569233815","on-569233815") -> on-569233815 | C151: João Pessoa | D151: PB | E151: NORDESTE | F151: Avaliador 2 | G151: 20 | H151: 12 | I151: 15 | J151: 10 | K151: 8 | L151: 10 | M151: 10 | N151: 3 | O151: 0 | P151: 0 | Q151: 3 | R151: 0 | S151: 0 | T151: 0 | U151: 91 | W151: =W150 -> 92 | X151: =X150 -> CLASSIFICADO
A152: PESSOA FÍSICA | B152: =HYPERLINK("https://mapas.cultura.gov.br/inscricao/1254223866","on-1254223866") -> on-1254223866 | C152: Campina Grande | D152: PB | E152: NORDESTE | F152: Avaliador 1 | G152: 20 | H152: 12 | I152: 12 | J152: 10 | K152: 10 | L152: 10 | M152: 10 | N152: 10 | O152: 0 | P152: 0 | Q152: 0 | R152: 0 | S152: 0 | T152: 0 | U152: 94 | W152: =AVERAGE(U152,U153) -> 92 | X152: CLASSIFICADO
A153: PESSOA FÍSICA | B153: =HYPERLINK("https://mapas.cultura.gov.br/inscricao/1254223866","on-1254223866") -> on-1254223866 | C153: Campina Grande | D153: PB | E153: NORDESTE | F153: Avaliador 2 | G153: 20 | H153: 12 | I153: 12 | J153: 10 | K153: 10 | L153: 8 | M153: 10 | N153: 8 | O153: 0 | P153: 0 | Q153: 0 | R153: 0 | S153: 0 | T153: 0 | U153: 90 | W153: =W152 -> 92 | X153: =X152 -> CLASSIFICADO
A154: PESSOA FÍSICA | B154: =HYPERLINK("https://mapas.cultura.gov.br/inscricao/668593149","on-668593149") -> on-668593149 | C154: Castelo do Piauí | D154: PI | E154: NORDESTE | F154: Avaliador 1 | G154: 20 | H154: 15 | I154: 12 | J154: 10 | K154: 8 | L154: 10 | M154: 8 | N154: 8 | O154: 0 | P154: 0 | Q154: 0 | R154: 3 | S154: 3 | T154: 0 | U154: 97 | W154: =AVERAGE(U154,U155) -> 92 | X154: CLASSIFICADO
A155: PESSOA FÍSICA | B155: =HYPERLINK("https://mapas.cultura.gov.br/inscricao/668593149","on-668593149") -> on-668593149 | C155: Castelo do Piauí | D155: PI | E155: NORDESTE | F155: Avaliador 2 | G155: 15 | H155: 12 | I155: 12 | J155: 8 | K155: 8 | L155: 8 | M155: 8 | N155: 10 | O155: 0 | P155: 0 | Q155: 0 | R155: 3 | S155: 3 | T155: 0 | U155: 87 | W155: =W154 -> 92 | X155: =X154 -> CLASSIFICADO
A156: PESSOA FÍSICA | B156: =HYPERLINK("https://mapas.cultura.gov.br/inscricao/1852562181","on-1852562181") -> on-1852562181 | C156: Teresina | D156: PI | E156: NORDESTE | F156: Avaliador 1 | G156: 20 | H156: 15 | I156: 8 | J156: 5 | K156: 8 | L156: 10 | M156: 8 | N156: 5 | O156: 0 | P156: 0 | Q156: 3 | R156: 3 | S156: 3 | T156: 0 | U156: 88 | W156: =AVERAGE(U156,U157) -> 92 | X156: CLASSIFICADO
A157: PESSOA FÍSICA | B157: =HYPERLINK("https://mapas.cultura.gov.br/inscricao/1852562181","on-1852562181") -> on-1852562181 | C157: Teresina | D157: PI | E157: NORDESTE | F157: Avaliador 2 | G157: 15 | H157: 12 | I157: 12 | J157: 10 | K157: 8 | L157: 10 | M157: 10 | N157: 10 | O157: 0 | P157: 0 | Q157: 3 | R157: 3 | S157: 3 | T157: 0 | U157: 96 | W157: =W156 -> 92 | X157: =X156 -> CLASSIFICADO
A158: PESSOA FÍSICA | B158: =HYPERLINK("https://mapas.cultura.gov.br/inscricao/1765257953","on-1765257953") -> on-1765257953 | C158: João Pessoa | D158: PB | E158: NORDESTE | F158: Avaliador 1 | G158: 15 | H158: 15 | I158: 15 | J158: 8 | K158: 8 | L158: 10 | M158: 10 | N158: 8 | O158: 0 | P158: 0 | Q158: 3 | R158: 0 | S158: 0 | T158: 0 | U158: 92 | W158: =AVERAGE(U158,U159) -> 91.5 | X158: CLASSIFICADO
A159: PESSOA FÍSICA | B159: =HYPERLINK("https://mapas.cultura.gov.br/inscricao/1765257953","on-1765257953") -> on-1765257953 | C159: João Pessoa | D159: PB | E159: NORDESTE | F159: Avaliador 2 | G159: 20 | H159: 12 | I159: 15 | J159: 8 | K159: 10 | L159: 10 | M159: 10 | N159: 3 | O159: 0 | P159: 0 | Q159: 3 | R159: 0 | S159: 0 | T159: 0 | U159: 91 | W159: =W158 -> 91.5 | X159: =X158 -> CLASSIFICADO
A160: PESSOA FÍSICA | B160: =HYPERLINK("https://mapas.cultura.gov.br/inscricao/2081525476","on-2081525476") -> on-2081525476 | C160: São Sebastião de Lagoa de Roça | D160: PB | E160: NORDESTE | F160: Avaliador 1 | G160: 20 | H160: 15 | I160: 15 | J160: 10 | K160: 10 | L160: 8 | M160: 8 | N160: 8 | O160: 0 | P160: 0 | Q160: 0 | R160: 0 | S160: 0 | T160: 0 | U160: 94 | W160: =AVERAGE(U160,U161) -> 91.5 | X160: CLASSIFICADO
A161: PESSOA FÍSICA | B161: =HYPERLINK("https://mapas.cultura.gov.br/inscricao/2081525476","on-2081525476") -> on-2081525476 | C161: São Sebastião de Lagoa de Roça | D161: PB | E161: NORDESTE | F161: Avaliador 2 | G161: 20 | H161: 15 | I161: 15 | J161: 8 | K161: 8 | L161: 10 | M161: 10 | N161: 3 | O161: 0 | P161: 0 | Q161: 0 | R161: 0 | S161: 0 | T161: 0 | U161: 89 | W161: =W160 -> 91.5 | X161: =X160 -> CLASSIFICADO
A162: PESSOA FÍSICA | B162: =HYPERLINK("https://mapas.cultura.gov.br/inscricao/26329770","on-26329770") -> on-26329770 | C162: Cabedelo | D162: PB | E162: NORDESTE | F162: Avaliador 1 | G162: 20 | H162: 15 | I162: 15 | J162: 10 | K162: 10 | L162: 8 | M162: 8 | N162: 8 | O162: 0 | P162: 0 | Q162: 0 | R162: 0 | S162: 0 | T162: 0 | U162: 94 | W162: =AVERAGE(U162,U163) -> 91.5 | X162: CLASSIFICADO
A163: PESSOA FÍSICA | B163: =HYPERLINK("https://mapas.cultura.gov.br/inscricao/26329770","on-26329770") -> on-26329770 | C163: Cabedelo | D163: PB | E163: NORDESTE | F163: Avaliador 2 | G163: 20 | H163: 15 | I163: 15 | J163: 8 | K163: 8 | L163: 10 | M163: 10 | N163: 3 | O163: 0 | P163: 0 | Q163: 0 | R163: 0 | S163: 0 | T163: 0 | U163: 89 | W163: =W162 -> 91.5 | X163: =X162 -> CLASSIFICADO
A164: PESSOA FÍSICA | B164: =HYPERLINK("https://mapas.cultura.gov.br/inscricao/1439299428","on-1439299428") -> on-1439299428 | C164: João Pessoa | D164: PB | E164: NORDESTE | F164: Avaliador 1 | G164: 20 | H164: 15 | I164: 0 | J164: 10 | K164: 10 | L164: 10 | M164: 10 | N164: 10 | O164: 0 | P164: 0 | Q164: 3 | R164: 0 | S164: 3 | T164: 0 | U164: 91 | W164: =AVERAGE(U164,U165) -> 91.5 | X164: CLASSIFICADO
A165: PESSOA FÍSICA | B165: =HYPERLINK("https://mapas.cultura.gov.br/inscricao/1439299428","on-1439299428") -> on-1439299428 | C165: João Pessoa | D165: PB | E165: NORDESTE | F165: Avaliador 2 | G165: 20 | H165: 15 | I165: 15 | J165: 10 | K165: 10 | L165: 10 | M165: 3 | N165: 3 | O165: 0 | P165: 0 | Q165: 3 | R165: 0 | S165: 3 | T165: 0 | U165: 92 | W165: =W164 -> 91.5 | X165: =X164 -> CLASSIFICADO
A166: PESSOA FÍSICA | B166: =HYPERLINK("https://mapas.cultura.gov.br/inscricao/1834385461","on-1834385461") -> on-1834385461 | C166: Serrinha | D166: BA | E166: NORDESTE | F166: Avaliador 1 | G166: 20 | H166: 15 | I166: 15 | J166: 10 | K166: 5 | L166: 10 | M166: 10 | N166: 3 | O166: 0 | P166: 0 | Q166: 3 | R166: 0 | S166: 0 | T166: 0 | U166: 91 | W166: =AVERAGE(U166,U167) -> 91.5 | X166: CLASSIFICADO
A167: PESSOA FÍSICA | B167: =HYPERLINK("https://mapas.cultura.gov.br/inscricao/1834385461","on-1834385461") -> on-1834385461 | C167: Serrinha | D167: BA | E167: NORDESTE | F167: Avaliador 2 | G167: 20 | H167: 15 | I167: 12 | J167: 8 | K167: 8 | L167: 10 | M167: 8 | N167: 8 | O167: 0 | P167: 0 | Q167: 3 | R167: 0 | S167: 0 | T167: 0 | U167: 92 | W167: =W166 -> 91.5 | X167: =X166 -> CLASSIFICADO
A168: PESSOA FÍSICA | B168: =HYPERLINK("https://mapas.cultura.gov.br/inscricao/2093320219","on-2093320219") -> on-2093320219 | C168: Maceió | D168: AL | E168: NORDESTE | F168: Avaliador 1 | G168: 20 | H168: 15 | I168: 15 | J168: 10 | K168: 8 | L168: 10 | M168: 10 | N168: 10 | O168: 0 | P168: 0 | Q168: 0 | R168: 0 | S168: 0 | T168: 0 | U168: 98 | W168: =AVERAGE(U168,U169) -> 91.5 | X168: CLASSIFICADO
A169: PESSOA FÍSICA | B169: =HYPERLINK("https://mapas.cultura.gov.br/inscricao/2093320219","on-2093320219") -> on-2093320219 | C169: Maceió | D169: AL | E169: NORDESTE | F169: Avaliador 2 | G169: 20 | H169: 12 | I169: 12 | J169: 5 | K169: 10 | L169: 10 | M169: 8 | N169: 8 | O169: 0 | P169: 0 | Q169: 0 | R169: 0 | S169: 0 | T169: 0 | U169: 85 | W169: =W168 -> 91.5 | X169: =X168 -> CLASSIFICADO
A170: PESSOA FÍSICA | B170: =HYPERLINK("https://mapas.cultura.gov.br/inscricao/1355985336","on-1355985336") -> on-1355985336 | C170: Fortaleza | D170: CE | E170: NORDESTE | F170: Avaliador 1 | G170: 20 | H170: 15 | I170: 15 | J170: 10 | K170: 10 | L170: 8 | M170: 10 | N170: 10 | O170: 0 | P170: 0 | Q170: 0 | R170: 0 | S170: 0 | T170: 0 | U170: 98 | W170: =AVERAGE(U170,U171) -> 91.5 | X170: CLASSIFICADO
A171: PESSOA FÍSICA | B171: =HYPERLINK("https://mapas.cultura.gov.br/inscricao/1355985336","on-1355985336") -> on-1355985336 | C171: Fortaleza | D171: CE | E171: NORDESTE | F171: Avaliador 2 | G171: 20 | H171: 12 | I171: 15 | J171: 0 | K171: 10 | L171: 8 | M171: 10 | N171: 10 | O171: 0 | P171: 0 | Q171: 0 | R171: 0 | S171: 0 | T171: 0 | U171: 85 | W171: =W170 -> 91.5 | X171: =X170 -> CLASSIFICADO
A172: PESSOA FÍSICA | B172: =HYPERLINK("https://mapas.cultura.gov.br/inscricao/207848918","on-207848918") -> on-207848918 | C172: João Pessoa | D172: PB | E172: NORDESTE | F172: Avaliador 1 | G172: 15 | H172: 12 | I172: 15 | J172: 10 | K172: 8 | L172: 10 | M172: 10 | N172: 10 | O172: 0 | P172: 0 | Q172: 3 | R172: 0 | S172: 0 | T172: 0 | U172: 93 | W172: =AVERAGE(U172,U173) -> 91 | X172: CLASSIFICADO
A173: PESSOA FÍSICA | B173: =HYPERLINK("https://mapas.cultura.gov.br/inscricao/207848918","on-207848918") -> on-207848918 | C173: João Pessoa | D173: PB | E173: NORDESTE | F173: Avaliador 2 | G173: 15 | H173: 15 | I173: 15 | J173: 10 | K173: 8 | L173: 10 | M173: 10 | N173: 3 | O173: 0 | P173: 0 | Q173: 3 | R173: 0 | S173: 0 | T173: 0 | U173: 89 | W173: =W172 -> 91 | X173: =X172 -> CLASSIFICADO
A174: PESSOA FÍSICA | B174: =HYPERLINK("https://mapas.cultura.gov.br/inscricao/1193981621","on-1193981621") -> on-1193981621 | C174: Salvador | D174: BA | E174: NORDESTE | F174: Avaliador 1 | G174: 15 | H174: 8 | I174: 12 | J174: 10 | K174: 8 | L174: 8 | M174: 8 | N174: 5 | O174: 0 | P174: 3 | Q174: 3 | R174: 0 | S174: 3 | T174: 0 | U174: 83 | W174: =AVERAGE(U174,U175) -> 91 | X174: CLASSIFICADO
A175: PESSOA FÍSICA | B175: =HYPERLINK("https://mapas.cultura.gov.br/inscricao/1193981621","on-1193981621") -> on-1193981621 | C175: Salvador | D175: BA | E175: NORDESTE | F175: Avaliador 2 | G175: 20 | H175: 8 | I175: 12 | J175: 10 | K175: 10 | L175: 10 | M175: 10 | N175: 10 | O175: 0 | P175: 3 | Q175: 3 | R175: 0 | S175: 3 | T175: 0 | U175: 99 | W175: =W174 -> 91 | X175: =X174 -> CLASSIFICADO
A176: PESSOA FÍSICA | B176: =HYPERLINK("https://mapas.cultura.gov.br/inscricao/402887512","on-402887512") -> on-402887512 | C176: Itapetinga | D176: BA | E176: NORDESTE | F176: Avaliador 1 | G176: 15 | H176: 12 | I176: 12 | J176: 5 | K176: 10 | L176: 8 | M176: 8 | N176: 8 | O176: 0 | P176: 0 | Q176: 0 | R176: 3 | S176: 0 | T176: 0 | U176: 81 | W176: =AVERAGE(U176,U177) -> 91 | X176: CLASSIFICADO
A177: PESSOA FÍSICA | B177: =HYPERLINK("https://mapas.cultura.gov.br/inscricao/402887512","on-402887512") -> on-402887512 | C177: Itapetinga | D177: BA | E177: NORDESTE | F177: Avaliador 2 | G177: 20 | H177: 15 | I177: 15 | J177: 8 | K177: 10 | L177: 10 | M177: 10 | N177: 10 | O177: 0 | P177: 0 | Q177: 0 | R177: 3 | S177: 0 | T177: 0 | U177: 101 | W177: =W176 -> 91 | X177: =X176 -> CLASSIFICADO
A178: PESSOA FÍSICA | B178: =HYPERLINK("https://mapas.cultura.gov.br/inscricao/1134282454","on-1134282454") -> on-1134282454 | C178: Alagoinha | D178: PB | E178: NORDESTE | F178: Avaliador 1 | G178: 15 | H178: 15 | I178: 12 | J178: 10 | K178: 10 | L178: 10 | M178: 8 | N178: 8 | O178: 0 | P178: 0 | Q178: 0 | R178: 0 | S178: 0 | T178: 0 | U178: 88 | W178: =AVERAGE(U178,U179) -> 90.5 | X178: CLASSIFICADO
A179: PESSOA FÍSICA | B179: =HYPERLINK("https://mapas.cultura.gov.br/inscricao/1134282454","on-1134282454") -> on-1134282454 | C179: Alagoinha | D179: PB | E179: NORDESTE | F179: Avaliador 2 | G179: 20 | H179: 15 | I179: 15 | J179: 10 | K179: 10 | L179: 10 | M179: 10 | N179: 3 | O179: 0 | P179: 0 | Q179: 0 | R179: 0 | S179: 0 | T179: 0 | U179: 93 | W179: =W178 -> 90.5 | X179: =X178 -> CLASSIFICADO
A180: PESSOA FÍSICA | B180: =HYPERLINK("https://mapas.cultura.gov.br/inscricao/1082640499","on-1082640499") -> on-1082640499 | C180: Maceió | D180: AL | E180: NORDESTE | F180: Avaliador 1 | G180: 20 | H180: 15 | I180: 15 | J180: 10 | K180: 8 | L180: 8 | M180: 10 | N180: 10 | O180: 0 | P180: 0 | Q180: 3 | R180: 0 | S180: 0 | T180: 0 | U180: 99 | W180: =AVERAGE(U180,U181) -> 90.5 | X180: CLASSIFICADO
A181: PESSOA FÍSICA | B181: =HYPERLINK("https://mapas.cultura.gov.br/inscricao/1082640499","on-1082640499") -> on-1082640499 | C181: Maceió | D181: AL | E181: NORDESTE | F181: Avaliador 2 | G181: 15 | H181: 15 | I181: 15 | J181: 3 | K181: 10 | L181: 10 | M181: 8 | N181: 3 | O181: 0 | P181: 0 | Q181: 3 | R181: 0 | S181: 0 | T181: 0 | U181: 82 | W181: =W180 -> 90.5 | X181: =X180 -> CLASSIFICADO
A182: PESSOA FÍSICA | B182: =HYPERLINK("https://mapas.cultura.gov.br/inscricao/44415134","on-44415134") -> on-44415134 | C182: Feira de Santana | D182: BA | E182: NORDESTE | F182: Avaliador 1 | G182: 20 | H182: 12 | I182: 15 | J182: 5 | K182: 10 | L182: 10 | M182: 8 | N182: 8 | O182: 0 | P182: 0 | Q182: 3 | R182: 0 | S182: 0 | T182: 0 | U182: 91 | W182: =AVERAGE(U182,U183) -> 90.5 | X182: CLASSIFICADO
A183: PESSOA FÍSICA | B183: =HYPERLINK("https://mapas.cultura.gov.br/inscricao/44415134","on-44415134") -> on-44415134 | C183: Feira de Santana | D183: BA | E183: NORDESTE | F183: Avaliador 2 | G183: 15 | H183: 15 | I183: 12 | J183: 10 | K183: 10 | L183: 10 | M183: 10 | N183: 5 | O183: 0 | P183: 0 | Q183: 3 | R183: 0 | S183: 0 | T183: 0 | U183: 90 | W183: =W182 -> 90.5 | X183: =X182 -> CLASSIFICADO
A184: PESSOA FÍSICA | B184: =HYPERLINK("https://mapas.cultura.gov.br/inscricao/1844896316","on-1844896316") -> on-1844896316 | C184: João Pessoa | D184: PB | E184: NORDESTE | F184: Avaliador 1 | G184: 20 | H184: 12 | I184: 15 | J184: 8 | K184: 10 | L184: 10 | M184: 8 | N184: 5 | O184: 0 | P184: 0 | Q184: 3 | R184: 0 | S184: 0 | T184: 0 | U184: 91 | W184: =AVERAGE(U184,U185) -> 90 | X184: CLASSIFICADO
A185: PESSOA FÍSICA | B185: =HYPERLINK("https://mapas.cultura.gov.br/inscricao/1844896316","on-1844896316") -> on-1844896316 | C185: João Pessoa | D185: PB | E185: NORDESTE | F185: Avaliador 2 | G185: 20 | H185: 15 | I185: 12 | J185: 8 | K185: 10 | L185: 8 | M185: 10 | N185: 3 | O185: 0 | P185: 0 | Q185: 3 | R185: 0 | S185: 0 | T185: 0 | U185: 89 | W185: =W184 -> 90 | X185: =X184 -> CLASSIFICADO
A186: PESSOA FÍSICA | B186: =HYPERLINK("https://mapas.cultura.gov.br/inscricao/550469738","on-550469738") -> on-550469738 | C186: João Pessoa | D186: PB | E186: NORDESTE | F186: Avaliador 1 | G186: 15 | H186: 15 | I186: 15 | J186: 10 | K186: 10 | L186: 10 | M186: 8 | N186: 5 | O186: 0 | P186: 3 | Q186: 0 | R186: 0 | S186: 0 | T186: 0 | U186: 91 | W186: =AVERAGE(U186,U187) -> 90 | X186: CLASSIFICADO
A187: PESSOA FÍSICA | B187: =HYPERLINK("https://mapas.cultura.gov.br/inscricao/550469738","on-550469738") -> on-550469738 | C187: João Pessoa | D187: PB | E187: NORDESTE | F187: Avaliador 2 | G187: 15 | H187: 15 | I187: 15 | J187: 10 | K187: 10 | L187: 10 | M187: 8 | N187: 3 | O187: 0 | P187: 3 | Q187: 0 | R187: 0 | S187: 0 | T187: 0 | U187: 89 | W187: =W186 -> 90 | X187: =X186 -> CLASSIFICADO
A188: PESSOA FÍSICA | B188: =HYPERLINK("https://mapas.cultura.gov.br/inscricao/46058050","on-46058050") -> on-46058050 | C188: Cruz das Almas | D188: BA | E188: NORDESTE | F188: Avaliador 1 | G188: 15 | H188: 12 | I188: 12 | J188: 3 | K188: 10 | L188: 8 | M188: 8 | N188: 8 | O188: 0 | P188: 0 | Q188: 3 | R188: 0 | S188: 0 | U188: 79 | W188: =AVERAGE(U188,U189) -> 90 | X188: CLASSIFICADO
A189: PESSOA FÍSICA | B189: =HYPERLINK("https://mapas.cultura.gov.br/inscricao/46058050","on-46058050") -> on-46058050 | C189: Cruz das Almas | D189: BA | E189: NORDESTE | F189: Avaliador 2 | G189: 20 | H189: 15 | I189: 15 | J189: 10 | K189: 8 | L189: 10 | M189: 10 | N189: 10 | O189: 0 | P189: 0 | Q189: 3 | R189: 0 | S189: 0 | T189: 0 | U189: 101 | W189: =W188 -> 90 | X189: =X188 -> CLASSIFICADO
A190: PESSOA FÍSICA | B190: =HYPERLINK("https://mapas.cultura.gov.br/inscricao/1926075713","on-1926075713") -> on-1926075713 | C190: João Pessoa | D190: PB | E190: NORDESTE | F190: Avaliador 1 | G190: 20 | H190: 12 | I190: 12 | J190: 8 | K190: 8 | L190: 8 | M190: 8 | N190: 8 | O190: 3 | P190: 0 | Q190: 0 | R190: 0 | S190: 0 | T190: 0 | U190: 87 | W190: =AVERAGE(U190,U191) -> 89.5 | X190: CLASSIFICADO
A191: PESSOA FÍSICA | B191: =HYPERLINK("https://mapas.cultura.gov.br/inscricao/1926075713","on-1926075713") -> on-1926075713 | C191: João Pessoa | D191: PB | E191: NORDESTE | F191: Avaliador 2 | G191: 20 | H191: 15 | I191: 15 | J191: 8 | K191: 8 | L191: 10 | M191: 10 | N191: 3 | O191: 3 | P191: 0 | Q191: 0 | R191: 0 | S191: 0 | T191: 0 | U191: 92 | W191: =W190 -> 89.5 | X191: =X190 -> CLASSIFICADO
A192: PESSOA FÍSICA | B192: =HYPERLINK("https://mapas.cultura.gov.br/inscricao/2117723734","on-2117723734") -> on-2117723734 | C192: Fortaleza | D192: CE | E192: NORDESTE | F192: Avaliador 1 | G192: 20 | H192: 12 | I192: 12 | J192: 10 | K192: 10 | L192: 10 | M192: 10 | N192: 10 | O192: 0 | P192: 0 | Q192: 0 | R192: 0 | S192: 0 | T192: 0 | U192: 94 | W192: =AVERAGE(U192,U193) -> 89.5 | X192: CLASSIFICADO
A193: PESSOA FÍSICA | B193: =HYPERLINK("https://mapas.cultura.gov.br/inscricao/2117723734","on-2117723734") -> on-2117723734 | C193: Fortaleza | D193: CE | E193: NORDESTE | F193: Avaliador 2 | G193: 20 | H193: 12 | I193: 12 | J193: 5 | K193: 10 | L193: 10 | M193: 8 | N193: 8 | O193: 0 | P193: 0 | Q193: 0 | R193: 0 | S193: 0 | T193: 0 | U193: 85 | W193: =W192 -> 89.5 | X193: =X192 -> CLASSIFICADO
A194: PESSOA FÍSICA | B194: =HYPERLINK("https://mapas.cultura.gov.br/inscricao/1592361046","on-1592361046") -> on-1592361046 | C194: Eunapolis | D194: BA | E194: NORDESTE | F194: Avaliador 1 | G194: 15 | H194: 12 | I194: 12 | J194: 3 | K194: 10 | L194: 10 | M194: 8 | N194: 8 | O194: 0 | P194: 0 | Q194: 3 | R194: 0 | S194: 0 | T194: 0 | U194: =SUM(G194:T194) -> 81 | W194: =AVERAGE(U194,U195) -> 89.5 | X194: CLASSIFICADO
A195: PESSOA FÍSICA | B195: =HYPERLINK("https://mapas.cultura.gov.br/inscricao/1592361046","on-1592361046") -> on-1592361046 | C195: Eunapolis | D195: BA | E195: NORDESTE | F195: Avaliador 2 | G195: 20 | H195: 15 | I195: 15 | J195: 10 | K195: 10 | L195: 10 | M195: 5 | N195: 10 | O195: 0 | P195: 0 | Q195: 3 | R195: 0 | S195: 0 | T195: 0 | U195: 98 | W195: =W194 -> 89.5 | X195: =X194 -> CLASSIFICADO
A196: PESSOA FÍSICA | B196: =HYPERLINK("https://mapas.cultura.gov.br/inscricao/1997249261","on-1997249261") -> on-1997249261 | C196: Campina Grande | D196: PB | E196: NORDESTE | F196: Avaliador 1 | G196: 15 | H196: 15 | I196: 15 | J196: 8 | K196: 10 | L196: 10 | M196: 10 | N196: 10 | O196: 0 | P196: 0 | Q196: 0 | R196: 0 | S196: 0 | T196: 0 | U196: 93 | W196: =AVERAGE(U196,U197) -> 89 | X196: CLASSIFICADO
A197: PESSOA FÍSICA | B197: =HYPERLINK("https://mapas.cultura.gov.br/inscricao/1997249261","on-1997249261") -> on-1997249261 | C197: Campina Grande | D197: PB | E197: NORDESTE | F197: Avaliador 2 | G197: 15 | H197: 12 | I197: 15 | J197: 10 | K197: 10 | L197: 10 | M197: 10 | N197: 3 | O197: 0 | P197: 0 | Q197: 0 | R197: 0 | S197: 0 | T197: 0 | U197: 85 | W197: =W196 -> 89 | X197: =X196 -> CLASSIFICADO
A198: PESSOA FÍSICA | B198: =HYPERLINK("https://mapas.cultura.gov.br/inscricao/1070515339","on-1070515339") -> on-1070515339 | C198: Campina Grande | D198: PB | E198: NORDESTE | F198: Avaliador 1 | G198: 20 | H198: 12 | I198: 15 | J198: 10 | K198: 8 | L198: 10 | M198: 10 | N198: 10 | O198: 0 | P198: 0 | Q198: 0 | R198: 0 | S198: 0 | T198: 0 | U198: 95 | W198: =AVERAGE(U198,U199) -> 89 | X198: CLASSIFICADO
A199: PESSOA FÍSICA | B199: =HYPERLINK("https://mapas.cultura.gov.br/inscricao/1070515339","on-1070515339") -> on-1070515339 | C199: Campina Grande | D199: PB | E199: NORDESTE | F199: Avaliador 2 | G199: 15 | H199: 15 | I199: 12 | J199: 10 | K199: 10 | L199: 10 | M199: 8 | N199: 3 | O199: 0 | P199: 0 | Q199: 0 | R199: 0 | S199: 0 | T199: 0 | U199: 83 | W199: =W198 -> 89 | X199: =X198 -> CLASSIFICADO
A200: PESSOA FÍSICA | B200: =HYPERLINK("https://mapas.cultura.gov.br/inscricao/1517456364","on-1517456364") -> on-1517456364 | C200: João Pessoa | D200: PB | E200: NORDESTE | F200: Avaliador 1 | G200: 15 | H200: 12 | I200: 12 | J200: 8 | K200: 8 | L200: 8 | M200: 8 | N200: 8 | O200: 3 | P200: 0 | Q200: 0 | R200: 0 | S200: 0 | T200: 0 | U200: 82 | W200: =AVERAGE(U200,U201) -> 89 | X200: CLASSIFICADO
... 843 more rows

Sheet GRUPOS, COLETIVOS, CREW (2)
A1: CATEGORIA | B1: INSCRIÇÃO | C1: CIDADE | D1: UF | E1: REGIÃO | F1: AVALIADOR | G1: CRITÉRIOS DE AVALIAÇÃO E SELEÇÃO 1 | H1: CRITÉRIOS DE AVALIAÇÃO E SELEÇÃO 2 | I1: CRITÉRIOS DE AVALIAÇÃO E SELEÇÃO 3 | J1: CRITÉRIOS DE AVALIAÇÃO E SELEÇÃO 4 | K1: CRITÉRIOS DE AVALIAÇÃO E SELEÇÃO 5 | L1: CRITÉRIOS DE AVALIAÇÃO E SELEÇÃO 6 | M1: CRITÉRIOS DE AVALIAÇÃO E SELEÇÃO 7 | N1: CRITÉRIOS DE AVALIAÇÃO E SELEÇÃO 8 | O1: PONTUAÇÃO EXTRA - Pessoa com deficiência | P1: PONTUAÇÃO EXTRA - Mulher | Q1: PONTUAÇÃO EXTRA - Pessoa negra | R1: PONTUAÇÃO EXTRA -Indígena, matriz africana, de terreiro ou de povos ou de comunidades tradicionais | S1: PONTUAÇÃO EXTRA LGBTQIA+ | T1: PONTUAÇÃO EXTRA Idosa com 60 anos ou mais? | U1: NOTA POR AVALIADOR | V1: OBSERVAÇÃO | W1: NOTA PRELIMINAR | X1: STATUS
A2: GRUPOS, COLETIVOS, CREW | B2: =HYPERLINK("https://mapas.cultura.gov.br/inscricao/939643364","on-939643364") -> on-939643364 | C2: São Cristóvão | D2: SE | E2: NORDESTE | F2: Avaliador 1 | G2: 20 | H2: 15 | I2: 15 | J2: 10 | K2: 10 | L2: 10 | M2: 10 | N2: 10 | O2: 3 | P2: 3 | Q2: 3 | R2: 3 | S2: 3 | T2: 0 | U2: =SUM(G2:T2) -> 115 | W2: =AVERAGE(U2,U3) -> 115 | X2: PRÉ-SELECIONADO
A3: GRUPOS, COLETIVOS, CREW | B3: =HYPERLINK("https://mapas.cultura.gov.br/inscricao/939643364","on-939643364") -> on-939643364 | C3: São Cristóvão | D3: SE | E3: NORDESTE | F3: Avaliador 2 | G3: 20 | H3: 15 | I3: 15 | J3: 10 | K3: 10 | L3: 10 | M3: 10 | N3: 10 | O3: 3 | P3: 3 | Q3: 3 | R3: 3 | S3: 3 | T3: 0 | U3: 115 | W3: =W2 -> 115 | X3: =X2 -> PRÉ-SELECIONADO
A4: GRUPOS, COLETIVOS, CREW | B4: =HYPERLINK("https://mapas.cultura.gov.br/inscricao/1676714752","on-1676714752") -> on-1676714752 | C4: Vargem Grande | D4: MA | E4: NORDESTE | F4: Avaliador 1 | G4: 20 | H4: 15 | I4: 15 | J4: 10 | K4: 10 | L4: 10 | M4: 10 | N4: 10 | O4: 3 | P4: 3 | Q4: 3 | R4: 3 | S4: 3 | T4: 0 | U4: 115 | W4: =AVERAGE(U4,U5) -> 110.5 | X4: PRÉ-SELECIONADO
A5: GRUPOS, COLETIVOS, CREW | B5: =HYPERLINK("https://mapas.cultura.gov.br/inscricao/1676714752","on-1676714752") -> on-1676714752 | C5: Vargem Grande | D5: MA | E5: NORDESTE | F5: Avaliador 2 | G5: 20 | H5: 15 | I5: 15 | J5: 8 | K5: 8 | L5: 10 | M5: 10 | N5: 5 | O5: 3 | P5: 3 | Q5: 3 | R5: 3 | S5: 3 | T5: 0 | U5: 106 | W5: =W4 -> 110.5 | X5: =X4 -> PRÉ-SELECIONADO
A6: GRUPOS, COLETIVOS, CREW | B6: =HYPERLINK("https://mapas.cultura.gov.br/inscricao/1201143807","on-1201143807") -> on-1201143807 | C6: camaçari | D6: BA | E6: NORDESTE | F6: Avaliador 1 | G6: 20 | H6: 15 | I6: 15 | J6: 10 | K6: 10 | L6: 10 | M6: 8 | N6: 10 | O6: 0 | P6: 3 | Q6: 3 | R6: 0 | S6: 3 | T6: 0 | U6: 107 | W6: =AVERAGE(U6,U7) -> 108 | X6: PRÉ-SELECIONADO
A7: GRUPOS, COLETIVOS, CREW | B7: =HYPERLINK("https://mapas.cultura.gov.br/inscricao/1201143807","on-1201143807") -> on-1201143807 | C7: camaçari | D7: BA | E7: NORDESTE | F7: Avaliador 2 | G7: 20 | H7: 15 | I7: 15 | J7: 10 | K7: 10 | L7: 10 | M7: 10 | N7: 10 | O7: 0 | P7: 3 | Q7: 3 | R7: 0 | S7: 3 | T7: 0 | U7: 109 | W7: =W6 -> 108 | X7: =X6 -> PRÉ-SELECIONADO
A8: GRUPOS, COLETIVOS, CREW | B8: =HYPERLINK("https://mapas.cultura.gov.br/inscricao/345888972","on-345888972") -> on-345888972 | C8: Salvador | D8: BA | E8: NORDESTE | F8: Avaliador 1 | G8: 20 | H8: 15 | I8: 15 | J8: 10 | K8: 10 | L8: 10 | M8: 10 | N8: 10 | O8: 0 | P8: 3 | Q8: 3 | R8: 0 | S8: 3 | T8: 0 | U8: 109 | W8: =AVERAGE(U8,U9) -> 107.5 | X8: PRÉ-SELECIONADO
A9: GRUPOS, COLETIVOS, CREW | B9: =HYPERLINK("https://mapas.cultura.gov.br/inscricao/345888972","on-345888972") -> on-345888972 | C9: Salvador | D9: BA | E9: NORDESTE | F9: Avaliador 2 | G9: 20 | H9: 12 | I9: 15 | J9: 10 | K9: 10 | L9: 10 | M9: 10 | N9: 10 | O9: 0 | P9: 3 | Q9: 3 | R9: 0 | S9: 3 | T9: 0 | U9: 106 | W9: =W8 -> 107.5 | X9: =X8 -> PRÉ-SELECIONADO
A10: GRUPOS, COLETIVOS, CREW | B10: =HYPERLINK("https://mapas.cultura.gov.br/inscricao/1158339923","on-1158339923") -> on-1158339923 | C10: Teresina | D10: PI | E10: NORDESTE | F10: Avaliador 1 | G10: 20 | H10: 15 | I10: 15 | J10: 10 | K10: 10 | L10: 10 | M10: 10 | N10: 10 | O10: 0 | P10: 0 | Q10: 3 | R10: 3 | S10: 0 | T10: 0 | U10: 106 | W10: =AVERAGE(U10,U11) -> 106 | X10: PRÉ-SELECIONADO
A11: GRUPOS, COLETIVOS, CREW | B11: =HYPERLINK("https://mapas.cultura.gov.br/inscricao/1158339923","on-1158339923") -> on-1158339923 | C11: Teresina | D11: PI | E11: NORDESTE | F11: Avaliador 2 | G11: 20 | H11: 15 | I11: 15 | J11: 10 | K11: 10 | L11: 10 | M11: 10 | N11: 10 | O11: 0 | P11: 0 | Q11: 3 | R11: 3 | S11: 0 | T11: 0 | U11: 106 | W11: =W10 -> 106 | X11: =X10 -> PRÉ-SELECIONADO
A12: GRUPOS, COLETIVOS, CREW | B12: =HYPERLINK("https://mapas.cultura.gov.br/inscricao/1395253334","on-1395253334") -> on-1395253334 | C12: Salvador | D12: BA | E12: NORDESTE | F12: Avaliador 1 | G12: 20 | H12: 15 | I12: 15 | J12: 10 | K12: 8 | L12: 10 | M12: 8 | N12: 10 | O12: 0 | P12: 3 | Q12: 3 | R12: 0 | S12: 0 | T12: 0 | U12: 102 | W12: =AVERAGE(U12,U13) -> 103 | X12: PRÉ-SELECIONADO
A13: GRUPOS, COLETIVOS, CREW | B13: =HYPERLINK("https://mapas.cultura.gov.br/inscricao/1395253334","on-1395253334") -> on-1395253334 | C13: Salvador | D13: BA | E13: NORDESTE | F13: Avaliador 2 | G13: 20 | H13: 15 | I13: 15 | J13: 10 | K13: 10 | L13: 10 | M13: 10 | N13: 8 | O13: 0 | P13: 3 | Q13: 3 | R13: 0 | S13: 0 | T13: 0 | U13: 104 | W13: =W12 -> 103 | X13: =X12 -> PRÉ-SELECIONADO
A14: GRUPOS, COLETIVOS, CREW | B14: =HYPERLINK("https://mapas.cultura.gov.br/inscricao/1814085973","on-1814085973") -> on-1814085973 | C14: Esperança | D14: PB | E14: NORDESTE | F14: Avaliador 1 | G14: 20 | H14: 15 | I14: 15 | J14: 10 | K14: 10 | L14: 10 | M14: 10 | N14: 10 | O14: 0 | P14: 0 | Q14: 3 | R14: 0 | S14: 0 | T14: 0 | U14: 103 | W14: =AVERAGE(U14,U15) -> 103 | X14: PRÉ-SELECIONADO
A15: GRUPOS, COLETIVOS, CREW | B15: =HYPERLINK("https://mapas.cultura.gov.br/inscricao/1814085973","on-1814085973") -> on-1814085973 | C15: Esperança | D15: PB | E15: NORDESTE | F15: Avaliador 2 | G15: 20 | H15: 15 | I15: 15 | J15: 10 | K15: 10 | L15: 10 | M15: 10 | N15: 10 | O15: 0 | P15: 0 | Q15: 3 | R15: 0 | S15: 0 | T15: 0 | U15: 103 | W15: =W14 -> 103 | X15: =X14 -> PRÉ-SELECIONADO
A16: GRUPOS, COLETIVOS, CREW | B16: =HYPERLINK("https://mapas.cultura.gov.br/inscricao/1606414693","on-1606414693") -> on-1606414693 | C16: Fortaleza | D16: CE | E16: NORDESTE | F16: Avaliador 1 | G16: 20 | H16: 15 | I16: 12 | J16: 10 | K16: 8 | L16: 10 | M16: 8 | N16: 10 | O16: 0 | P16: 3 | Q16: 3 | R16: 3 | S16: 3 | T16: 0 | U16: 105 | W16: =AVERAGE(U16,U17) -> 102.5 | X16: PRÉ-SELECIONADO
A17: GRUPOS, COLETIVOS, CREW | B17: =HYPERLINK("https://mapas.cultura.gov.br/inscricao/1606414693","on-1606414693") -> on-1606414693 | C17: Fortaleza | D17: CE | E17: NORDESTE | F17: Avaliador 2 | G17: 20 | H17: 15 | I17: 12 | J17: 8 | K17: 8 | L17: 10 | M17: 5 | N17: 10 | O17: 0 | P17: 3 | Q17: 3 | R17: 3 | S17: 3 | T17: 0 | U17: 100 | W17: =W16 -> 102.5 | X17: =X16 -> PRÉ-SELECIONADO
A18: GRUPOS, COLETIVOS, CREW | B18: =HYPERLINK("https://mapas.cultura.gov.br/inscricao/1114764116","on-1114764116") -> on-1114764116 | C18: Natal | D18: RN | E18: NORDESTE | F18: Avaliador 1 | G18: 20 | H18: 15 | I18: 15 | J18: 10 | K18: 10 | L18: 10 | M18: 10 | N18: 10 | O18: 0 | P18: 0 | Q18: 3 | R18: 0 | S18: 0 | T18: 0 | U18: 103 | W18: =AVERAGE(U18,U19) -> 101 | X18: PRÉ-SELECIONADO
A19: GRUPOS, COLETIVOS, CREW | B19: =HYPERLINK("https://mapas.cultura.gov.br/inscricao/1114764116","on-1114764116") -> on-1114764116 | C19: Natal | D19: RN | E19: NORDESTE | F19: Avaliador 2 | G19: 20 | H19: 15 | I19: 15 | J19: 8 | K19: 10 | L19: 10 | M19: 10 | N19: 8 | O19: 0 | P19: 0 | Q19: 3 | R19: 0 | S19: 0 | T19: 0 | U19: 99 | W19: =W18 -> 101 | X19: =X18 -> PRÉ-SELECIONADO
A20: GRUPOS, COLETIVOS, CREW | B20: =HYPERLINK("https://mapas.cultura.gov.br/inscricao/217040435","on-217040435") -> on-217040435 | C20: Fortaleza | D20: CE | E20: NORDESTE | F20: Avaliador 1 | G20: 20 | H20: 15 | I20: 15 | J20: 10 | K20: 10 | L20: 10 | M20: 10 | N20: 8 | O20: 0 | P20: 3 | Q20: 3 | R20: 0 | S20: 0 | T20: 0 | U20: 104 | W20: =AVERAGE(U20,U21) -> 100.5 | X20: PRÉ-SELECIONADO
A21: GRUPOS, COLETIVOS, CREW | B21: =HYPERLINK("https://mapas.cultura.gov.br/inscricao/217040435","on-217040435") -> on-217040435 | C21: Fortaleza | D21: CE | E21: NORDESTE | F21: Avaliador 2 | G21: 20 | H21: 15 | I21: 15 | J21: 5 | K21: 10 | L21: 10 | M21: 8 | N21: 8 | O21: 0 | P21: 3 | Q21: 3 | R21: 0 | S21: 0 | T21: 0 | U21: 97 | W21: =W20 -> 100.5 | X21: =X20 -> PRÉ-SELECIONADO
A22: GRUPOS, COLETIVOS, CREW | B22: =HYPERLINK("https://mapas.cultura.gov.br/inscricao/961249902","on-961249902") -> on-961249902 | C22: Maceió | D22: AL | E22: NORDESTE | F22: Avaliador 1 | G22: 20 | H22: 15 | I22: 15 | J22: 8 | K22: 8 | L22: 10 | M22: 10 | N22: 8 | O22: 0 | P22: 0 | Q22: 3 | R22: 0 | S22: 3 | T22: 0 | U22: 100 | W22: =AVERAGE(U22,U23) -> 100 | X22: PRÉ-SELECIONADO
A23: GRUPOS, COLETIVOS, CREW | B23: =HYPERLINK("https://mapas.cultura.gov.br/inscricao/961249902","on-961249902") -> on-961249902 | C23: Maceió | D23: AL | E23: NORDESTE | F23: Avaliador 2 | G23: 20 | H23: 15 | I23: 15 | J23: 8 | K23: 8 | L23: 10 | M23: 10 | N23: 8 | O23: 0 | P23: 0 | Q23: 3 | R23: 0 | S23: 3 | T23: 0 | U23: 100 | W23: =W22 -> 100 | X23: =X22 -> PRÉ-SELECIONADO
A24: GRUPOS, COLETIVOS, CREW | B24: =HYPERLINK("https://mapas.cultura.gov.br/inscricao/1794353212","on-1794353212") -> on-1794353212 | C24: João Pessoa | D24: PB | E24: NORDESTE | F24: Avaliador 1 | G24: 20 | H24: 15 | I24: 15 | J24: 10 | K24: 10 | L24: 10 | M24: 10 | N24: 10 | O24: 0 | P24: 0 | Q24: 3 | R24: 0 | S24: 0 | T24: 0 | U24: 103 | W24: =AVERAGE(U24,U25) -> 100 | X24: PRÉ-SELECIONADO
A25: GRUPOS, COLETIVOS, CREW | B25: =HYPERLINK("https://mapas.cultura.gov.br/inscricao/1794353212","on-1794353212") -> on-1794353212 | C25: João Pessoa | D25: PB | E25: NORDESTE | F25: Avaliador 2 | G25: 20 | H25: 15 | I25: 15 | J25: 8 | K25: 8 | L25: 10 | M25: 10 | N25: 8 | O25: 0 | P25: 0 | Q25: 3 | R25: 0 | S25: 0 | T25: 0 | U25: 97 | W25: =W24 -> 100 | X25: =X24 -> PRÉ-SELECIONADO
A26: GRUPOS, COLETIVOS, CREW | B26: =HYPERLINK("https://mapas.cultura.gov.br/inscricao/1199358167","on-1199358167") -> on-1199358167 | C26: João Pessoa | D26: PB | E26: NORDESTE | F26: Avaliador 1 | G26: 20 | H26: 15 | I26: 15 | J26: 10 | K26: 10 | L26: 10 | M26: 10 | N26: 10 | O26: 0 | P26: 0 | Q26: 0 | R26: 0 | S26: 0 | T26: 0 | U26: 100 | W26: =AVERAGE(U26,U27) -> 100 | X26: PRÉ-SELECIONADO
A27: GRUPOS, COLETIVOS, CREW | B27: =HYPERLINK("https://mapas.cultura.gov.br/inscricao/1199358167","on-1199358167") -> on-1199358167 | C27: João Pessoa | D27: PB | E27: NORDESTE | F27: Avaliador 2 | G27: 20 | H27: 15 | I27: 15 | J27: 10 | K27: 10 | L27: 10 | M27: 10 | N27: 10 | O27: 0 | P27: 0 | Q27: 0 | R27: 0 | S27: 0 | T27: 0 | U27: 100 | W27: =W26 -> 100 | X27: =X26 -> PRÉ-SELECIONADO
A28: GRUPOS, COLETIVOS, CREW | B28: =HYPERLINK("https://mapas.cultura.gov.br/inscricao/896136732","on-896136732") -> on-896136732 | C28: Maceió | D28: AL | E28: NORDESTE | F28: Avaliador 1 | G28: 20 | H28: 15 | I28: 15 | J28: 10 | K28: 10 | L28: 10 | M28: 10 | N28: 10 | O28: 0 | P28: 0 | Q28: 0 | R28: 0 | S28: 0 | T28: 0 | U28: 100 | W28: =AVERAGE(U28,U29) -> 100 | X28: PRÉ-SELECIONADO
A29: GRUPOS, COLETIVOS, CREW | B29: =HYPERLINK("https://mapas.cultura.gov.br/inscricao/896136732","on-896136732") -> on-896136732 | C29: Maceió | D29: AL | E29: NORDESTE | F29: Avaliador 2 | G29: 20 | H29: 15 | I29: 15 | J29: 10 | K29: 10 | L29: 10 | M29: 10 | N29: 10 | S29: 0 | U29: 100 | W29: =W28 -> 100 | X29: =X28 -> PRÉ-SELECIONADO
A30: GRUPOS, COLETIVOS, CREW | B30: =HYPERLINK("https://mapas.cultura.gov.br/inscricao/1817615064","on-1817615064") -> on-1817615064 | C30: Recife | D30: PE | E30: NORDESTE | F30: Avaliador 1 | G30: 20 | H30: 15 | I30: 12 | J30: 10 | K30: 8 | L30: 8 | M30: 8 | N30: 8 | O30: 0 | P30: 3 | Q30: 3 | R30: 0 | S30: 3 | T30: 0 | U30: 98 | W30: =AVERAGE(U30,U31) -> 100 | X30: PRÉ-SELECIONADO
A31: GRUPOS, COLETIVOS, CREW | B31: =HYPERLINK("https://mapas.cultura.gov.br/inscricao/1817615064","on-1817615064") -> on-1817615064 | C31: Recife | D31: PE | E31: NORDESTE | F31: Avaliador 2 | G31: 20 | H31: 12 | I31: 15 | J31: 10 | K31: 8 | L31: 10 | M31: 8 | N31: 10 | O31: 0 | P31: 3 | Q31: 3 | R31: 0 | S31: 3 | T31: 0 | U31: 102 | W31: =W30 -> 100 | X31: =X30 -> PRÉ-SELECIONADO
A32: GRUPOS, COLETIVOS, CREW | B32: =HYPERLINK("https://mapas.cultura.gov.br/inscricao/658627295","on-658627295") -> on-658627295 | C32: Vitória da Conquista | D32: BA | E32: NORDESTE | F32: Avaliador 1 | G32: 20 | H32: 15 | I32: 15 | J32: 10 | K32: 10 | L32: 10 | M32: 10 | N32: 10 | O32: 0 | P32: 3 | Q32: 3 | R32: 0 | S32: 0 | T32: 0 | U32: 106 | W32: =AVERAGE(U32,U33) -> 99.5 | X32: PRÉ-SELECIONADO
A33: GRUPOS, COLETIVOS, CREW | B33: =HYPERLINK("https://mapas.cultura.gov.br/inscricao/658627295","on-658627295") -> on-658627295 | C33: Vitória da Conquista | D33: BA | E33: NORDESTE | F33: Avaliador 2 | G33: 20 | H33: 15 | I33: 12 | J33: 8 | K33: 8 | L33: 8 | M33: 8 | N33: 8 | O33: 0 | P33: 3 | Q33: 3 | R33: 0 | S33: 0 | T33: 0 | U33: 93 | W33: =W32 -> 99.5 | X33: =X32 -> PRÉ-SELECIONADO
A34: GRUPOS, COLETIVOS, CREW | B34: =HYPERLINK("https://mapas.cultura.gov.br/inscricao/670611959","on-670611959") -> on-670611959 | C34: Salvador | D34: BA | E34: NORDESTE | F34: Avaliador 1 | G34: 20 | H34: 15 | I34: 15 | J34: 8 | K34: 8 | L34: 10 | M34: 10 | N34: 8 | O34: 0 | P34: 0 | Q34: 3 | R34: 0 | S34: 0 | T34: 0 | U34: 97 | W34: =AVERAGE(U34,U35) -> 99 | X34: PRÉ-SELECIONADO
A35: GRUPOS, COLETIVOS, CREW | B35: =HYPERLINK("https://mapas.cultura.gov.br/inscricao/670611959","on-670611959") -> on-670611959 | C35: Salvador | D35: BA | E35: NORDESTE | F35: Avaliador 2 | G35: 20 | H35: 15 | I35: 15 | J35: 10 | K35: 10 | L35: 10 | M35: 10 | N35: 8 | O35: 0 | P35: 0 | Q35: 3 | R35: 0 | S35: 0 | T35: 0 | U35: 101 | W35: =W34 -> 99 | X35: =X34 -> PRÉ-SELECIONADO
A36: GRUPOS, COLETIVOS, CREW | B36: =HYPERLINK("https://mapas.cultura.gov.br/inscricao/649827968","on-649827968") -> on-649827968 | C36: Recife | D36: PE | E36: NORDESTE | F36: Avaliador 1 | G36: 20 | H36: 15 | I36: 12 | J36: 8 | K36: 8 | L36: 8 | M36: 8 | N36: 8 | O36: 0 | P36: 3 | Q36: 3 | R36: 0 | S36: 3 | T36: 0 | U36: 96 | W36: =AVERAGE(U36,U37) -> 99 | X36: PRÉ-SELECIONADO
A37: GRUPOS, COLETIVOS, CREW | B37: =HYPERLINK("https://mapas.cultura.gov.br/inscricao/649827968","on-649827968") -> on-649827968 | C37: Recife | D37: PE | E37: NORDESTE | F37: Avaliador 2 | G37: 20 | H37: 15 | I37: 12 | J37: 10 | K37: 8 | L37: 8 | M37: 10 | N37: 10 | O37: 0 | P37: 3 | Q37: 3 | R37: 0 | S37: 3 | T37: 0 | U37: 102 | W37: =W36 -> 99 | X37: =X36 -> PRÉ-SELECIONADO
A38: GRUPOS, COLETIVOS, CREW | B38: =HYPERLINK("https://mapas.cultura.gov.br/inscricao/2134608179","on-2134608179") -> on-2134608179 | C38: Teresina | D38: PI | E38: NORDESTE | F38: Avaliador 1 | G38: 20 | H38: 15 | I38: 15 | J38: 8 | K38: 10 | L38: 10 | M38: 10 | N38: 8 | O38: 0 | P38: 0 | Q38: 3 | R38: 0 | S38: 0 | T38: 0 | U38: 99 | W38: =AVERAGE(U38,U39) -> 98.5 | X38: PRÉ-SELECIONADO
A39: GRUPOS, COLETIVOS, CREW | B39: =HYPERLINK("https://mapas.cultura.gov.br/inscricao/2134608179","on-2134608179") -> on-2134608179 | C39: Teresina | D39: PI | E39: NORDESTE | F39: Avaliador 2 | G39: 20 | H39: 15 | I39: 15 | J39: 10 | K39: 10 | L39: 10 | M39: 10 | N39: 5 | O39: 0 | P39: 0 | Q39: 3 | R39: 0 | S39: 0 | T39: 0 | U39: 98 | W39: =W38 -> 98.5 | X39: =X38 -> PRÉ-SELECIONADO
A40: GRUPOS, COLETIVOS, CREW | B40: =HYPERLINK("https://mapas.cultura.gov.br/inscricao/210547287","on-210547287") -> on-210547287 | C40: Teresina | D40: PI | E40: NORDESTE | F40: Avaliador 1 | G40: 20 | H40: 15 | I40: 12 | J40: 10 | K40: 8 | L40: 10 | M40: 10 | N40: 10 | O40: 0 | P40: 3 | Q40: 0 | R40: 0 | S40: 0 | T40: 0 | U40: 98 | W40: =AVERAGE(U40,U41) -> 98 | X40: PRÉ-SELECIONADO
A41: GRUPOS, COLETIVOS, CREW | B41: =HYPERLINK("https://mapas.cultura.gov.br/inscricao/210547287","on-210547287") -> on-210547287 | C41: Teresina | D41: PI | E41: NORDESTE | F41: Avaliador 2 | G41: 20 | H41: 15 | I41: 12 | J41: 10 | K41: 10 | L41: 10 | M41: 10 | N41: 8 | O41: 0 | P41: 3 | Q41: 0 | R41: 0 | S41: 0 | T41: 0 | U41: 98 | W41: =W40 -> 98 | X41: =X40 -> PRÉ-SELECIONADO
A42: GRUPOS, COLETIVOS, CREW | B42: =HYPERLINK("https://mapas.cultura.gov.br/inscricao/916895458","on-916895458") -> on-916895458 | C42: Salvador | D42: BA | E42: NORDESTE | F42: Avaliador 1 | G42: 20 | H42: 15 | I42: 8 | J42: 8 | K42: 8 | L42: 10 | M42: 8 | N42: 8 | O42: 0 | P42: 3 | Q42: 3 | R42: 0 | S42: 3 | T42: 0 | U42: 94 | W42: =AVERAGE(U42,U43) -> 97.5 | X42: CLASSIFICADO
A43: GRUPOS, COLETIVOS, CREW | B43: =HYPERLINK("https://mapas.cultura.gov.br/inscricao/916895458","on-916895458") -> on-916895458 | C43: Salvador | D43: BA | E43: NORDESTE | F43: Avaliador 3 | G43: 20 | H43: 15 | I43: 15 | J43: 8 | K43: 8 | L43: 10 | M43: 8 | N43: 8 | O43: 0 | P43: 3 | Q43: 3 | R43: 0 | S43: 3 | T43: 0 | U43: 101 | W43: =W42 -> 97.5 | X43: =X42 -> CLASSIFICADO
A44: GRUPOS, COLETIVOS, CREW | B44: =HYPERLINK("https://mapas.cultura.gov.br/inscricao/990891404","on-990891404") -> on-990891404 | C44: Lauro de Freitas | D44: BA | E44: NORDESTE | F44: Avaliador 1 | G44: 15 | H44: 15 | I44: 15 | J44: 3 | K44: 10 | L44: 10 | M44: 10 | N44: 8 | O44: 0 | P44: 0 | Q44: 3 | R44: 3 | S44: 3 | T44: 0 | U44: 95 | W44: =AVERAGE(U44,U45) -> 97.5 | X44: CLASSIFICADO
A45: GRUPOS, COLETIVOS, CREW | B45: =HYPERLINK("https://mapas.cultura.gov.br/inscricao/990891404","on-990891404") -> on-990891404 | C45: Lauro de Freitas | D45: BA | E45: NORDESTE | F45: Avaliador 2 | G45: 15 | H45: 15 | I45: 15 | J45: 10 | K45: 10 | L45: 10 | M45: 8 | N45: 8 | O45: 0 | P45: 0 | Q45: 3 | R45: 3 | S45: 3 | U45: 100 | W45: =W44 -> 97.5 | X45: =X44 -> CLASSIFICADO
A46: GRUPOS, COLETIVOS, CREW | B46: =HYPERLINK("https://mapas.cultura.gov.br/inscricao/1141675997","on-1141675997") -> on-1141675997 | C46: João Pessoa | D46: PB | E46: NORDESTE | F46: Avaliador 1 | G46: 20 | H46: 15 | I46: 15 | J46: 8 | K46: 10 | L46: 10 | M46: 10 | N46: 5 | O46: 0 | P46: 3 | Q46: 0 | R46: 3 | S46: 0 | T46: 0 | U46: 99 | W46: =AVERAGE(U46,U47) -> 96.5 | X46: CLASSIFICADO
A47: GRUPOS, COLETIVOS, CREW | B47: =HYPERLINK("https://mapas.cultura.gov.br/inscricao/1141675997","on-1141675997") -> on-1141675997 | C47: João Pessoa | D47: PB | E47: NORDESTE | F47: Avaliador 2 | G47: 20 | H47: 15 | I47: 15 | J47: 5 | K47: 10 | L47: 10 | M47: 10 | N47: 3 | O47: 0 | P47: 3 | Q47: 0 | R47: 3 | S47: 0 | T47: 0 | U47: 94 | W47: =W46 -> 96.5 | X47: =X46 -> CLASSIFICADO
A48: GRUPOS, COLETIVOS, CREW | B48: =HYPERLINK("https://mapas.cultura.gov.br/inscricao/1634132139","on-1634132139") -> on-1634132139 | C48: Parnaiba | D48: PI | E48: NORDESTE | F48: Avaliador 1 | G48: 20 | H48: 15 | I48: 12 | J48: 10 | K48: 10 | L48: 10 | M48: 8 | N48: 5 | O48: 0 | P48: 3 | Q48: 3 | R48: 0 | S48: 0 | T48: 0 | U48: 96 | W48: =AVERAGE(U48,U49) -> 96.5 | X48: CLASSIFICADO
A49: GRUPOS, COLETIVOS, CREW | B49: =HYPERLINK("https://mapas.cultura.gov.br/inscricao/1634132139","on-1634132139") -> on-1634132139 | C49: Parnaiba | D49: PI | E49: NORDESTE | F49: Avaliador 2 | G49: 20 | H49: 15 | I49: 15 | J49: 10 | K49: 10 | L49: 10 | M49: 8 | N49: 3 | O49: 0 | P49: 3 | Q49: 3 | R49: 0 | S49: 0 | T49: 0 | U49: 97 | W49: =W48 -> 96.5 | X49: =X48 -> CLASSIFICADO
A50: GRUPOS, COLETIVOS, CREW | B50: =HYPERLINK("https://mapas.cultura.gov.br/inscricao/93173625","on-93173625") -> on-93173625 | C50: Teresina | D50: PI | E50: NORDESTE | F50: Avaliador 1 | G50: 20 | H50: 15 | I50: 12 | J50: 10 | K50: 10 | L50: 10 | M50: 10 | N50: 8 | O50: 0 | P50: 0 | Q50: 0 | R50: 0 | S50: 3 | T50: 0 | U50: 98 | W50: =AVERAGE(U50,U51) -> 96.5 | X50: CLASSIFICADO
A51: GRUPOS, COLETIVOS, CREW | B51: =HYPERLINK("https://mapas.cultura.gov.br/inscricao/93173625","on-93173625") -> on-93173625 | C51: Teresina | D51: PI | E51: NORDESTE | F51: Avaliador 2 | G51: 20 | H51: 15 | I51: 12 | J51: 10 | K51: 10 | L51: 10 | M51: 10 | N51: 5 | O51: 0 | P51: 0 | Q51: 0 | R51: 0 | S51: 3 | T51: 0 | U51: 95 | W51: =W50 -> 96.5 | X51: =X50 -> CLASSIFICADO
A52: GRUPOS, COLETIVOS, CREW | B52: =HYPERLINK("https://mapas.cultura.gov.br/inscricao/256283985","on-256283985") -> on-256283985 | C52: João Pessoa | D52: PB | E52: NORDESTE | F52: Avaliador 1 | G52: 20 | H52: 15 | I52: 15 | J52: 8 | K52: 10 | L52: 10 | M52: 10 | N52: 8 | O52: 0 | P52: 0 | Q52: 0 | R52: 0 | S52: 0 | T52: 0 | U52: 96 | W52: =AVERAGE(U52,U53) -> 96 | X52: CLASSIFICADO
A53: GRUPOS, COLETIVOS, CREW | B53: =HYPERLINK("https://mapas.cultura.gov.br/inscricao/256283985","on-256283985") -> on-256283985 | C53: João Pessoa | D53: PB | E53: NORDESTE | F53: Avaliador 2 | G53: 20 | H53: 15 | I53: 15 | J53: 8 | K53: 10 | L53: 10 | M53: 10 | N53: 8 | O53: 0 | P53: 0 | Q53: 0 | R53: 0 | S53: 0 | T53: 0 | U53: 96 | W53: =W52 -> 96 | X53: =X52 -> CLASSIFICADO
A54: GRUPOS, COLETIVOS, CREW | B54: =HYPERLINK("https://mapas.cultura.gov.br/inscricao/300999721","on-300999721") -> on-300999721 | C54: Salvador | D54: BA | E54: NORDESTE | F54: Avaliador 1 | G54: 20 | H54: 15 | I54: 12 | J54: 8 | K54: 10 | L54: 10 | M54: 10 | N54: 10 | O54: 0 | P54: 0 | Q54: 3 | R54: 0 | S54: 0 | T54: 0 | U54: 98 | W54: =AVERAGE(U54,U55) -> 96 | X54: CLASSIFICADO
A55: GRUPOS, COLETIVOS, CREW | B55: =HYPERLINK("https://mapas.cultura.gov.br/inscricao/300999721","on-300999721") -> on-300999721 | C55: Salvador | D55: BA | E55: NORDESTE | F55: Avaliador 2 | G55: 20 | H55: 15 | I55: 12 | J55: 8 | K55: 8 | L55: 8 | M55: 10 | N55: 10 | O55: 0 | P55: 0 | Q55: 3 | R55: 0 | S55: 0 | T55: 0 | U55: 94 | W55: =W54 -> 96 | X55: =X54 -> CLASSIFICADO
A56: GRUPOS, COLETIVOS, CREW | B56: =HYPERLINK("https://mapas.cultura.gov.br/inscricao/1919212039","on-1919212039") -> on-1919212039 | C56: Palmeiras | D56: BA | E56: NORDESTE | F56: Avaliador 1 | G56: 20 | H56: 15 | I56: 12 | J56: 8 | K56: 10 | L56: 10 | M56: 5 | N56: 10 | O56: 0 | P56: 0 | Q56: 3 | R56: 3 | S56: 0 | T56: 0 | U56: 96 | W56: =AVERAGE(U56,U57) -> 96 | X56: CLASSIFICADO
A57: GRUPOS, COLETIVOS, CREW | B57: =HYPERLINK("https://mapas.cultura.gov.br/inscricao/1919212039","on-1919212039") -> on-1919212039 | C57: Palmeiras | D57: BA | E57: NORDESTE | F57: Avaliador 2 | G57: 20 | H57: 15 | I57: 12 | J57: 8 | K57: 10 | L57: 10 | M57: 5 | N57: 10 | O57: 0 | P57: 0 | Q57: 3 | R57: 3 | S57: 0 | T57: 0 | U57: 96 | W57: =W56 -> 96 | X57: =X56 -> CLASSIFICADO
A58: GRUPOS, COLETIVOS, CREW | B58: =HYPERLINK("https://mapas.cultura.gov.br/inscricao/1715835111","on-1715835111") -> on-1715835111 | C58: Serrinha | D58: BA | E58: NORDESTE | F58: Avaliador 1 | G58: 20 | H58: 15 | I58: 12 | J58: 8 | K58: 8 | L58: 10 | M58: 10 | N58: 8 | O58: 0 | P58: 0 | Q58: 3 | R58: 0 | S58: 0 | T58: 0 | U58: 94 | W58: =AVERAGE(U58,U59) -> 96 | X58: CLASSIFICADO
A59: GRUPOS, COLETIVOS, CREW | B59: =HYPERLINK("https://mapas.cultura.gov.br/inscricao/1715835111","on-1715835111") -> on-1715835111 | C59: Serrinha | D59: BA | E59: NORDESTE | F59: Avaliador 2 | G59: 20 | H59: 15 | I59: 12 | J59: 10 | K59: 8 | L59: 10 | M59: 10 | N59: 10 | O59: 0 | P59: 0 | Q59: 3 | R59: 0 | S59: 0 | T59: 0 | U59: 98 | W59: =W58 -> 96 | X59: =X58 -> CLASSIFICADO
A60: GRUPOS, COLETIVOS, CREW | B60: =HYPERLINK("https://mapas.cultura.gov.br/inscricao/1740866054","on-1740866054") -> on-1740866054 | C60: Salvador | D60: BA | E60: NORDESTE | F60: Avaliador 1 | G60: 15 | H60: 15 | I60: 15 | J60: 10 | K60: 10 | L60: 10 | M60: 5 | N60: 10 | O60: 0 | P60: 3 | Q60: 0 | R60: 0 | S60: 3 | T60: 0 | U60: 96 | W60: =AVERAGE(U60,U61) -> 96 | X60: CLASSIFICADO
A61: GRUPOS, COLETIVOS, CREW | B61: =HYPERLINK("https://mapas.cultura.gov.br/inscricao/1740866054","on-1740866054") -> on-1740866054 | C61: Salvador | D61: BA | E61: NORDESTE | F61: Avaliador 2 | G61: 15 | H61: 15 | I61: 12 | J61: 10 | K61: 10 | L61: 10 | M61: 8 | N61: 10 | O61: 0 | P61: 3 | Q61: 0 | R61: 0 | S61: 3 | T61: 0 | U61: 96 | W61: =W60 -> 96 | X61: =X60 -> CLASSIFICADO
A62: GRUPOS, COLETIVOS, CREW | B62: =HYPERLINK("https://mapas.cultura.gov.br/inscricao/1439299428","on-1439299428") -> on-1439299428 | C62: João Pessoa | D62: PB | E62: NORDESTE | F62: Avaliador 1 | G62: 20 | H62: 12 | I62: 15 | J62: 8 | K62: 10 | L62: 10 | M62: 8 | N62: 8 | O62: 0 | P62: 0 | Q62: 3 | R62: 0 | S62: 0 | T62: 0 | U62: 94 | W62: =AVERAGE(U62,U63) -> 96 | X62: CLASSIFICADO
A63: GRUPOS, COLETIVOS, CREW | B63: =HYPERLINK("https://mapas.cultura.gov.br/inscricao/1439299428","on-1439299428") -> on-1439299428 | C63: João Pessoa | D63: PB | E63: NORDESTE | F63: Avaliador 2 | G63: 20 | H63: 12 | I63: 15 | J63: 10 | K63: 10 | L63: 10 | M63: 10 | N63: 8 | O63: 0 | P63: 0 | Q63: 3 | R63: 0 | S63: 0 | T63: 0 | U63: 98 | W63: =W62 -> 96 | X63: =X62 -> CLASSIFICADO
A64: GRUPOS, COLETIVOS, CREW | B64: =HYPERLINK("https://mapas.cultura.gov.br/inscricao/1740963224","on-1740963224") -> on-1740963224 | C64: Salvador | D64: BA | E64: NORDESTE | F64: Avaliador 1 | G64: 15 | H64: 15 | I64: 12 | J64: 10 | K64: 10 | L64: 10 | M64: 10 | N64: 10 | O64: 0 | P64: 3 | Q64: 3 | R64: 0 | S64: 3 | T64: 0 | U64: 101 | W64: =AVERAGE(U64,U65) -> 95.5 | X64: CLASSIFICADO
A65: GRUPOS, COLETIVOS, CREW | B65: =HYPERLINK("https://mapas.cultura.gov.br/inscricao/1740963224","on-1740963224") -> on-1740963224 | C65: Salvador | D65: BA | E65: NORDESTE | F65: Avaliador 2 | G65: 15 | H65: 12 | I65: 12 | J65: 8 | K65: 8 | L65: 8 | M65: 10 | N65: 8 | O65: 0 | P65: 3 | Q65: 3 | R65: 0 | S65: 3 | T65: 0 | U65: 90 | W65: =W64 -> 95.5 | X65: =X64 -> CLASSIFICADO
A66: GRUPOS, COLETIVOS, CREW | B66: =HYPERLINK("https://mapas.cultura.gov.br/inscricao/631080332","on-631080332") -> on-631080332 | C66: Salvador | D66: BA | E66: NORDESTE | F66: Avaliador 1 | G66: 15 | H66: 15 | I66: 15 | J66: 8 | K66: 8 | L66: 10 | M66: 10 | N66: 10 | O66: 0 | P66: 3 | Q66: 0 | R66: 0 | S66: 3 | T66: 0 | U66: =SUM(G66:T66) -> 97 | W66: =AVERAGE(U66,U67) -> 95 | X66: CLASSIFICADO
A67: GRUPOS, COLETIVOS, CREW | B67: =HYPERLINK("https://mapas.cultura.gov.br/inscricao/631080332","on-631080332") -> on-631080332 | C67: Salvador | D67: BA | E67: NORDESTE | F67: Avaliador 2 | G67: 15 | H67: 15 | I67: 12 | J67: 10 | K67: 5 | L67: 10 | M67: 10 | N67: 10 | O67: 0 | P67: 3 | Q67: 0 | R67: 0 | S67: 3 | T67: 0 | U67: 93 | W67: =W66 -> 95 | X67: =X66 -> CLASSIFICADO
A68: GRUPOS, COLETIVOS, CREW | B68: =HYPERLINK("https://mapas.cultura.gov.br/inscricao/1773524589","on-1773524589") -> on-1773524589 | C68: Maracanaú | D68: CE | E68: NORDESTE | F68: Avaliador 1 | G68: 20 | H68: 15 | I68: 12 | J68: 10 | K68: 10 | L68: 10 | M68: 10 | N68: 8 | O68: 3 | P68: 3 | Q68: 3 | R68: 0 | S68: 0 | T68: 0 | U68: 104 | W68: =AVERAGE(U68,U69) -> 95 | X68: CLASSIFICADO
A69: GRUPOS, COLETIVOS, CREW | B69: =HYPERLINK("https://mapas.cultura.gov.br/inscricao/1773524589","on-1773524589") -> on-1773524589 | C69: Maracanaú | D69: CE | E69: NORDESTE | F69: Avaliador 2 | G69: 20 | H69: 8 | I69: 12 | J69: 8 | K69: 8 | L69: 8 | M69: 8 | N69: 5 | O69: 3 | P69: 3 | Q69: 3 | R69: 0 | S69: 0 | T69: 0 | U69: 86 | W69: =W68 -> 95 | X69: =X68 -> CLASSIFICADO
A70: GRUPOS, COLETIVOS, CREW | B70: =HYPERLINK("https://mapas.cultura.gov.br/inscricao/1167782150","on-1167782150") -> on-1167782150 | C70: São Luis | D70: MA | E70: NORDESTE | F70: Avaliador 1 | G70: 20 | H70: 15 | I70: 15 | J70: 10 | K70: 10 | L70: 10 | M70: 10 | N70: 5 | O70: 0 | P70: 0 | Q70: 0 | R70: 0 | S70: 0 | T70: 0 | U70: 95 | W70: =AVERAGE(U70,U71) -> 95 | X70: CLASSIFICADO
A71: GRUPOS, COLETIVOS, CREW | B71: =HYPERLINK("https://mapas.cultura.gov.br/inscricao/1167782150","on-1167782150") -> on-1167782150 | C71: São Luis | D71: MA | E71: NORDESTE | F71: Avaliador 2 | G71: 20 | H71: 12 | I71: 15 | J71: 10 | K71: 8 | L71: 10 | M71: 10 | N71: 10 | O71: 0 | P71: 0 | Q71: 0 | R71: 0 | S71: 0 | T71: 0 | U71: 95 | W71: =W70 -> 95 | X71: =X70 -> CLASSIFICADO
A72: GRUPOS, COLETIVOS, CREW | B72: =HYPERLINK("https://mapas.cultura.gov.br/inscricao/1565438534","on-1565438534") -> on-1565438534 | C72: Natal | D72: RN | E72: NORDESTE | F72: Avaliador 1 | G72: 20 | H72: 15 | I72: 15 | J72: 10 | K72: 5 | L72: 8 | M72: 10 | N72: 8 | O72: 0 | P72: 3 | Q72: 0 | R72: 0 | S72: 3 | T72: 0 | U72: 97 | W72: =AVERAGE(U72,U73) -> 94.5 | X72: CLASSIFICADO
A73: GRUPOS, COLETIVOS, CREW | B73: =HYPERLINK("https://mapas.cultura.gov.br/inscricao/1565438534","on-1565438534") -> on-1565438534 | C73: Natal | D73: RN | E73: NORDESTE | F73: Avaliador 2 | G73: 15 | H73: 12 | I73: 15 | J73: 10 | K73: 8 | L73: 10 | M73: 8 | N73: 8 | O73: 0 | P73: 3 | Q73: 0 | R73: 0 | S73: 3 | T73: 0 | U73: 92 | W73: =W72 -> 94.5 | X73: =X72 -> CLASSIFICADO
A74: GRUPOS, COLETIVOS, CREW | B74: =HYPERLINK("https://mapas.cultura.gov.br/inscricao/321754122","on-321754122") -> on-321754122 | C74: Valença | D74: BA | E74: NORDESTE | F74: Avaliador 1 | G74: 15 | H74: 15 | I74: 15 | J74: 5 | K74: 8 | L74: 10 | M74: 8 | N74: 8 | O74: 0 | P74: 3 | Q74: 3 | R74: 0 | S74: 0 | T74: 0 | U74: 90 | W74: =AVERAGE(U74,U75) -> 93.5 | X74: CLASSIFICADO
A75: GRUPOS, COLETIVOS, CREW | B75: =HYPERLINK("https://mapas.cultura.gov.br/inscricao/321754122","on-321754122") -> on-321754122 | C75: Valença | D75: BA | E75: NORDESTE | F75: Avaliador 2 | G75: 20 | H75: 15 | I75: 15 | J75: 10 | K75: 8 | L75: 10 | M75: 8 | N75: 5 | O75: 0 | P75: 3 | Q75: 3 | R75: 0 | S75: 0 | T75: 0 | U75: 97 | W75: =W74 -> 93.5 | X75: =X74 -> CLASSIFICADO
A76: GRUPOS, COLETIVOS, CREW | B76: =HYPERLINK("https://mapas.cultura.gov.br/inscricao/1277873375","on-1277873375") -> on-1277873375 | C76: Salvador | D76: BA | E76: NORDESTE | F76: Avaliador 1 | G76: 15 | H76: 15 | I76: 15 | J76: 8 | K76: 10 | L76: 10 | M76: 8 | N76: 8 | O76: 0 | P76: 0 | Q76: 3 | R76: 0 | S76: 0 | T76: 0 | U76: 92 | W76: =AVERAGE(U76,U77) -> 92.5 | X76: CLASSIFICADO
A77: GRUPOS, COLETIVOS, CREW | B77: =HYPERLINK("https://mapas.cultura.gov.br/inscricao/1277873375","on-1277873375") -> on-1277873375 | C77: Salvador | D77: BA | E77: NORDESTE | F77: Avaliador 2 | G77: 20 | H77: 12 | I77: 12 | J77: 10 | K77: 8 | L77: 10 | M77: 10 | N77: 8 | O77: 0 | P77: 0 | Q77: 3 | R77: 0 | S77: 0 | T77: 0 | U77: 93 | W77: =W76 -> 92.5 | X77: =X76 -> CLASSIFICADO
A78: GRUPOS, COLETIVOS, CREW | B78: =HYPERLINK("https://mapas.cultura.gov.br/inscricao/1914549046","on-1914549046") -> on-1914549046 | C78: Ilhéus | D78: BA | E78: NORDESTE | F78: Avaliador 1 | G78: 20 | H78: 15 | I78: 15 | J78: 10 | K78: 8 | L78: 10 | M78: 10 | N78: 3 | O78: 0 | P78: 3 | Q78: 3 | R78: 0 | S78: 0 | T78: 0 | U78: 97 | W78: =AVERAGE(U78,U79) -> 92.5 | X78: CLASSIFICADO
A79: GRUPOS, COLETIVOS, CREW | B79: =HYPERLINK("https://mapas.cultura.gov.br/inscricao/1914549046","on-1914549046") -> on-1914549046 | C79: Ilhéus | D79: BA | E79: NORDESTE | F79: Avaliador 2 | G79: 15 | H79: 12 | I79: 15 | J79: 10 | K79: 5 | L79: 10 | M79: 10 | N79: 5 | O79: 0 | P79: 3 | Q79: 3 | R79: 0 | S79: 0 | T79: 0 | U79: 88 | W79: =W78 -> 92.5 | X79: =X78 -> CLASSIFICADO
A80: GRUPOS, COLETIVOS, CREW | B80: =HYPERLINK("https://mapas.cultura.gov.br/inscricao/1455603774","on-1455603774") -> on-1455603774 | C80: Salvador | D80: BA | E80: NORDESTE | F80: Avaliador 1 | G80: 15 | H80: 15 | I80: 15 | J80: 8 | K80: 8 | L80: 10 | M80: 8 | N80: 8 | O80: 0 | P80: 3 | Q80: 3 | R80: 0 | S80: 0 | T80: 0 | U80: 93 | W80: =AVERAGE(U80,U81) -> 92.5 | X80: CLASSIFICADO
A81: GRUPOS, COLETIVOS, CREW | B81: =HYPERLINK("https://mapas.cultura.gov.br/inscricao/1455603774","on-1455603774") -> on-1455603774 | C81: Salvador | D81: BA | E81: NORDESTE | F81: Avaliador 2 | G81: 15 | H81: 15 | I81: 12 | J81: 8 | K81: 8 | L81: 10 | M81: 10 | N81: 8 | O81: 0 | P81: 3 | Q81: 3 | R81: 0 | S81: 0 | T81: 0 | U81: 92 | W81: =W80 -> 92.5 | X81: =X80 -> CLASSIFICADO
A82: GRUPOS, COLETIVOS, CREW | B82: =HYPERLINK("https://mapas.cultura.gov.br/inscricao/1390458455","on-1390458455") -> on-1390458455 | C82: João Pessoa | D82: PB | E82: NORDESTE | F82: Avaliador 1 | G82: 15 | H82: 12 | I82: 12 | J82: 10 | K82: 8 | L82: 5 | M82: 8 | N82: 10 | O82: 0 | P82: 3 | Q82: 0 | R82: 0 | S82: 3 | T82: 0 | U82: 86 | W82: =AVERAGE(U82,U83) -> 91.5 | X82: CLASSIFICADO
A83: GRUPOS, COLETIVOS, CREW | B83: =HYPERLINK("https://mapas.cultura.gov.br/inscricao/1390458455","on-1390458455") -> on-1390458455 | C83: João Pessoa | D83: PB | E83: NORDESTE | F83: Avaliador 2 | G83: 20 | H83: 15 | I83: 15 | J83: 8 | K83: 10 | L83: 10 | M83: 10 | N83: 3 | O83: 0 | P83: 3 | Q83: 0 | R83: 0 | S83: 3 | T83: 0 | U83: 97 | W83: =W82 -> 91.5 | X83: =X82 -> CLASSIFICADO
A84: GRUPOS, COLETIVOS, CREW | B84: =HYPERLINK("https://mapas.cultura.gov.br/inscricao/156863044","on-156863044") -> on-156863044 | C84: União dos Palmares | D84: AL | E84: NORDESTE | F84: Avaliador 1 | G84: 20 | H84: 15 | I84: 15 | J84: 8 | K84: 8 | L84: 10 | M84: 10 | N84: 10 | O84: 0 | P84: 0 | Q84: 0 | R84: 0 | S84: 0 | T84: 0 | U84: 96 | W84: =AVERAGE(U84,U85) -> 89.5 | X84: CLASSIFICADO
A85: GRUPOS, COLETIVOS, CREW | B85: =HYPERLINK("https://mapas.cultura.gov.br/inscricao/156863044","on-156863044") -> on-156863044 | C85: União dos Palmares | D85: AL | E85: NORDESTE | F85: Avaliador 2 | G85: 15 | H85: 15 | I85: 12 | J85: 5 | K85: 10 | L85: 10 | M85: 8 | N85: 8 | O85: 0 | P85: 0 | Q85: 0 | R85: 0 | S85: 0 | T85: 0 | U85: 83 | W85: =W84 -> 89.5 | X85: =X84 -> CLASSIFICADO
A86: GRUPOS, COLETIVOS, CREW | B86: =HYPERLINK("https://mapas.cultura.gov.br/inscricao/1909251883","on-1909251883") -> on-1909251883 | C86: Maceió | D86: AL | E86: NORDESTE | F86: Avaliador 1 | G86: 15 | H86: 15 | I86: 12 | J86: 8 | K86: 10 | L86: 10 | M86: 10 | N86: 10 | O86: 0 | P86: 0 | Q86: 3 | R86: 0 | S86: 0 | T86: 0 | U86: 93 | W86: =AVERAGE(U86,U87) -> 89.5 | X86: CLASSIFICADO
A87: GRUPOS, COLETIVOS, CREW | B87: =HYPERLINK("https://mapas.cultura.gov.br/inscricao/1909251883","on-1909251883") -> on-1909251883 | C87: Maceió | D87: AL | E87: NORDESTE | F87: Avaliador 2 | G87: 15 | H87: 15 | I87: 12 | J87: 5 | K87: 10 | L87: 10 | M87: 8 | N87: 8 | O87: 0 | P87: 0 | Q87: 3 | R87: 0 | S87: 0 | T87: 0 | U87: 86 | W87: =W86 -> 89.5 | X87: =X86 -> CLASSIFICADO
A88: GRUPOS, COLETIVOS, CREW | B88: =HYPERLINK("https://mapas.cultura.gov.br/inscricao/1391710829","on-1391710829") -> on-1391710829 | C88: Amargosa | D88: BA | E88: NORDESTE | F88: Avaliador 1 | G88: 15 | H88: 15 | I88: 15 | J88: 8 | K88: 8 | L88: 10 | M88: 3 | N88: 0 | O88: 0 | P88: 0 | Q88: 3 | R88: 0 | S88: 0 | T88: 0 | U88: 77 | W88: =AVERAGE(U88,U89) -> 89 | X88: CLASSIFICADO
A89: GRUPOS, COLETIVOS, CREW | B89: =HYPERLINK("https://mapas.cultura.gov.br/inscricao/1391710829","on-1391710829") -> on-1391710829 | C89: Amargosa | D89: BA | E89: NORDESTE | F89: Avaliador 2 | G89: 20 | H89: 15 | I89: 15 | J89: 10 | K89: 10 | L89: 10 | M89: 10 | N89: 8 | O89: 0 | P89: 0 | Q89: 3 | R89: 0 | S89: 0 | T89: 0 | U89: 101 | W89: =W88 -> 89 | X89: =X88 -> CLASSIFICADO
A90: GRUPOS, COLETIVOS, CREW | B90: =HYPERLINK("https://mapas.cultura.gov.br/inscricao/1226081486","on-1226081486") -> on-1226081486 | C90: Vitória da Conquista | D90: BA | E90: NORDESTE | F90: Avaliador 1 | G90: 15 | H90: 15 | I90: 15 | J90: 8 | K90: 8 | L90: 10 | M90: 10 | N90: 8 | O90: 0 | P90: 0 | Q90: 3 | R90: 0 | S90: 3 | T90: 0 | U90: 95 | W90: =AVERAGE(U90,U91) -> 88.5 | X90: CLASSIFICADO
A91: GRUPOS, COLETIVOS, CREW | B91: =HYPERLINK("https://mapas.cultura.gov.br/inscricao/1226081486","on-1226081486") -> on-1226081486 | C91: Vitória da Conquista | D91: BA | E91: NORDESTE | F91: Avaliador 2 | G91: 15 | H91: 12 | I91: 12 | J91: 5 | K91: 8 | L91: 8 | M91: 8 | N91: 8 | O91: 0 | P91: 0 | Q91: 3 | R91: 0 | S91: 3 | T91: 0 | U91: 82 | W91: =W90 -> 88.5 | X91: =X90 -> CLASSIFICADO
A92: GRUPOS, COLETIVOS, CREW | B92: =HYPERLINK("https://mapas.cultura.gov.br/inscricao/634047977","on-634047977") -> on-634047977 | C92: Maceió | D92: AL | E92: NORDESTE | F92: Avaliador 1 | G92: 20 | H92: 15 | I92: 12 | J92: 5 | K92: 10 | L92: 10 | M92: 10 | N92: 8 | O92: 0 | P92: 0 | Q92: 3 | R92: 3 | S92: 0 | T92: 0 | U92: 96 | W92: =AVERAGE(U92,U93) -> 88.5 | X92: CLASSIFICADO
A93: GRUPOS, COLETIVOS, CREW | B93: =HYPERLINK("https://mapas.cultura.gov.br/inscricao/634047977","on-634047977") -> on-634047977 | C93: Maceió | D93: AL | E93: NORDESTE | F93: Avaliador 2 | G93: 15 | H93: 12 | I93: 12 | J93: 3 | K93: 10 | L93: 10 | M93: 10 | N93: 3 | O93: 0 | P93: 0 | Q93: 3 | R93: 3 | S93: 0 | T93: 0 | U93: 81 | W93: =W92 -> 88.5 | X93: =X92 -> CLASSIFICADO
A94: GRUPOS, COLETIVOS, CREW | B94: =HYPERLINK("https://mapas.cultura.gov.br/inscricao/1553309100","on-1553309100") -> on-1553309100 | C94: Paço do Lumiar | D94: MA | E94: NORDESTE | F94: Avaliador 1 | G94: 20 | H94: 15 | I94: 15 | J94: 8 | K94: 8 | L94: 8 | M94: 8 | N94: 8 | O94: 0 | P94: 0 | Q94: 3 | R94: 0 | S94: 0 | T94: 0 | U94: 93 | W94: =AVERAGE(U94,U95) -> 88.5 | X94: CLASSIFICADO
A95: GRUPOS, COLETIVOS, CREW | B95: =HYPERLINK("https://mapas.cultura.gov.br/inscricao/1553309100","on-1553309100") -> on-1553309100 | C95: Paço do Lumiar | D95: MA | E95: NORDESTE | F95: Avaliador 2 | G95: 20 | H95: 15 | I95: 15 | J95: 3 | K95: 5 | L95: 10 | M95: 8 | N95: 5 | O95: 0 | P95: 0 | Q95: 3 | R95: 0 | S95: 0 | T95: 0 | U95: 84 | W95: =W94 -> 88.5 | X95: =X94 -> CLASSIFICADO
A96: GRUPOS, COLETIVOS, CREW | B96: =HYPERLINK("https://mapas.cultura.gov.br/inscricao/368309670","on-368309670") -> on-368309670 | C96: Campo Formoso | D96: BA | E96: NORDESTE | F96: Avaliador 1 | G96: 10 | H96: 15 | I96: 15 | J96: 5 | K96: 8 | L96: 10 | M96: 8 | N96: 8 | O96: 0 | P96: 0 | Q96: 3 | R96: 0 | S96: 0 | T96: 0 | U96: 82 | W96: =AVERAGE(U96,U97) -> 88 | X96: CLASSIFICADO
A97: GRUPOS, COLETIVOS, CREW | B97: =HYPERLINK("https://mapas.cultura.gov.br/inscricao/368309670","on-368309670") -> on-368309670 | C97: Campo Formoso | D97: BA | E97: NORDESTE | F97: Avaliador 2 | G97: 20 | H97: 15 | I97: 12 | J97: 8 | K97: 8 | L97: 10 | M97: 10 | N97: 8 | O97: 0 | P97: 0 | Q97: 3 | R97: 0 | S97: 0 | T97: 0 | U97: 94 | W97: =W96 -> 88 | X97: =X96 -> CLASSIFICADO
A98: GRUPOS, COLETIVOS, CREW | B98: =HYPERLINK("https://mapas.cultura.gov.br/inscricao/1237705890","on-1237705890") -> on-1237705890 | C98: CRUZ | D98: CE | E98: NORDESTE | F98: Avaliador 1 | G98: 20 | H98: 15 | I98: 12 | J98: 5 | K98: 8 | L98: 10 | M98: 8 | N98: 10 | O98: 0 | P98: 0 | Q98: 3 | R98: 3 | S98: 0 | T98: 0 | U98: 94 | W98: =AVERAGE(U98,U99) -> 88 | X98: CLASSIFICADO
A99: GRUPOS, COLETIVOS, CREW | B99: =HYPERLINK("https://mapas.cultura.gov.br/inscricao/1237705890","on-1237705890") -> on-1237705890 | C99: CRUZ | D99: CE | E99: NORDESTE | F99: Avaliador 2 | G99: 15 | H99: 12 | I99: 15 | J99: 3 | K99: 10 | L99: 8 | M99: 8 | N99: 5 | O99: 0 | P99: 0 | Q99: 3 | R99: 3 | S99: 0 | T99: 0 | U99: 82 | W99: =W98 -> 88 | X99: =X98 -> CLASSIFICADO
A100: GRUPOS, COLETIVOS, CREW | B100: =HYPERLINK("https://mapas.cultura.gov.br/inscricao/364366622","on-364366622") -> on-364366622 | C100: João Pessoa | D100: PB | E100: NORDESTE | F100: Avaliador 1 | G100: 15 | H100: 15 | I100: 15 | J100: 5 | K100: 10 | L100: 10 | M100: 8 | N100: 10 | O100: 0 | P100: 0 | Q100: 0 | R100: 0 | S100: 0 | T100: 0 | U100: 88 | W100: =AVERAGE(U100,U101) -> 88 | X100: CLASSIFICADO
A101: GRUPOS, COLETIVOS, CREW | B101: =HYPERLINK("https://mapas.cultura.gov.br/inscricao/364366622","on-364366622") -> on-364366622 | C101: João Pessoa | D101: PB | E101: NORDESTE | F101: Avaliador 2 | G101: 20 | H101: 15 | I101: 15 | J101: 5 | K101: 10 | L101: 10 | M101: 10 | N101: 3 | O101: 0 | P101: 0 | Q101: 0 | R101: 0 | S101: 0 | T101: 0 | U101: 88 | W101: =W100 -> 88 | X101: =X100 -> CLASSIFICADO
A102: GRUPOS, COLETIVOS, CREW | B102: =HYPERLINK("https://mapas.cultura.gov.br/inscricao/996921626","on-996921626") -> on-996921626 | C102: João Pessoa | D102: PB | E102: NORDESTE | F102: Avaliador 1 | G102: 20 | H102: 15 | I102: 12 | J102: 8 | K102: 8 | L102: 8 | M102: 8 | N102: 5 | O102: 0 | P102: 3 | Q102: 0 | R102: 0 | S102: 0 | T102: 0 | U102: 87 | W102: =AVERAGE(U102,U103) -> 88 | X102: CLASSIFICADO
A103: GRUPOS, COLETIVOS, CREW | B103: =HYPERLINK("https://mapas.cultura.gov.br/inscricao/996921626","on-996921626") -> on-996921626 | C103: João Pessoa | D103: PB | E103: NORDESTE | F103: Avaliador 2 | G103: 20 | H103: 15 | I103: 15 | J103: 8 | K103: 5 | L103: 10 | M103: 10 | N103: 3 | O103: 0 | P103: 3 | Q103: 0 | R103: 0 | S103: 0 | T103: 0 | U103: 89 | W103: =W102 -> 88 | X103: =X102 -> CLASSIFICADO
A104: GRUPOS, COLETIVOS, CREW | B104: =HYPERLINK("https://mapas.cultura.gov.br/inscricao/343923650","on-343923650") -> on-343923650 | C104: Feira de Santana | D104: BA | E104: NORDESTE | F104: Avaliador 1 | G104: 15 | H104: 15 | I104: 12 | J104: 8 | K104: 8 | L104: 10 | M104: 10 | N104: 0 | O104: 0 | P104: 0 | Q104: 3 | R104: 0 | S104: 3 | T104: 0 | U104: 84 | W104: =AVERAGE(U104,U105) -> 87.5 | X104: CLASSIFICADO
A105: GRUPOS, COLETIVOS, CREW | B105: =HYPERLINK("https://mapas.cultura.gov.br/inscricao/343923650","on-343923650") -> on-343923650 | C105: Feira de Santana | D105: BA | E105: NORDESTE | F105: Avaliador 2 | G105: 10 | H105: 12 | I105: 15 | J105: 10 | K105: 10 | L105: 10 | M105: 10 | N105: 8 | O105: 0 | P105: 0 | Q105: 3 | R105: 0 | S105: 3 | T105: 0 | U105: 91 | W105: =W104 -> 87.5 | X105: =X104 -> CLASSIFICADO
A106: GRUPOS, COLETIVOS, CREW | B106: =HYPERLINK("https://mapas.cultura.gov.br/inscricao/1427628119","on-1427628119") -> on-1427628119 | C106: Salvador | D106: BA | E106: NORDESTE | F106: Avaliador 1 | G106: 10 | H106: 15 | I106: 15 | J106: 5 | K106: 8 | L106: 10 | M106: 10 | N106: 8 | O106: 0 | P106: 0 | Q106: 3 | R106: 0 | S106: 0 | T106: 0 | U106: 84 | W106: =AVERAGE(U106,U107) -> 87 | X106: CLASSIFICADO
A107: GRUPOS, COLETIVOS, CREW | B107: =HYPERLINK("https://mapas.cultura.gov.br/inscricao/1427628119","on-1427628119") -> on-1427628119 | C107: Salvador | D107: BA | E107: NORDESTE | F107: Avaliador 2 | G107: 15 | H107: 15 | I107: 12 | J107: 10 | K107: 5 | L107: 10 | M107: 10 | N107: 10 | Q107: 3 | R107: 0 | S107: 0 | T107: 0 | U107: 90 | W107: =W106 -> 87 | X107: =X106 -> CLASSIFICADO
A108: GRUPOS, COLETIVOS, CREW | B108: =HYPERLINK("https://mapas.cultura.gov.br/inscricao/271557732","on-271557732") -> on-271557732 | C108: Fortaleza | D108: CE | E108: NORDESTE | F108: Avaliador 1 | G108: 15 | H108: 15 | I108: 15 | J108: 8 | K108: 10 | L108: 10 | M108: 10 | N108: 8 | O108: 0 | P108: 0 | Q108: 0 | R108: 0 | S108: 0 | T108: 0 | U108: 91 | W108: =AVERAGE(U108,U109) -> 86 | X108: CLASSIFICADO
A109: GRUPOS, COLETIVOS, CREW | B109: =HYPERLINK("https://mapas.cultura.gov.br/inscricao/271557732","on-271557732") -> on-271557732 | C109: Fortaleza | D109: CE | E109: NORDESTE | F109: Avaliador 2 | G109: 20 | H109: 12 | I109: 12 | J109: 5 | K109: 8 | L109: 8 | M109: 8 | N109: 8 | O109: 0 | P109: 0 | Q109: 0 | R109: 0 | S109: 0 | T109: 0 | U109: 81 | W109: =W108 -> 86 | X109: =X108 -> CLASSIFICADO
A110: GRUPOS, COLETIVOS, CREW | B110: =HYPERLINK("https://mapas.cultura.gov.br/inscricao/1307032030","on-1307032030") -> on-1307032030 | C110: Parnamirim | D110: RN | E110: NORDESTE | F110: Avaliador 1 | G110: 20 | H110: 15 | I110: 12 | J110: 8 | K110: 10 | L110: 10 | M110: 10 | N110: 8 | O110: 0 | P110: 0 | Q110: 0 | R110: 0 | S110: 0 | T110: 0 | U110: 93 | W110: =AVERAGE(U110,U111) -> 85.5 | X110: CLASSIFICADO
A111: GRUPOS, COLETIVOS, CREW | B111: =HYPERLINK("https://mapas.cultura.gov.br/inscricao/1307032030","on-1307032030") -> on-1307032030 | C111: Parnamirim | D111: RN | E111: NORDESTE | F111: Avaliador 2 | G111: 15 | H111: 12 | I111: 15 | J111: 5 | K111: 8 | L111: 10 | M111: 8 | N111: 5 | O111: 0 | P111: 0 | Q111: 0 | R111: 0 | S111: 0 | T111: 0 | U111: 78 | W111: =W110 -> 85.5 | X111: =X110 -> CLASSIFICADO
A112: GRUPOS, COLETIVOS, CREW | B112: =HYPERLINK("https://mapas.cultura.gov.br/inscricao/1814817752","on-1814817752") -> on-1814817752 | C112: Crato | D112: CE | E112: NORDESTE | F112: Avaliador 1 | G112: 15 | H112: 12 | I112: 15 | J112: 8 | K112: 8 | L112: 10 | M112: 10 | N112: 5 | O112: 0 | P112: 0 | Q112: 3 | R112: 0 | S112: 0 | T112: 0 | U112: 86 | W112: =AVERAGE(U112,U113) -> 85 | X112: CLASSIFICADO
A113: GRUPOS, COLETIVOS, CREW | B113: =HYPERLINK("https://mapas.cultura.gov.br/inscricao/1814817752","on-1814817752") -> on-1814817752 | C113: Crato | D113: CE | E113: NORDESTE | F113: Avaliador 2 | G113: 10 | H113: 15 | I113: 12 | J113: 10 | K113: 8 | L113: 10 | M113: 8 | N113: 8 | O113: 0 | P113: 0 | Q113: 3 | R113: 0 | S113: 0 | T113: 0 | U113: 84 | W113: =W112 -> 85 | X113: =X112 -> CLASSIFICADO
A114: GRUPOS, COLETIVOS, CREW | B114: =HYPERLINK("https://mapas.cultura.gov.br/inscricao/1591147633","on-1591147633") -> on-1591147633 | C114: Maceió | D114: AL | E114: NORDESTE | F114: Avaliador 1 | G114: 15 | H114: 15 | I114: 12 | J114: 10 | K114: 8 | L114: 10 | M114: 10 | N114: 0 | O114: 0 | P114: 3 | Q114: 3 | R114: 0 | S114: 3 | T114: 0 | U114: 89 | W114: =AVERAGE(U114,U115) -> 83 | X114: CLASSIFICADO
A115: GRUPOS, COLETIVOS, CREW | B115: =HYPERLINK("https://mapas.cultura.gov.br/inscricao/1591147633","on-1591147633") -> on-1591147633 | C115: Maceió | D115: AL | E115: NORDESTE | F115: Avaliador 2 | G115: 20 | H115: 12 | I115: 8 | J115: 3 | K115: 10 | L115: 10 | M115: 5 | N115: 3 | O115: 0 | P115: 0 | Q115: 3 | R115: 0 | S115: 3 | T115: 0 | U115: 77 | W115: =W114 -> 83 | X115: =X114 -> CLASSIFICADO
A116: GRUPOS, COLETIVOS, CREW | B116: =HYPERLINK("https://mapas.cultura.gov.br/inscricao/65200711","on-65200711") -> on-65200711 | C116: Patos | D116: PB | E116: NORDESTE | F116: Avaliador 1 | G116: 15 | H116: 15 | I116: 12 | J116: 5 | K116: 8 | L116: 8 | M116: 10 | N116: 10 | O116: 0 | P116: 0 | Q116: 0 | R116: 3 | S116: 0 | T116: 0 | U116: 86 | W116: =AVERAGE(U116,U117) -> 82.5 | X116: CLASSIFICADO
A117: GRUPOS, COLETIVOS, CREW | B117: =HYPERLINK("https://mapas.cultura.gov.br/inscricao/65200711","on-65200711") -> on-65200711 | C117: Patos | D117: PB | E117: NORDESTE | F117: Avaliador 2 | G117: 15 | H117: 12 | I117: 12 | J117: 8 | K117: 8 | L117: 10 | M117: 8 | N117: 3 | O117: 0 | P117: 0 | Q117: 0 | R117: 3 | S117: 0 | T117: 0 | U117: 79 | W117: =W116 -> 82.5 | X117: =X116 -> CLASSIFICADO
A118: GRUPOS, COLETIVOS, CREW | B118: =HYPERLINK("https://mapas.cultura.gov.br/inscricao/720142948","on-720142948") -> on-720142948 | C118: Maracanaú | D118: CE | E118: NORDESTE | F118: Avaliador 1 | G118: 20 | H118: 15 | I118: 15 | J118: 3 | K118: 10 | L118: 10 | M118: 10 | N118: 3 | O118: 0 | P118: 0 | Q118: 3 | R118: 0 | S118: 0 | T118: 0 | U118: 89 | W118: =AVERAGE(U118,U119) -> 81 | X118: CLASSIFICADO
A119: GRUPOS, COLETIVOS, CREW | B119: =HYPERLINK("https://mapas.cultura.gov.br/inscricao/720142948","on-720142948") -> on-720142948 | C119: Maracanaú | D119: CE | E119: NORDESTE | F119: Avaliador 2 | G119: 20 | H119: 4 | I119: 12 | J119: 3 | K119: 5 | L119: 10 | M119: 8 | N119: 8 | O119: 0 | P119: 0 | Q119: 3 | R119: 0 | S119: 0 | T119: 0 | U119: 73 | W119: =W118 -> 81 | X119: =X118 -> CLASSIFICADO
A120: GRUPOS, COLETIVOS, CREW | B120: =HYPERLINK("https://mapas.cultura.gov.br/inscricao/2069083815","on-2069083815") -> on-2069083815 | C120: Jacobina | D120: BA | E120: NORDESTE | F120: Avaliador 1 | G120: 10 | H120: 15 | I120: 15 | J120: 8 | K120: 10 | L120: 10 | M120: 5 | N120: 8 | O120: 0 | P120: 0 | Q120: 3 | R120: 0 | S120: 3 | T120: 0 | U120: 87 | W120: =AVERAGE(U120,U121) -> 80.5 | X120: CLASSIFICADO
A121: GRUPOS, COLETIVOS, CREW | B121: =HYPERLINK("https://mapas.cultura.gov.br/inscricao/2069083815","on-2069083815") -> on-2069083815 | C121: Jacobina | D121: BA | E121: NORDESTE | F121: Avaliador 2 | G121: 10 | H121: 12 | I121: 8 | J121: 8 | K121: 5 | L121: 10 | M121: 10 | N121: 5 | O121: 0 | P121: 0 | Q121: 3 | R121: 0 | S121: 3 | T121: 0 | U121: 74 | W121: =W120 -> 80.5 | X121: =X120 -> CLASSIFICADO
A122: GRUPOS, COLETIVOS, CREW | B122: =HYPERLINK("https://mapas.cultura.gov.br/inscricao/1486085364","on-1486085364") -> on-1486085364 | C122: Maceió | D122: AL | E122: NORDESTE | F122: Avaliador 1 | G122: 15 | H122: 15 | I122: 15 | J122: 8 | K122: 8 | L122: 10 | M122: 10 | N122: 10 | O122: 0 | P122: 0 | Q122: 3 | R122: 0 | S122: 0 | T122: 0 | U122: 94 | W122: =AVERAGE(U122,U123) -> 80.5 | X122: CLASSIFICADO
A123: GRUPOS, COLETIVOS, CREW | B123: =HYPERLINK("https://mapas.cultura.gov.br/inscricao/1486085364","on-1486085364") -> on-1486085364 | C123: Maceió | D123: AL | E123: NORDESTE | F123: Avaliador 2 | G123: 5 | H123: 8 | I123: 12 | J123: 10 | K123: 10 | L123: 8 | M123: 8 | N123: 3 | O123: 0 | P123: 0 | Q123: 3 | R123: 0 | S123: 0 | T123: 0 | U123: 67 | W123: =W122 -> 80.5 | X123: =X122 -> CLASSIFICADO
A124: GRUPOS, COLETIVOS, CREW | B124: =HYPERLINK("https://mapas.cultura.gov.br/inscricao/1774034753","on-1774034753") -> on-1774034753 | C124: São Luís | D124: MA | E124: NORDESTE | F124: Avaliador 1 | G124: 15 | H124: 12 | I124: 12 | J124: 8 | K124: 8 | L124: 8 | M124: 8 | N124: 8 | O124: 0 | P124: 3 | Q124: 3 | R124: 0 | S124: 0 | T124: 0 | U124: 85 | W124: =AVERAGE(U124,U125) -> 76 | X124: CLASSIFICADO
A125: GRUPOS, COLETIVOS, CREW | B125: =HYPERLINK("https://mapas.cultura.gov.br/inscricao/1774034753","on-1774034753") -> on-1774034753 | C125: São Luís | D125: MA | E125: NORDESTE | F125: Avaliador 2 | G125: 10 | H125: 8 | I125: 12 | J125: 5 | K125: 5 | L125: 8 | M125: 5 | N125: 8 | O125: 0 | P125: 3 | Q125: 3 | R125: 0 | S125: 0 | T125: 0 | U125: 67 | W125: =W124 -> 76 | X125: =X124 -> CLASSIFICADO
A126: GRUPOS, COLETIVOS, CREW | B126: =HYPERLINK("https://mapas.cultura.gov.br/inscricao/680250253","on-680250253") -> on-680250253 | C126: Lençois | D126: BA | E126: NORDESTE | F126: Avaliador 1 | G126: 10 | H126: 15 | I126: 12 | J126: 8 | K126: 8 | L126: 10 | M126: 5 | N126: 5 | O126: 0 | P126: 0 | Q126: 3 | R126: 0 | S126: 0 | T126: 0 | U126: 76 | W126: =AVERAGE(U126,U127) -> 73.5 | X126: CLASSIFICADO
A127: GRUPOS, COLETIVOS, CREW | B127: =HYPERLINK("https://mapas.cultura.gov.br/inscricao/680250253","on-680250253") -> on-680250253 | C127: Lençois | D127: BA | E127: NORDESTE | F127: Avaliador 2 | G127: 10 | H127: 12 | I127: 12 | J127: 8 | K127: 5 | L127: 8 | M127: 5 | N127: 8 | O127: 0 | P127: 0 | Q127: 3 | R127: 0 | S127: 0 | T127: 0 | U127: 71 | W127: =W126 -> 73.5 | X127: =X126 -> CLASSIFICADO
A128: GRUPOS, COLETIVOS, CREW | B128: =HYPERLINK("https://mapas.cultura.gov.br/inscricao/940802191","on-940802191") -> on-940802191 | C128: Aquiraz | D128: CE | E128: NORDESTE | F128: Avaliador 1 | G128: 15 | H128: 15 | I128: 12 | J128: 5 | K128: 8 | L128: 8 | M128: 10 | N128: 3 | O128: 0 | P128: 0 | Q128: 0 | R128: 0 | S128: 0 | T128: 0 | U128: 76 | W128: =AVERAGE(U128,U129) -> 72.5 | X128: CLASSIFICADO
A129: GRUPOS, COLETIVOS, CREW | B129: =HYPERLINK("https://mapas.cultura.gov.br/inscricao/940802191","on-940802191") -> on-940802191 | C129: Aquiraz | D129: CE | E129: NORDESTE | F129: Avaliador 2 | G129: 15 | H129: 12 | I129: 12 | J129: 3 | K129: 8 | L129: 8 | M129: 8 | N129: 3 | O129: 0 | P129: 0 | Q129: 0 | R129: 0 | S129: 0 | T129: 0 | U129: 69 | W129: =W128 -> 72.5 | X129: =X128 -> CLASSIFICADO
A130: GRUPOS, COLETIVOS, CREW | B130: =HYPERLINK("https://mapas.cultura.gov.br/inscricao/504284169","on-504284169") -> on-504284169 | C130: Campina Grande | D130: PB | E130: NORDESTE | F130: Avaliador 1 | G130: 20 | H130: 12 | I130: 8 | J130: 5 | K130: 5 | L130: 5 | M130: 5 | N130: 5 | O130: 0 | P130: 0 | Q130: 3 | R130: 0 | S130: 0 | T130: 0 | U130: =SUM(G130:T130) -> 68 | W130: =AVERAGE(U130,U131) -> 72.5 | X130: CLASSIFICADO
A131: GRUPOS, COLETIVOS, CREW | B131: =HYPERLINK("https://mapas.cultura.gov.br/inscricao/504284169","on-504284169") -> on-504284169 | C131: Campina Grande | D131: PB | E131: NORDESTE | F131: Avaliador 2 | G131: 15 | H131: 12 | I131: 12 | J131: 8 | K131: 8 | L131: 8 | M131: 8 | N131: 3 | O131: 0 | P131: 0 | Q131: 3 | R131: 0 | S131: 0 | T131: 0 | U131: 77 | W131: =W130 -> 72.5 | X131: =X130 -> CLASSIFICADO
A132: GRUPOS, COLETIVOS, CREW | B132: =HYPERLINK("https://mapas.cultura.gov.br/inscricao/1177519046","on-1177519046") -> on-1177519046 | C132: Maracanaú | D132: CE | E132: NORDESTE | F132: Avaliador 1 | G132: 15 | H132: 15 | I132: 12 | J132: 10 | K132: 8 | L132: 5 | M132: 5 | N132: 5 | O132: 0 | P132: 0 | Q132: 0 | R132: 0 | S132: 0 | T132: 0 | U132: 75 | W132: =AVERAGE(U132,U133) -> 70 | X132: CLASSIFICADO
A133: GRUPOS, COLETIVOS, CREW | B133: =HYPERLINK("https://mapas.cultura.gov.br/inscricao/1177519046","on-1177519046") -> on-1177519046 | C133: Maracanaú | D133: CE | E133: NORDESTE | F133: Avaliador 2 | G133: 15 | H133: 12 | I133: 12 | J133: 3 | K133: 5 | L133: 5 | M133: 5 | N133: 8 | O133: 0 | P133: 0 | Q133: 0 | R133: 0 | S133: 0 | T133: 0 | U133: 65 | W133: =W132 -> 70 | X133: =X132 -> CLASSIFICADO
A134: GRUPOS, COLETIVOS, CREW | B134: =HYPERLINK("https://mapas.cultura.gov.br/inscricao/1202121757","on-1202121757") -> on-1202121757 | C134: Recife | D134: PE | E134: NORDESTE | F134: Avaliador 1 | G134: 15 | H134: 12 | I134: 8 | J134: 3 | K134: 3 | L134: 8 | M134: 5 | N134: 5 | O134: 0 | P134: 0 | Q134: 0 | R134: 0 | S134: 0 | T134: 0 | U134: 59 | W134: =AVERAGE(U134,U135) -> 70 | X134: CLASSIFICADO
A135: GRUPOS, COLETIVOS, CREW | B135: =HYPERLINK("https://mapas.cultura.gov.br/inscricao/1202121757","on-1202121757") -> on-1202121757 | C135: Recife | D135: PE | E135: NORDESTE | F135: Avaliador 2 | G135: 15 | H135: 12 | I135: 12 | J135: 8 | K135: 8 | L135: 10 | M135: 8 | N135: 8 | O135: 0 | P135: 0 | Q135: 0 | R135: 0 | S135: 0 | T135: 0 | U135: 81 | W135: =W134 -> 70 | X135: =X134 -> CLASSIFICADO
A136: GRUPOS, COLETIVOS, CREW | B136: =HYPERLINK("https://mapas.cultura.gov.br/inscricao/384487544","on-384487544") -> on-384487544 | C136: Recife | D136: PE | E136: NORDESTE | F136: Avaliador 1 | G136: 15 | H136: 12 | I136: 4 | J136: 10 | K136: 3 | L136: 8 | M136: 5 | N136: 5 | O136: 0 | P136: 3 | Q136: 0 | R136: 0 | S136: 3 | T136: 0 | U136: 68 | W136: =AVERAGE(U136,U137) -> 69.5 | X136: CLASSIFICADO
A137: GRUPOS, COLETIVOS, CREW | B137: =HYPERLINK("https://mapas.cultura.gov.br/inscricao/384487544","on-384487544") -> on-384487544 | C137: Recife | D137: PE | E137: NORDESTE | F137: Avaliador 2 | G137: 15 | H137: 12 | I137: 8 | J137: 10 | K137: 5 | L137: 5 | M137: 5 | N137: 5 | O137: 0 | P137: 3 | Q137: 0 | R137: 0 | S137: 3 | T137: 0 | U137: 71 | W137: =W136 -> 69.5 | X137: =X136 -> CLASSIFICADO
A138: GRUPOS, COLETIVOS, CREW | B138: =HYPERLINK("https://mapas.cultura.gov.br/inscricao/2010553272","on-2010553272") -> on-2010553272 | C138: Aracaju | D138: SE | E138: NORDESTE | F138: Avaliador 1 | G138: 15 | H138: 12 | I138: 8 | J138: 5 | K138: 8 | L138: 5 | M138: 8 | N138: 0 | O138: 0 | P138: 0 | Q138: 3 | R138: 0 | S138: 3 | T138: 0 | U138: 67 | W138: =AVERAGE(U138,U139) -> 68.5 | X138: CLASSIFICADO
A139: GRUPOS, COLETIVOS, CREW | B139: =HYPERLINK("https://mapas.cultura.gov.br/inscricao/2010553272","on-2010553272") -> on-2010553272 | C139: Aracaju | D139: SE | E139: NORDESTE | F139: Avaliador 2 | G139: 15 | H139: 8 | I139: 15 | J139: 3 | K139: 3 | L139: 10 | M139: 5 | N139: 5 | O139: 0 | P139: 0 | Q139: 3 | R139: 0 | S139: 3 | T139: 0 | U139: 70 | W139: =W138 -> 68.5 | X139: =X138 -> CLASSIFICADO
A140: GRUPOS, COLETIVOS, CREW | B140: =HYPERLINK("https://mapas.cultura.gov.br/inscricao/1032962020","on-1032962020") -> on-1032962020 | C140: Caruaru | D140: PE | E140: NORDESTE | F140: Avaliador 1 | G140: 10 | H140: 12 | I140: 4 | J140: 3 | K140: 5 | L140: 8 | M140: 8 | N140: 5 | O140: 0 | P140: 0 | Q140: 3 | R140: 0 | S140: 0 | T140: 0 | U140: 58 | W140: =AVERAGE(U140,U141) -> 68.5 | X140: CLASSIFICADO
A141: GRUPOS, COLETIVOS, CREW | B141: =HYPERLINK("https://mapas.cultura.gov.br/inscricao/1032962020","on-1032962020") -> on-1032962020 | C141: Caruaru | D141: PE | E141: NORDESTE | F141: Avaliador 2 | G141: 15 | H141: 12 | I141: 12 | J141: 5 | K141: 8 | L141: 8 | M141: 8 | N141: 8 | O141: 0 | P141: 0 | Q141: 3 | R141: 0 | S141: 0 | T141: 0 | U141: 79 | W141: =W140 -> 68.5 | X141: =X140 -> CLASSIFICADO
A142: GRUPOS, COLETIVOS, CREW | B142: =HYPERLINK("https://mapas.cultura.gov.br/inscricao/1603592569","on-1603592569") -> on-1603592569 | C142: Olinda | D142: PE | E142: NORDESTE | F142: Avaliador 1 | G142: 15 | H142: 12 | I142: 4 | J142: 5 | K142: 3 | L142: 5 | M142: 8 | N142: 3 | O142: 0 | P142: 0 | Q142: 3 | R142: 0 | S142: 0 | T142: 0 | U142: 58 | W142: =AVERAGE(U142,U143) -> 68.5 | X142: CLASSIFICADO
A143: GRUPOS, COLETIVOS, CREW | B143: =HYPERLINK("https://mapas.cultura.gov.br/inscricao/1603592569","on-1603592569") -> on-1603592569 | C143: Olinda | D143: PE | E143: NORDESTE | F143: Avaliador 2 | G143: 15 | H143: 12 | I143: 15 | J143: 5 | K143: 8 | L143: 10 | M143: 8 | N143: 3 | O143: 0 | P143: 0 | Q143: 3 | R143: 0 | S143: 0 | T143: 0 | U143: 79 | W143: =W142 -> 68.5 | X143: =X142 -> CLASSIFICADO
A144: GRUPOS, COLETIVOS, CREW | B144: =HYPERLINK("https://mapas.cultura.gov.br/inscricao/1732023077","on-1732023077") -> on-1732023077 | C144: Caucaia | D144: CE | E144: NORDESTE | F144: Avaliador 1 | G144: 10 | H144: 12 | I144: 8 | J144: 5 | K144: 5 | L144: 5 | M144: 8 | N144: 5 | Q144: 3 | R144: 0 | S144: 0 | T144: 0 | U144: 61 | W144: =AVERAGE(U144,U145) -> 67 | X144: CLASSIFICADO
A145: GRUPOS, COLETIVOS, CREW | B145: =HYPERLINK("https://mapas.cultura.gov.br/inscricao/1732023077","on-1732023077") -> on-1732023077 | C145: Caucaia | D145: CE | E145: NORDESTE | F145: Avaliador 2 | G145: 15 | H145: 8 | I145: 8 | J145: 10 | K145: 8 | L145: 8 | M145: 5 | N145: 5 | O145: 0 | P145: 3 | Q145: 3 | R145: 0 | S145: 0 | T145: 0 | U145: 73 | W145: =W144 -> 67 | X145: =X144 -> CLASSIFICADO
A146: GRUPOS, COLETIVOS, CREW | B146: =HYPERLINK("https://mapas.cultura.gov.br/inscricao/1472586553","on-1472586553") -> on-1472586553 | C146: Aracaju | D146: SE | E146: NORDESTE | F146: Avaliador 1 | G146: 20 | H146: 12 | I146: 12 | J146: 0 | K146: 0 | L146: 8 | M146: 8 | N146: 0 | O146: 0 | P146: 0 | Q146: 3 | R146: 0 | S146: 0 | T146: 0 | U146: 63 | W146: =AVERAGE(U146,U147) -> 67 | X146: CLASSIFICADO
A147: GRUPOS, COLETIVOS, CREW | B147: =HYPERLINK("https://mapas.cultura.gov.br/inscricao/1472586553","on-1472586553") -> on-1472586553 | C147: Aracaju | D147: SE | E147: NORDESTE | F147: Avaliador 2 | G147: 15 | H147: 12 | I147: 15 | J147: 3 | K147: 3 | L147: 10 | M147: 5 | N147: 5 | O147: 0 | P147: 0 | Q147: 3 | R147: 0 | S147: 0 | T147: 0 | U147: 71 | W147: =W146 -> 67 | X147: =X146 -> CLASSIFICADO
A148: GRUPOS, COLETIVOS, CREW | B148: =HYPERLINK("https://mapas.cultura.gov.br/inscricao/1256972711","on-1256972711") -> on-1256972711 | C148: Caxias | D148: MA | E148: NORDESTE | F148: Avaliador 1 | G148: 15 | H148: 15 | I148: 15 | J148: 3 | K148: 8 | L148: 8 | M148: 5 | N148: 0 | O148: 0 | P148: 0 | Q148: 3 | R148: 0 | S148: 0 | T148: 0 | U148: 72 | W148: =AVERAGE(U148,U149) -> 66.5 | X148: CLASSIFICADO
A149: GRUPOS, COLETIVOS, CREW | B149: =HYPERLINK("https://mapas.cultura.gov.br/inscricao/1256972711","on-1256972711") -> on-1256972711 | C149: Caxias | D149: MA | E149: NORDESTE | F149: Avaliador 2 | G149: 10 | H149: 12 | I149: 12 | J149: 3 | K149: 5 | L149: 8 | M149: 5 | N149: 3 | O149: 0 | P149: 0 | Q149: 3 | R149: 0 | S149: 0 | T149: 0 | U149: 61 | W149: =W148 -> 66.5 | X149: =X148 -> CLASSIFICADO
A150: GRUPOS, COLETIVOS, CREW | B150: =HYPERLINK("https://mapas.cultura.gov.br/inscricao/1359069766","on-1359069766") -> on-1359069766 | C150: Jaboatão dos Guararapes | D150: PE | E150: NORDESTE | F150: Avaliador 1 | G150: 15 | H150: 8 | I150: 12 | J150: 3 | K150: 3 | L150: 0 | M150: 5 | N150: 5 | O150: 0 | P150: 0 | Q150: 3 | R150: 0 | S150: 0 | T150: 0 | U150: 54 | W150: =AVERAGE(U150,U151) -> 66.5 | X150: CLASSIFICADO
A151: GRUPOS, COLETIVOS, CREW | B151: =HYPERLINK("https://mapas.cultura.gov.br/inscricao/1359069766","on-1359069766") -> on-1359069766 | C151: Jaboatão dos Guararapes | D151: PE | E151: NORDESTE | F151: Avaliador 2 | G151: 15 | H151: 12 | I151: 12 | J151: 5 | K151: 8 | L151: 8 | M151: 8 | N151: 8 | O151: 0 | P151: 0 | Q151: 3 | R151: 0 | S151: 0 | T151: 0 | U151: 79 | W151: =W150 -> 66.5 | X151: =X150 -> CLASSIFICADO
A152: GRUPOS, COLETIVOS, CREW | B152: =HYPERLINK("https://mapas.cultura.gov.br/inscricao/2018489261","on-2018489261") -> on-2018489261 | C152: Itaberaba | D152: BA | E152: NORDESTE | F152: Avaliador 1 | G152: 15 | H152: 12 | I152: 8 | J152: 8 | K152: 5 | L152: 10 | M152: 8 | N152: 5 | O152: 0 | P152: 0 | Q152: 3 | R152: 0 | S152: 0 | T152: 0 | U152: 74 | W152: =AVERAGE(U152,U153) -> 66 | X152: CLASSIFICADO
A153: GRUPOS, COLETIVOS, CREW | B153: =HYPERLINK("https://mapas.cultura.gov.br/inscricao/2018489261","on-2018489261") -> on-2018489261 | C153: Itaberaba | D153: BA | E153: NORDESTE | F153: Avaliador 2 | G153: 10 | H153: 8 | I153: 8 | J153: 5 | K153: 5 | L153: 8 | M153: 8 | N153: 3 | O153: 0 | P153: 0 | Q153: 3 | R153: 0 | S153: 0 | T153: 0 | U153: 58 | W153: =W152 -> 66 | X153: =X152 -> CLASSIFICADO
A154: GRUPOS, COLETIVOS, CREW | B154: =HYPERLINK("https://mapas.cultura.gov.br/inscricao/712433450","on-712433450") -> on-712433450 | C154: Garanhuns | D154: PE | E154: NORDESTE | F154: Avaliador 1 | G154: 15 | H154: 12 | I154: 8 | J154: 5 | K154: 3 | L154: 8 | M154: 5 | N154: 3 | O154: 0 | P154: 3 | Q154: 3 | R154: 0 | S154: 3 | T154: 0 | U154: 68 | W154: =AVERAGE(U154,U155) -> 65.5 | X154: CLASSIFICADO
A155: GRUPOS, COLETIVOS, CREW | B155: =HYPERLINK("https://mapas.cultura.gov.br/inscricao/712433450","on-712433450") -> on-712433450 | C155: Garanhuns | D155: PE | E155: NORDESTE | F155: Avaliador 2 | G155: 10 | H155: 8 | I155: 8 | J155: 8 | K155: 5 | L155: 5 | M155: 5 | N155: 5 | O155: 0 | P155: 3 | Q155: 3 | R155: 0 | S155: 3 | T155: 0 | U155: 63 | W155: =W154 -> 65.5 | X155: =X154 -> CLASSIFICADO
A156: GRUPOS, COLETIVOS, CREW | B156: =HYPERLINK("https://mapas.cultura.gov.br/inscricao/1885927400","on-1885927400") -> on-1885927400 | C156: Itaberaba | D156: BA | E156: NORDESTE | F156: Avaliador 1 | G156: 15 | H156: 15 | I156: 15 | J156: 5 | K156: 0 | L156: 10 | M156: 8 | N156: 3 | O156: 0 | P156: 0 | Q156: 3 | R156: 0 | S156: 0 | T156: 0 | U156: 74 | W156: =AVERAGE(U156,U157) -> 64 | X156: CLASSIFICADO
A157: GRUPOS, COLETIVOS, CREW | B157: =HYPERLINK("https://mapas.cultura.gov.br/inscricao/1885927400","on-1885927400") -> on-1885927400 | C157: Itaberaba | D157: BA | E157: NORDESTE | F157: Avaliador 2 | G157: 10 | H157: 8 | I157: 8 | J157: 5 | K157: 5 | L157: 5 | M157: 5 | N157: 5 | O157: 0 | P157: 0 | Q157: 3 | R157: 0 | S157: 0 | T157: 0 | U157: 54 | W157: =W156 -> 64 | X157: =X156 -> CLASSIFICADO
A158: GRUPOS, COLETIVOS, CREW | B158: =HYPERLINK("https://mapas.cultura.gov.br/inscricao/1013289268","on-1013289268") -> on-1013289268 | C158: João Pessoa | D158: PB | E158: NORDESTE | F158: Avaliador 1 | G158: 20 | H158: 8 | I158: 15 | J158: 5 | K158: 5 | L158: 5 | M158: 5 | N158: 5 | O158: 0 | P158: 0 | Q158: 3 | R158: 0 | S158: 0 | T158: 0 | U158: 71 | W158: =AVERAGE(U158,U159) -> 62.5 | X158: CLASSIFICADO
A159: GRUPOS, COLETIVOS, CREW | B159: =HYPERLINK("https://mapas.cultura.gov.br/inscricao/1013289268","on-1013289268") -> on-1013289268 | C159: João Pessoa | D159: PB | E159: NORDESTE | F159: Avaliador 2 | G159: 10 | H159: 8 | I159: 8 | J159: 5 | K159: 5 | L159: 5 | M159: 5 | N159: 5 | O159: 0 | P159: 0 | Q159: 3 | R159: 0 | S159: 0 | T159: 0 | U159: 54 | W159: =W158 -> 62.5 | X159: =X158 -> CLASSIFICADO
A160: GRUPOS, COLETIVOS, CREW | B160: =HYPERLINK("https://mapas.cultura.gov.br/inscricao/1948376490","on-1948376490") -> on-1948376490 | C160: Alagoinhas | D160: BA | E160: NORDESTE | F160: Avaliador 1 | G160: 15 | H160: 15 | I160: 15 | J160: 0 | K160: 10 | L160: 10 | M160: 0 | N160: 0 | O160: 0 | P160: 0 | Q160: 3 | R160: 0 | S160: 0 | T160: 0 | U160: 68 | W160: =AVERAGE(U160,U161) -> 61 | X160: CLASSIFICADO
A161: GRUPOS, COLETIVOS, CREW | B161: =HYPERLINK("https://mapas.cultura.gov.br/inscricao/1948376490","on-1948376490") -> on-1948376490 | C161: Alagoinhas | D161: BA | E161: NORDESTE | F161: Avaliador 2 | G161: 10 | H161: 8 | I161: 8 | J161: 5 | K161: 5 | L161: 5 | M161: 5 | N161: 5 | O161: 0 | P161: 0 | Q161: 3 | R161: 0 | S161: 0 | T161: 0 | U161: 54 | W161: =W160 -> 61 | X161: =X160 -> CLASSIFICADO
A162: GRUPOS, COLETIVOS, CREW | B162: =HYPERLINK("https://mapas.cultura.gov.br/inscricao/2061106174","on-2061106174") -> on-2061106174 | C162: Fortaleza | D162: CE | E162: NORDESTE | F162: Avaliador 1 | G162: 20 | H162: 15 | I162: 15 | J162: 10 | K162: 10 | L162: 10 | M162: 10 | N162: 10 | O162: 0 | P162: 0 | Q162: 3 | R162: 0 | S162: 0 | T162: 0 | U162: 103 | V162: DESCLASSIFICADA COM BASE NO ITEM 7.10 | W162: =AVERAGE(U162,U163) -> 102 | X162: DESCLASSIFICADO
A163: GRUPOS, COLETIVOS, CREW | B163: =HYPERLINK("https://mapas.cultura.gov.br/inscricao/2061106174","on-2061106174") -> on-2061106174 | C163: Fortaleza | D163: CE | E163: NORDESTE | F163: Avaliador 2 | G163: 20 | H163: 15 | I163: 15 | J163: 8 | K163: 10 | L163: 10 | M163: 10 | N163: 10 | O163: 0 | P163: 0 | Q163: 3 | R163: 0 | S163: 0 | T163: 0 | U163: 101 | W163: =W162 -> 102
A164: GRUPOS, COLETIVOS, CREW | B164: =HYPERLINK("https://mapas.cultura.gov.br/inscricao/325575891","on-325575891") -> on-325575891 | C164: Recife | D164: PE | E164: NORDESTE | F164: Avaliador 1 | G164: 20 | H164: 15 | I164: 12 | J164: 8 | K164: 8 | L164: 10 | M164: 8 | N164: 8 | O164: 0 | P164: 3 | Q164: 3 | R164: 0 | S164: 3 | T164: 0 | U164: 98 | V164: DESCLASSIFICADA COM BASE NO ITEM 7.10 | W164: =AVERAGE(U164,U165) -> 100 | X164: DESCLASSIFICADO
A165: GRUPOS, COLETIVOS, CREW | B165: =HYPERLINK("https://mapas.cultura.gov.br/inscricao/325575891","on-325575891") -> on-325575891 | C165: Recife | D165: PE | E165: NORDESTE | F165: Avaliador 2 | G165: 20 | H165: 15 | I165: 12 | J165: 10 | K165: 10 | L165: 8 | M165: 8 | N165: 10 | O165: 0 | P165: 3 | Q165: 3 | R165: 0 | S165: 3 | T165: 0 | U165: 102 | W165: =W164 -> 100
A166: GRUPOS, COLETIVOS, CREW | B166: =HYPERLINK("https://mapas.cultura.gov.br/inscricao/2062199509","on-2062199509") -> on-2062199509 | C166: Fortaleza | D166: CE | E166: NORDESTE | F166: Avaliador 1 | G166: 20 | H166: 15 | I166: 15 | J166: 10 | K166: 10 | L166: 10 | M166: 10 | N166: 3 | O166: 0 | P166: 3 | Q166: 3 | R166: 0 | S166: 3 | T166: 0 | U166: 102 | V166: DESCLASSIFICADA COM BASE NO ITEM 7.10 | W166: =AVERAGE(U166,U167) -> 98 | X166: DESCLASSIFICADO
A167: GRUPOS, COLETIVOS, CREW | B167: =HYPERLINK("https://mapas.cultura.gov.br/inscricao/2062199509","on-2062199509") -> on-2062199509 | C167: Fortaleza | D167: CE | E167: NORDESTE | F167: Avaliador 2 | G167: 20 | H167: 15 | I167: 12 | J167: 5 | K167: 10 | L167: 10 | M167: 8 | N167: 5 | O167: 0 | P167: 3 | Q167: 3 | R167: 0 | S167: 3 | T167: 0 | U167: 94 | W167: =W166 -> 98
A168: GRUPOS, COLETIVOS, CREW | B168: =HYPERLINK("https://mapas.cultura.gov.br/inscricao/552324596","on-552324596") -> on-552324596 | C168: Caucaia | D168: CE | E168: NORDESTE | F168: Avaliador 1 | G168: 20 | H168: 15 | I168: 15 | J168: 10 | K168: 10 | L168: 10 | M168: 10 | N168: 8 | O168: 0 | P168: 0 | Q168: 0 | R168: 0 | S168: 0 | T168: 0 | U168: 98 | V168: DESCLASSIFICADA COM BASE NO ITEM 7.10 | W168: =AVERAGE(U168,U169) -> 93 | X168: DESCLASSIFICADO
A169: GRUPOS, COLETIVOS, CREW | B169: =HYPERLINK("https://mapas.cultura.gov.br/inscricao/552324596","on-552324596") -> on-552324596 | C169: Caucaia | D169: CE | E169: NORDESTE | F169: Avaliador 2 | G169: 15 | H169: 15 | I169: 15 | J169: 8 | K169: 10 | L169: 10 | M169: 10 | N169: 5 | O169: 0 | P169: 0 | Q169: 0 | R169: 0 | S169: 0 | T169: 0 | U169: 88 | W169: =W168 -> 93
A170: GRUPOS, COLETIVOS, CREW | B170: =HYPERLINK("https://mapas.cultura.gov.br/inscricao/734522603","on-734522603") -> on-734522603 | C170: Maceió | D170: AL | E170: NORDESTE | F170: Avaliador 1 | G170: 20 | H170: 15 | I170: 15 | J170: 8 | K170: 10 | L170: 10 | M170: 10 | N170: 5 | O170: 0 | P170: 0 | Q170: 3 | R170: 0 | S170: 0 | T170: 0 | U170: 96 | V170: DESCLASSIFICADA COM BASE NO ITEM 7.10 | W170: =AVERAGE(U170,U171) -> 92.5 | X170: DESCLASSIFICADO
A171: GRUPOS, COLETIVOS, CREW | B171: =HYPERLINK("https://mapas.cultura.gov.br/inscricao/734522603","on-734522603") -> on-734522603 | C171: Maceió | D171: AL | E171: NORDESTE | F171: Avaliador 2 | G171: 20 | H171: 15 | I171: 15 | J171: 5 | K171: 10 | L171: 10 | M171: 8 | N171: 3 | O171: 0 | P171: 0 | Q171: 3 | R171: 0 | S171: 0 | T171: 0 | U171: 89 | W171: =W170 -> 92.5
A172: GRUPOS, COLETIVOS, CREW | B172: =HYPERLINK("https://mapas.cultura.gov.br/inscricao/1833233535","on-1833233535") -> on-1833233535 | C172: Teresina | D172: PI | E172: NORDESTE | F172: Avaliador 1 | G172: 20 | H172: 12 | I172: 12 | J172: 8 | K172: 8 | L172: 8 | M172: 8 | N172: 8 | O172: 0 | P172: 3 | Q172: 0 | R172: 0 | S172: 0 | T172: 0 | U172: 87 | V172: DESCLASSIFICADO COM BASE NO ITEM 7.13 | W172: =AVERAGE(U172,U173) -> 91.5 | X172: DESCLASSIFICADO
A173: GRUPOS, COLETIVOS, CREW | B173: =HYPERLINK("https://mapas.cultura.gov.br/inscricao/1833233535","on-1833233535") -> on-1833233535 | C173: SIM | D173: PI | E173: NORDESTE | F173: Avaliador 2 | G173: 20 | H173: 15 | I173: 15 | J173: 10 | K173: 10 | L173: 10 | M173: 10 | N173: 3 | O173: 0 | P173: 3 | Q173: 0 | R173: 0 | S173: 0 | T173: 0 | U173: 96 | W173: =W172 -> 91.5
A174: GRUPOS, COLETIVOS, CREW | B174: =HYPERLINK("https://mapas.cultura.gov.br/inscricao/1745944262","on-1745944262") -> on-1745944262 | C174: Piripiri | D174: PI | E174: NORDESTE | F174: Avaliador 1 | G174: 20 | H174: 15 | I174: 15 | J174: 8 | K174: 10 | L174: 10 | M174: 8 | N174: 5 | O174: 0 | P174: 0 | Q174: 0 | R174: 0 | S174: 0 | T174: 0 | U174: 91 | V174: DESCLASSIFICADA COM BASE NO ITEM 7.10 | W174: =AVERAGE(U174,U175) -> 86 | X174: DESCLASSIFICADO
A175: GRUPOS, COLETIVOS, CREW | B175: =HYPERLINK("https://mapas.cultura.gov.br/inscricao/1745944262","on-1745944262") -> on-1745944262 | C175: Piripiri | D175: PI | E175: NORDESTE | F175: Avaliador 2 | G175: 15 | H175: 12 | I175: 12 | J175: 8 | K175: 10 | L175: 8 | M175: 8 | N175: 8 | O175: 0 | P175: 0 | Q175: 0 | R175: 0 | S175: 0 | T175: 0 | U175: 81 | W175: =W174 -> 86
A176: GRUPOS, COLETIVOS, CREW | B176: =HYPERLINK("https://mapas.cultura.gov.br/inscricao/1881903764","on-1881903764") -> on-1881903764 | C176: Abreu e Lima | D176: PE | E176: NORDESTE | F176: Avaliador 1 | G176: 15 | H176: 8 | I176: 4 | J176: 8 | K176: 3 | L176: 5 | M176: 3 | N176: 5 | O176: 0 | P176: 3 | Q176: 3 | R176: 0 | S176: 0 | T176: 0 | U176: 57 | V176: DESCLASISICADA COM BASE NO ITEM 7.7 | W176: =AVERAGE(U176,U177) -> 57 | X176: DESCLASSIFICADO
A177: GRUPOS, COLETIVOS, CREW | B177: =HYPERLINK("https://mapas.cultura.gov.br/inscricao/1881903764","on-1881903764") -> on-1881903764 | C177: Abreu e Lima | D177: PE | E177: NORDESTE | F177: Avaliador 2 | G177: 10 | H177: 8 | I177: 8 | J177: 5 | K177: 5 | L177: 5 | M177: 5 | N177: 5 | O177: 0 | P177: 3 | Q177: 3 | R177: 0 | S177: 0 | T177: 0 | U177: 57 | W177: =W176 -> 57
A178: GRUPOS, COLETIVOS, CREW | B178: =HYPERLINK("https://mapas.cultura.gov.br/inscricao/35103922","on-35103922") -> on-35103922 | C178: Guaramiranga | D178: CE | E178: NORDESTE | F178: Avaliador 1 | G178: 10 | H178: 12 | I178: 12 | J178: 3 | K178: 5 | L178: 8 | M178: 5 | N178: 3 | O178: 0 | P178: 0 | Q178: 3 | R178: 0 | S178: 0 | T178: 0 | U178: 61 | V178: DESCLASSIFICADA COM BASE NO ITEM 7.10 | W178: =AVERAGE(U178,U179) -> 56.5 | X178: DESCLASSIFICADO
A179: GRUPOS, COLETIVOS, CREW | B179: =HYPERLINK("https://mapas.cultura.gov.br/inscricao/35103922","on-35103922") -> on-35103922 | C179: Guaramiranga | D179: CE | E179: NORDESTE | F179: Avaliador 2 | G179: 10 | H179: 12 | I179: 12 | J179: 3 | K179: 3 | L179: 3 | M179: 3 | N179: 3 | O179: 0 | P179: 0 | Q179: 3 | R179: 0 | S179: 0 | T179: 0 | U179: 52 | W179: =W178 -> 56.5
A180: GRUPOS, COLETIVOS, CREW | B180: =HYPERLINK("https://mapas.cultura.gov.br/inscricao/1609147453","on-1609147453") -> on-1609147453 | C180: Timbaúba | D180: PE | E180: NORDESTE | F180: Avaliador 1 | G180: 15 | H180: 8 | I180: 4 | J180: 3 | K180: 5 | L180: 8 | M180: 5 | N180: 3 | O180: 3 | P180: 0 | Q180: 3 | R180: 0 | S180: 0 | T180: 0 | U180: 57 | V180: DESCLASISICADA COM BASE NO ITEM 7.7 | W180: =AVERAGE(U180,U181) -> 56 | X180: DESCLASSIFICADO
A181: GRUPOS, COLETIVOS, CREW | B181: =HYPERLINK("https://mapas.cultura.gov.br/inscricao/1609147453","on-1609147453") -> on-1609147453 | C181: Timbaúba | D181: PE | E181: NORDESTE | F181: Avaliador 2 | G181: 10 | H181: 8 | I181: 8 | J181: 5 | K181: 5 | L181: 5 | M181: 5 | N181: 3 | O181: 3 | P181: 0 | Q181: 3 | R181: 0 | S181: 0 | T181: 0 | U181: 55 | W181: =W180 -> 56
A182: GRUPOS, COLETIVOS, CREW | B182: =HYPERLINK("https://mapas.cultura.gov.br/inscricao/2131401137","on-2131401137") -> on-2131401137 | C182: Delmiro Gouveia | D182: AL | E182: NORDESTE | F182: Avaliador 1 | U182: 0 | V182: DESCLASSIFICADO COM BASE NO ITEM 7.5 | W182: =AVERAGE(U182,U183) -> 0 | X182: DESCLASSIFICADO
A183: GRUPOS, COLETIVOS, CREW | B183: =HYPERLINK("https://mapas.cultura.gov.br/inscricao/2131401137","on-2131401137") -> on-2131401137 | C183: Delmiro Gouveia | D183: AL | E183: NORDESTE | F183: Avaliador 2 | U183: 0 | W183: =W182 -> 0
A184: GRUPOS, COLETIVOS, CREW | B184: =HYPERLINK("https://mapas.cultura.gov.br/inscricao/886886679","on-886886679") -> on-886886679 | C184: Maceió | D184: AL | E184: NORDESTE | F184: Avaliador 1 | G184: 10 | H184: 12 | I184: 8 | J184: 8 | K184: 8 | L184: 5 | M184: 5 | N184: 3 | O184: 0 | P184: 0 | Q184: 0 | R184: 0 | S184: 0 | T184: 0 | U184: 59 | V184: DESCLASISICADA COM BASE NO ITEM 7.7 | W184: =AVERAGE(U184,U185) -> 55 | X184: DESCLASSIFICADO
A185: GRUPOS, COLETIVOS, CREW | B185: =HYPERLINK("https://mapas.cultura.gov.br/inscricao/886886679","on-886886679") -> on-886886679 | C185: Maceió | D185: AL | E185: NORDESTE | F185: Avaliador 2 | G185: 15 | H185: 8 | I185: 4 | J185: 3 | K185: 5 | L185: 8 | M185: 5 | N185: 3 | O185: 0 | P185: 0 | Q185: 0 | R185: 0 | S185: 0 | T185: 0 | U185: 51 | W185: =W184 -> 55
A186: GRUPOS, COLETIVOS, CREW | B186: =HYPERLINK("https://mapas.cultura.gov.br/inscricao/1141873294","on-1141873294") -> on-1141873294 | C186: Serra Talhada | D186: PE | E186: NORDESTE | F186: Avaliador 1 | G186: 15 | H186: 12 | I186: 4 | J186: 3 | K186: 5 | L186: 8 | M186: 5 | N186: 3 | O186: 0 | P186: 0 | Q186: 0 | R186: 0 | S186: 0 | T186: 0 | U186: 55 | V186: DESCLASISICADA COM BASE NO ITEM 7.7 | W186: =AVERAGE(U186,U187) -> 51.5 | X186: DESCLASSIFICADO
A187: GRUPOS, COLETIVOS, CREW | B187: =HYPERLINK("https://mapas.cultura.gov.br/inscricao/1141873294","on-1141873294") -> on-1141873294 | C187: Serra Talhada | D187: PE | E187: NORDESTE | F187: Avaliador 2 | G187: 10 | H187: 4 | I187: 8 | J187: 3 | K187: 8 | L187: 5 | M187: 5 | N187: 5 | O187: 0 | P187: 0 | Q187: 0 | R187: 0 | S187: 0 | T187: 0 | U187: 48 | W187: =W186 -> 51.5
A188: GRUPOS, COLETIVOS, CREW | B188: =HYPERLINK("https://mapas.cultura.gov.br/inscricao/1089859617","on-1089859617") -> on-1089859617 | C188: Fortaleza | D188: CE | E188: NORDESTE | F188: Avaliador 1 | G188: 5 | H188: 4 | I188: 4 | J188: 5 | K188: 8 | L188: 8 | M188: 5 | N188: 3 | O188: 0 | P188: 0 | Q188: 3 | R188: 0 | S188: 0 | T188: 0 | U188: 45 | V188: DESCLASISICADA COM BASE NO ITEM 7.7 | W188: =AVERAGE(U188,U189) -> 50 | X188: DESCLASSIFICADO
A189: GRUPOS, COLETIVOS, CREW | B189: =HYPERLINK("https://mapas.cultura.gov.br/inscricao/1089859617","on-1089859617") -> on-1089859617 | C189: Fortaleza | D189: CE | E189: NORDESTE | F189: Avaliador 2 | G189: 10 | H189: 4 | I189: 4 | J189: 8 | K189: 10 | L189: 8 | M189: 5 | N189: 3 | O189: 0 | P189: 0 | Q189: 3 | R189: 0 | S189: 0 | T189: 0 | U189: 55 | W189: =W188 -> 50
A190: GRUPOS, COLETIVOS, CREW | B190: =HYPERLINK("https://mapas.cultura.gov.br/inscricao/1604569490","on-1604569490") -> on-1604569490 | C190: Salgueiro | D190: PE | E190: NORDESTE | F190: Avaliador 1 | G190: 10 | H190: 4 | I190: 4 | J190: 5 | K190: 3 | L190: 3 | M190: 5 | N190: 8 | O190: 0 | P190: 0 | Q190: 0 | R190: 0 | S190: 3 | T190: 0 | U190: 45 | V190: DESCLASISICADA COM BASE NO ITEM 7.7 | W190: =AVERAGE(U190,U191) -> 47 | X190: DESCLASSIFICADO
A191: GRUPOS, COLETIVOS, CREW | B191: =HYPERLINK("https://mapas.cultura.gov.br/inscricao/1604569490","on-1604569490") -> on-1604569490 | C191: Salgueiro | D191: PE | E191: NORDESTE | F191: Avaliador 2 | G191: 10 | H191: 4 | I191: 4 | J191: 10 | K191: 5 | L191: 3 | M191: 5 | N191: 5 | O191: 0 | P191: 0 | Q191: 0 | R191: 0 | S191: 3 | T191: 0 | U191: 49 | W191: =W190 -> 47
A192: GRUPOS, COLETIVOS, CREW | B192: =HYPERLINK("https://mapas.cultura.gov.br/inscricao/249820620","on-249820620") -> on-249820620 | C192: Natal | D192: RN | E192: NORDESTE | F192: Avaliador 1 | G192: 5 | H192: 8 | I192: 8 | J192: 5 | K192: 0 | L192: 0 | M192: 3 | N192: 3 | O192: 3 | P192: 3 | Q192: 3 | R192: 0 | S192: 0 | T192: 0 | U192: 41 | V192: DESCLASISICADA COM BASE NO ITEM 7.7 | W192: =AVERAGE(U192,U193) -> 44 | X192: DESCLASSIFICADO
A193: GRUPOS, COLETIVOS, CREW | B193: =HYPERLINK("https://mapas.cultura.gov.br/inscricao/249820620","on-249820620") -> on-249820620 | C193: Natal | D193: RN | E193: NORDESTE | F193: Avaliador 2 | G193: 10 | H193: 4 | I193: 8 | J193: 5 | K193: 0 | L193: 5 | M193: 3 | N193: 3 | O193: 3 | P193: 3 | Q193: 3 | R193: 0 | S193: 0 | T193: 0 | U193: 47 | W193: =W192 -> 44
A194: GRUPOS, COLETIVOS, CREW | B194: =HYPERLINK("https://mapas.cultura.gov.br/inscricao/869652121","on-869652121") -> on-869652121 | C194: Jaboatão Dos Guararapes | D194: PE | E194: NORDESTE | F194: Avaliador 1 | G194: 10 | H194: 4 | I194: 4 | J194: 0 | K194: 3 | L194: 5 | M194: 3 | N194: 0 | O194: 0 | P194: 3 | Q194: 0 | R194: 3 | S194: 3 | T194: 0 | U194: =SUM(G194:T194) -> 38 | V194: DESCLASSIFICADO COM BASE NO ITEM 6.1 E 7.10 | W194: =AVERAGE(U194,U195) -> 40 | X194: DESCLASSIFICADO
A195: GRUPOS, COLETIVOS, CREW | B195: =HYPERLINK("https://mapas.cultura.gov.br/inscricao/869652121","on-869652121") -> on-869652121 | C195: Jaboatão Dos Guararapes | D195: PE | E195: NORDESTE | F195: Avaliador 2 | G195: 10 | H195: 4 | I195: 4 | J195: 3 | K195: 3 | L195: 3 | M195: 3 | N195: 3 | O195: 0 | P195: 3 | Q195: 0 | R195: 3 | S195: 3 | T195: 0 | U195: 42 | W195: =W194 -> 40
A196: GRUPOS, COLETIVOS, CREW | B196: =HYPERLINK("https://mapas.cultura.gov.br/inscricao/960945352","on-960945352") -> on-960945352 | C196: Vitória de Santo Antão | D196: PE | E196: NORDESTE | F196: Avaliador 1 | G196: 10 | H196: 0 | I196: 4 | J196: 0 | K196: 5 | L196: 0 | M196: 5 | N196: 0 | O196: 0 | P196: 0 | Q196: 0 | R196: 0 | S196: 0 | T196: 0 | U196: 24 | V196: DESCLASISICADA COM BASE NO ITEM 7.7 | W196: =AVERAGE(U196,U197) -> 35 | X196: DESCLASSIFICADO
A197: GRUPOS, COLETIVOS, CREW | B197: =HYPERLINK("https://mapas.cultura.gov.br/inscricao/960945352","on-960945352") -> on-960945352 | C197: Vitória de Santo Antão | D197: PE | E197: NORDESTE | F197: Avaliador 2 | G197: 10 | H197: 4 | I197: 8 | J197: 3 | K197: 8 | L197: 5 | M197: 5 | N197: 3 | O197: 0 | P197: 0 | Q197: 0 | R197: 0 | S197: 0 | T197: 0 | U197: 46 | W197: =W196 -> 35
A198: GRUPOS, COLETIVOS, CREW | B198: =HYPERLINK("https://mapas.cultura.gov.br/inscricao/354200986","on-354200986") -> on-354200986 | C198: Recife | D198: PE | E198: NORDESTE | F198: Avaliador 1 | G198: 5 | H198: 4 | I198: 8 | J198: 3 | K198: 0 | L198: 3 | M198: 5 | N198: 5 | O198: 0 | P198: 0 | Q198: 3 | R198: 0 | S198: 0 | T198: 0 | U198: 36 | V198: DESCLASISICADA COM BASE NO ITEM 7.7 | W198: =AVERAGE(U198,U199) -> 34.5 | X198: DESCLASSIFICADO
A199: GRUPOS, COLETIVOS, CREW | B199: =HYPERLINK("https://mapas.cultura.gov.br/inscricao/354200986","on-354200986") -> on-354200986 | C199: Recife | D199: PE | E199: NORDESTE | F199: Avaliador 2 | G199: 5 | H199: 4 | I199: 4 | J199: 3 | K199: 5 | L199: 3 | M199: 3 | N199: 3 | O199: 0 | P199: 0 | Q199: 3 | R199: 0 | S199: 0 | T199: 0 | U199: 33 | W199: =W198 -> 34.5
A200: GRUPOS, COLETIVOS, CREW | B200: =HYPERLINK("https://mapas.cultura.gov.br/inscricao/226283236","on-226283236") -> on-226283236 | C200: Cairu | D200: BA | E200: NORDESTE | F200: Avaliador 1 | G200: 0 | H200: 0 | I200: 0 | J200: 0 | K200: 0 | L200: 0 | M200: 0 | N200: 0 | O200: 0 | P200: 0 | Q200: 3 | R200: 3 | S200: 3 | T200: 0 | U200: 9 | V200: DESCLASISICADA COM BASE NO ITEM 7.7 | W200: =AVERAGE(U200,U201) -> 19 | X200: DESCLASSIFICADO
... 35 more rows

Sheet INSTITUIÇÕES SEM FINS LUCRATIVO
A1: CATEGORIA | B1: INSCRIÇÃO | C1: CIDADE | D1: UF | E1: REGIÃO | F1: AVALIADOR | G1: CRITÉRIOS DE AVALIAÇÃO E SELEÇÃO 1 | H1: CRITÉRIOS DE AVALIAÇÃO E SELEÇÃO 2 | I1: CRITÉRIOS DE AVALIAÇÃO E SELEÇÃO 3 | J1: CRITÉRIOS DE AVALIAÇÃO E SELEÇÃO 4 | K1: CRITÉRIOS DE AVALIAÇÃO E SELEÇÃO 5 | L1: CRITÉRIOS DE AVALIAÇÃO E SELEÇÃO 6 | M1: CRITÉRIOS DE AVALIAÇÃO E SELEÇÃO 7 | N1: CRITÉRIOS DE AVALIAÇÃO E SELEÇÃO 8 | O1: PONTUAÇÃO EXTRA - Pessoa com deficiência | P1: PONTUAÇÃO EXTRA - Mulher | Q1: PONTUAÇÃO EXTRA - Pessoa negra | R1: PONTUAÇÃO EXTRA -Indígena, matriz africana, de terreiro ou de povos ou de comunidades tradicionais | S1: PONTUAÇÃO EXTRA LGBTQIA+ | T1: PONTUAÇÃO EXTRA Idosa com 60 anos ou mais? | U1: NOTA POR AVALIADOR | V1: OBSERVAÇÃO | W1: NOTA PRELIMINAR | X1: STATUS
A2: INSTITUIÇÕES SEM FINS LUCRATIVO | B2: =HYPERLINK("https://mapas.cultura.gov.br/inscricao/550170904","on-550170904") -> on-550170904 | C2: Cachoeira | D2: BA | E2: NORDESTE | F2: Avaliador 1 | G2: 20 | H2: 15 | I2: 15 | J2: 10 | K2: 10 | L2: 10 | M2: 10 | N2: 10 | O2: 0 | P2: 3 | Q2: 3 | R2: 0 | S2: 0 | T2: 0 | U2: =SUM(G2:T2) -> 106 | W2: =AVERAGE(U2,U3) -> 106 | X2: PRÉ-SELECIONADO
A3: INSTITUIÇÕES SEM FINS LUCRATIVO | B3: =HYPERLINK("https://mapas.cultura.gov.br/inscricao/550170904","on-550170904") -> on-550170904 | C3: Cachoeira | D3: BA | E3: NORDESTE | F3: Avaliador 2 | G3: 20 | H3: 15 | I3: 15 | J3: 10 | K3: 10 | L3: 10 | M3: 10 | N3: 10 | O3: 0 | P3: 3 | Q3: 3 | R3: 0 | S3: 0 | T3: 0 | U3: 106 | W3: =W2 -> 106 | X3: =X2 -> PRÉ-SELECIONADO
A4: INSTITUIÇÕES SEM FINS LUCRATIVO | B4: =HYPERLINK("https://mapas.cultura.gov.br/inscricao/108985449","on-108985449") -> on-108985449 | C4: Lauro de Freitas | D4: BA | E4: NORDESTE | F4: Avaliador 1 | G4: 20 | H4: 15 | I4: 12 | J4: 8 | K4: 10 | L4: 8 | M4: 8 | N4: 8 | O4: 0 | P4: 3 | Q4: 3 | R4: 0 | S4: 3 | T4: 0 | U4: 98 | W4: =AVERAGE(U4,U5) -> 103.5 | X4: PRÉ-SELECIONADO
A5: INSTITUIÇÕES SEM FINS LUCRATIVO | B5: =HYPERLINK("https://mapas.cultura.gov.br/inscricao/108985449","on-108985449") -> on-108985449 | C5: Lauro de Freitas | D5: BA | E5: NORDESTE | F5: Avaliador 2 | G5: 20 | H5: 15 | I5: 15 | J5: 10 | K5: 10 | L5: 10 | M5: 10 | N5: 10 | O5: 0 | P5: 3 | Q5: 3 | R5: 0 | S5: 3 | T5: 0 | U5: 109 | W5: =W4 -> 103.5 | X5: =X4 -> PRÉ-SELECIONADO
A6: INSTITUIÇÕES SEM FINS LUCRATIVO | B6: =HYPERLINK("https://mapas.cultura.gov.br/inscricao/1368576807","on-1368576807") -> on-1368576807 | C6: São José de Ribamar | D6: MA | E6: NORDESTE | F6: Avaliador 1 | G6: 20 | H6: 15 | I6: 15 | J6: 10 | K6: 10 | L6: 10 | M6: 10 | N6: 5 | O6: 0 | P6: 0 | Q6: 3 | R6: 0 | S6: 0 | T6: 0 | U6: 98 | W6: =AVERAGE(U6,U7) -> 96 | X6: PRÉ-SELECIONADO
A7: INSTITUIÇÕES SEM FINS LUCRATIVO | B7: =HYPERLINK("https://mapas.cultura.gov.br/inscricao/1368576807","on-1368576807") -> on-1368576807 | C7: São José de Ribamar | D7: MA | E7: NORDESTE | F7: Avaliador 2 | G7: 20 | H7: 15 | I7: 12 | J7: 8 | K7: 8 | L7: 10 | M7: 10 | N7: 8 | O7: 0 | P7: 0 | Q7: 3 | R7: 0 | S7: 0 | T7: 0 | U7: 94 | W7: =W6 -> 96 | X7: =X6 -> PRÉ-SELECIONADO
A8: INSTITUIÇÕES SEM FINS LUCRATIVO | B8: =HYPERLINK("https://mapas.cultura.gov.br/inscricao/475172036","on-475172036") -> on-475172036 | C8: Arapiraca | D8: AL | E8: NORDESTE | F8: Avaliador 1 | G8: 20 | H8: 15 | I8: 15 | J8: 3 | K8: 8 | L8: 10 | M8: 10 | N8: 5 | O8: 0 | P8: 0 | Q8: 3 | R8: 0 | S8: 0 | T8: 0 | U8: 89 | W8: =AVERAGE(U8,U9) -> 94 | X8: PRÉ-SELECIONADO
A9: INSTITUIÇÕES SEM FINS LUCRATIVO | B9: =HYPERLINK("https://mapas.cultura.gov.br/inscricao/475172036","on-475172036") -> on-475172036 | C9: Arapiraca | D9: AL | E9: NORDESTE | F9: Avaliador 2 | G9: 20 | H9: 15 | I9: 15 | J9: 8 | K9: 10 | L9: 10 | M9: 8 | N9: 10 | O9: 0 | P9: 0 | Q9: 3 | R9: 0 | S9: 0 | T9: 0 | U9: 99 | W9: =W8 -> 94 | X9: =X8 -> PRÉ-SELECIONADO
A10: INSTITUIÇÕES SEM FINS LUCRATIVO | B10: =HYPERLINK("https://mapas.cultura.gov.br/inscricao/298618981","on-298618981") -> on-298618981 | C10: Pacoti | D10: CE | E10: NORDESTE | F10: Avaliador 1 | G10: 20 | H10: 15 | I10: 12 | J10: 8 | K10: 5 | L10: 10 | M10: 10 | N10: 3 | O10: 0 | P10: 3 | Q10: 0 | R10: 0 | S10: 3 | T10: 0 | U10: 89 | W10: =AVERAGE(U10,U11) -> 87.5 | X10: PRÉ-SELECIONADO
A11: INSTITUIÇÕES SEM FINS LUCRATIVO | B11: =HYPERLINK("https://mapas.cultura.gov.br/inscricao/298618981","on-298618981") -> on-298618981 | C11: Pacoti | D11: CE | E11: NORDESTE | F11: Avaliador 2 | G11: 20 | H11: 15 | I11: 15 | J11: 3 | K11: 8 | L11: 8 | M11: 8 | N11: 3 | O11: 0 | P11: 3 | Q11: 0 | R11: 0 | S11: 3 | T11: 0 | U11: 86 | W11: =W10 -> 87.5 | X11: =X10 -> PRÉ-SELECIONADO
A12: INSTITUIÇÕES SEM FINS LUCRATIVO | B12: =HYPERLINK("https://mapas.cultura.gov.br/inscricao/246127369","on-246127369") -> on-246127369 | C12: Candeias | D12: BA | E12: NORDESTE | F12: Avaliador 1 | G12: 20 | H12: 15 | I12: 12 | J12: 5 | K12: 8 | L12: 5 | M12: 8 | N12: 3 | O12: 0 | P12: 0 | Q12: 3 | R12: 0 | S12: 3 | T12: 3 | U12: 85 | W12: =AVERAGE(U12,U13) -> 77.5 | X12: PRÉ-SELECIONADO
A13: INSTITUIÇÕES SEM FINS LUCRATIVO | B13: =HYPERLINK("https://mapas.cultura.gov.br/inscricao/246127369","on-246127369") -> on-246127369 | C13: Candeias | D13: BA | E13: NORDESTE | F13: Avaliador 2 | G13: 20 | H13: 12 | I13: 4 | J13: 5 | K13: 5 | L13: 5 | M13: 5 | N13: 5 | O13: 0 | P13: 0 | Q13: 3 | R13: 0 | S13: 3 | T13: 3 | U13: 70 | W13: =W12 -> 77.5 | X13: PRÉ-SELECIONADO
A14: INSTITUIÇÕES SEM FINS LUCRATIVO | B14: =HYPERLINK("https://mapas.cultura.gov.br/inscricao/247459352","on-247459352") -> on-247459352 | C14: Nossa Senhora do Socorro | D14: SE | E14: NORDESTE | F14: Avaliador 1 | G14: 15 | H14: 15 | I14: 15 | J14: 8 | K14: 5 | L14: 10 | M14: 8 | N14: 0 | O14: 0 | P14: 0 | Q14: 3 | R14: 3 | S14: 0 | T14: 0 | U14: 82 | W14: =AVERAGE(U14,U15) -> 75.5 | X14: PRÉ-SELECIONADO
A15: INSTITUIÇÕES SEM FINS LUCRATIVO | B15: =HYPERLINK("https://mapas.cultura.gov.br/inscricao/247459352","on-247459352") -> on-247459352 | C15: Nossa Senhora do Socorro | D15: SE | E15: NORDESTE | F15: Avaliador 2 | G15: 10 | H15: 8 | I15: 8 | J15: 8 | K15: 8 | L15: 8 | M15: 8 | N15: 5 | O15: 0 | P15: 0 | Q15: 3 | R15: 3 | S15: 0 | T15: 0 | U15: 69 | W15: =W14 -> 75.5 | X15: PRÉ-SELECIONADO
A16: INSTITUIÇÕES SEM FINS LUCRATIVO | B16: =HYPERLINK("https://mapas.cultura.gov.br/inscricao/1259184963","on-1259184963") -> on-1259184963 | C16: Candeias | D16: BA | E16: NORDESTE | F16: Avaliador 1 | G16: 20 | H16: 12 | I16: 12 | J16: 5 | K16: 8 | L16: 8 | M16: 8 | N16: 3 | O16: 0 | P16: 0 | Q16: 3 | R16: 0 | S16: 0 | T16: 0 | U16: 79 | W16: =AVERAGE(U16,U17) -> 72.5 | X16: PRÉ-SELECIONADO
A17: INSTITUIÇÕES SEM FINS LUCRATIVO | B17: =HYPERLINK("https://mapas.cultura.gov.br/inscricao/1259184963","on-1259184963") -> on-1259184963 | C17: Candeias | D17: BA | E17: NORDESTE | F17: Avaliador 2 | G17: 20 | H17: 12 | I17: 8 | J17: 5 | K17: 3 | L17: 5 | M17: 5 | N17: 5 | O17: 0 | P17: 0 | Q17: 3 | R17: 0 | S17: 0 | T17: 0 | U17: 66 | W17: =W16 -> 72.5 | X17: PRÉ-SELECIONADO
A18: INSTITUIÇÕES SEM FINS LUCRATIVO | B18: =HYPERLINK("https://mapas.cultura.gov.br/inscricao/1192264576","on-1192264576") -> on-1192264576 | C18: Candeias | D18: BA | E18: NORDESTE | F18: Avaliador 3 | G18: 20 | H18: 15 | I18: 12 | J18: 5 | K18: 8 | L18: 8 | M18: 8 | N18: 8 | O18: 0 | P18: 3 | Q18: 3 | R18: 0 | S18: 0 | T18: 3 | U18: 93 | W18: =AVERAGE(U18,U19) -> 64 | X18: PRÉ-SELECIONADO
A19: INSTITUIÇÕES SEM FINS LUCRATIVO | B19: =HYPERLINK("https://mapas.cultura.gov.br/inscricao/1192264576","on-1192264576") -> on-1192264576 | C19: Candeias | D19: BA | E19: NORDESTE | F19: Avaliador 2 | G19: 10 | H19: 4 | I19: 0 | J19: 3 | K19: 0 | L19: 3 | M19: 3 | N19: 3 | O19: 0 | P19: 3 | Q19: 3 | R19: 0 | S19: 0 | T19: 3 | U19: 35 | W19: =W18 -> 64 | X19: PRÉ-SELECIONADO
A20: INSTITUIÇÕES SEM FINS LUCRATIVO | B20: =HYPERLINK("https://mapas.cultura.gov.br/inscricao/1077916796","on-1077916796") -> on-1077916796 | C20: São Luís | D20: MA | E20: NORDESTE | F20: Avaliador 1 | G20: 10 | H20: 8 | I20: 8 | J20: 5 | K20: 5 | L20: 5 | M20: 5 | N20: 5 | O20: 0 | P20: 3 | Q20: 0 | R20: 0 | S20: 3 | T20: 0 | U20: 57 | W20: =AVERAGE(U20,U21) -> 60 | X20: PRÉ-SELECIONADO
A21: INSTITUIÇÕES SEM FINS LUCRATIVO | B21: =HYPERLINK("https://mapas.cultura.gov.br/inscricao/1077916796","on-1077916796") -> on-1077916796 | C21: São Luís | D21: MA | E21: NORDESTE | F21: Avaliador 2 | G21: 10 | H21: 4 | I21: 8 | J21: 8 | K21: 8 | L21: 8 | M21: 8 | N21: 3 | O21: 0 | P21: 3 | Q21: 0 | R21: 0 | S21: 3 | T21: 0 | U21: 63 | W21: =W20 -> 60 | X21: PRÉ-SELECIONADO
A22: INSTITUIÇÕES SEM FINS LUCRATIVO | B22: =HYPERLINK("https://mapas.cultura.gov.br/inscricao/1250156724","on-1250156724") -> on-1250156724 | C22: Fortaleza | D22: CE | E22: NORDESTE | F22: Avaliador 1 | G22: 20 | H22: 12 | I22: 8 | J22: 5 | K22: 5 | L22: 5 | M22: 3 | N22: 3 | O22: 0 | P22: 3 | Q22: 0 | R22: 0 | S22: 0 | T22: 0 | U22: 64 | W22: =AVERAGE(U22,U23) -> 60 | X22: PRÉ-SELECIONADO
A23: INSTITUIÇÕES SEM FINS LUCRATIVO | B23: =HYPERLINK("https://mapas.cultura.gov.br/inscricao/1250156724","on-1250156724") -> on-1250156724 | C23: Fortaleza | D23: CE | E23: NORDESTE | F23: Avaliador 2 | G23: 20 | H23: 8 | I23: 4 | J23: 5 | K23: 5 | L23: 5 | M23: 3 | N23: 3 | O23: 0 | P23: 3 | Q23: 0 | R23: 0 | S23: 0 | T23: 0 | U23: 56 | W23: =W22 -> 60 | X23: =X22 -> PRÉ-SELECIONADO
A24: INSTITUIÇÕES SEM FINS LUCRATIVO | B24: =HYPERLINK("https://mapas.cultura.gov.br/inscricao/1808436487","on-1808436487") -> on-1808436487 | C24: Sátiro Dias | D24: BA | E24: NORDESTE | F24: Avaliador 1 | G24: 20 | H24: 8 | I24: 4 | J24: 10 | K24: 3 | L24: 3 | M24: 3 | N24: 0 | O24: 0 | P24: 3 | Q24: 3 | R24: 0 | S24: 3 | T24: 0 | U24: 60 | V24: DESCLASISICADA COM BASE NO ITEM 7.7 | W24: =AVERAGE(U24,U25) -> 55 | X24: DESCLASSIFICADO
A25: INSTITUIÇÕES SEM FINS LUCRATIVO | B25: =HYPERLINK("https://mapas.cultura.gov.br/inscricao/1808436487","on-1808436487") -> on-1808436487 | C25: Sátiro Dias | D25: BA | E25: NORDESTE | F25: Avaliador 2 | G25: 15 | H25: 8 | I25: 4 | J25: 5 | K25: 0 | L25: 3 | M25: 3 | N25: 3 | O25: 0 | P25: 3 | Q25: 3 | R25: 0 | S25: 3 | T25: 0 | U25: 50 | W25: =W24 -> 55
A26: INSTITUIÇÕES SEM FINS LUCRATIVO | B26: =HYPERLINK("https://mapas.cultura.gov.br/inscricao/10743264","on-10743264") -> on-10743264 | C26: Recife | D26: PE | E26: NORDESTE | F26: Avaliador 1 | G26: 20 | H26: 4 | I26: 4 | J26: 3 | K26: 3 | L26: 3 | M26: 3 | N26: 0 | O26: 0 | P26: 3 | Q26: 0 | R26: 0 | S26: 3 | T26: 0 | U26: 46 | V26: DESCLASISICADA COM BASE NO ITEM 7.7 | W26: =AVERAGE(U26,U27) -> 55 | X26: DESCLASSIFICADO
A27: INSTITUIÇÕES SEM FINS LUCRATIVO | B27: =HYPERLINK("https://mapas.cultura.gov.br/inscricao/10743264","on-10743264") -> on-10743264 | C27: Recife | D27: PE | E27: NORDESTE | F27: Avaliador 2 | G27: 20 | H27: 15 | I27: 4 | J27: 5 | K27: 3 | L27: 3 | M27: 3 | N27: 5 | O27: 0 | P27: 3 | Q27: 0 | R27: 0 | S27: 3 | T27: 0 | U27: 64 | W27: =W26 -> 55
A28: INSTITUIÇÕES SEM FINS LUCRATIVO | B28: =HYPERLINK("https://mapas.cultura.gov.br/inscricao/1676404717","on-1676404717") -> on-1676404717 | C28: Natal | D28: RN | E28: NORDESTE | F28: Avaliador 1 | G28: 15 | H28: 8 | I28: 15 | J28: 3 | K28: 0 | L28: 5 | M28: 8 | N28: 3 | O28: 0 | P28: 0 | Q28: 0 | R28: 0 | S28: 0 | T28: 0 | U28: 57 | V28: DESCLASISICADA COM BASE NO ITEM 7.7 | W28: =AVERAGE(U28,U29) -> 53 | X28: DESCLASSIFICADO
A29: INSTITUIÇÕES SEM FINS LUCRATIVO | B29: =HYPERLINK("https://mapas.cultura.gov.br/inscricao/1676404717","on-1676404717") -> on-1676404717 | C29: Natal | D29: RN | E29: NORDESTE | F29: Avaliador 2 | G29: 10 | H29: 8 | I29: 8 | J29: 5 | K29: 5 | L29: 5 | M29: 5 | N29: 3 | P29: 0 | Q29: 0 | R29: 0 | S29: 0 | T29: 0 | U29: =SUM(G29:T29) -> 49 | W29: =W28 -> 53
A30: INSTITUIÇÕES SEM FINS LUCRATIVO | B30: =HYPERLINK("https://mapas.cultura.gov.br/inscricao/832742607","on-832742607") -> on-832742607 | C30: Bacabal | D30: MA | E30: NORDESTE | F30: Avaliador 1 | G30: 10 | H30: 4 | I30: 4 | J30: 5 | K30: 5 | L30: 5 | M30: 5 | N30: 10 | O30: 0 | P30: 0 | Q30: 3 | R30: 0 | S30: 0 | T30: 0 | U30: 51 | V30: DESCLASISICADA COM BASE NO ITEM 7.7 | W30: =AVERAGE(U30,U31) -> 52.5 | X30: DESCLASSIFICADO
A31: INSTITUIÇÕES SEM FINS LUCRATIVO | B31: =HYPERLINK("https://mapas.cultura.gov.br/inscricao/832742607","on-832742607") -> on-832742607 | C31: Bacabal | D31: MA | E31: NORDESTE | F31: Avaliador 2 | G31: 20 | H31: 15 | I31: 4 | J31: 3 | K31: 0 | L31: 3 | M31: 3 | N31: 3 | O31: 0 | P31: 0 | Q31: 3 | R31: 0 | S31: 0 | T31: 0 | U31: 54 | W31: =W30 -> 52.5
A32: INSTITUIÇÕES SEM FINS LUCRATIVO | B32: =HYPERLINK("https://mapas.cultura.gov.br/inscricao/1669498201","on-1669498201") -> on-1669498201 | C32: Fortaleza | D32: CE | E32: NORDESTE | F32: Avaliador 1 | G32: 15 | H32: 8 | I32: 4 | J32: 5 | K32: 3 | L32: 3 | M32: 3 | N32: 0 | O32: 0 | P32: 3 | Q32: 0 | R32: 0 | S32: 0 | T32: 0 | U32: 44 | V32: DESCLASISICADA COM BASE NO ITEM 7.7 | W32: =AVERAGE(U32,U33) -> 49 | X32: DESCLASSIFICADO
A33: INSTITUIÇÕES SEM FINS LUCRATIVO | B33: =HYPERLINK("https://mapas.cultura.gov.br/inscricao/1669498201","on-1669498201") -> on-1669498201 | C33: Fortaleza | D33: CE | E33: NORDESTE | F33: Avaliador 2 | G33: 20 | H33: 8 | I33: 4 | J33: 3 | K33: 5 | L33: 5 | M33: 3 | N33: 3 | O33: 0 | P33: 3 | Q33: 0 | R33: 0 | S33: 0 | T33: 0 | U33: 54 | W33: =W32 -> 49
A34: INSTITUIÇÕES SEM FINS LUCRATIVO | B34: =HYPERLINK("https://mapas.cultura.gov.br/inscricao/902142304","on-902142304") -> on-902142304 | C34: Teresina | D34: PI | E34: NORDESTE | F34: Avaliador 1 | G34: 20 | H34: 4 | I34: 4 | J34: 3 | K34: 3 | L34: 3 | M34: 3 | N34: 3 | O34: 0 | P34: 3 | Q34: 0 | R34: 0 | S34: 0 | T34: 0 | U34: 46 | V34: DESCLASISICADA COM BASE NO ITEM 7.7 | W34: =AVERAGE(U34,U35) -> 47 | X34: DESCLASSIFICADO
A35: INSTITUIÇÕES SEM FINS LUCRATIVO | B35: =HYPERLINK("https://mapas.cultura.gov.br/inscricao/902142304","on-902142304") -> on-902142304 | C35: Teresina | D35: PI | E35: NORDESTE | F35: Avaliador 2 | G35: 20 | H35: 4 | I35: 4 | J35: 5 | K35: 3 | L35: 3 | M35: 3 | N35: 3 | O35: 0 | P35: 3 | Q35: 0 | R35: 0 | S35: 0 | T35: 0 | U35: 48 | W35: =W34 -> 47
A36: INSTITUIÇÕES SEM FINS LUCRATIVO | B36: =HYPERLINK("https://mapas.cultura.gov.br/inscricao/320971017","on-320971017") -> on-320971017 | C36: Guanambi | D36: BA | E36: NORDESTE | F36: Avaliador 1 | G36: 5 | H36: 4 | I36: 8 | J36: 5 | K36: 5 | L36: 5 | M36: 3 | N36: 5 | O36: 0 | P36: 0 | Q36: 0 | R36: 0 | S36: 0 | T36: 0 | U36: 40 | V36: DESCLASISICADA COM BASE NO ITEM 7.7 | W36: =AVERAGE(U36,U37) -> 37.5 | X36: DESCLASSIFICADO
A37: INSTITUIÇÕES SEM FINS LUCRATIVO | B37: =HYPERLINK("https://mapas.cultura.gov.br/inscricao/320971017","on-320971017") -> on-320971017 | C37: Guanambi | D37: BA | E37: NORDESTE | F37: Avaliador 2 | G37: 10 | H37: 4 | I37: 4 | J37: 3 | K37: 0 | L37: 8 | M37: 3 | N37: 3 | O37: 0 | P37: 0 | Q37: 0 | R37: 0 | S37: 0 | T37: 0 | U37: 35 | W37: =W36 -> 37.5
A38: INSTITUIÇÕES SEM FINS LUCRATIVO | B38: =HYPERLINK("https://mapas.cultura.gov.br/inscricao/1910688381","on-1910688381") -> on-1910688381 | C38: Recife | D38: PE | E38: NORDESTE | F38: Avaliador 1 | G38: 5 | H38: 4 | I38: 4 | J38: 3 | K38: 3 | L38: 3 | M38: 3 | N38: 3 | O38: 0 | P38: 0 | Q38: 3 | R38: 0 | S38: 0 | T38: 3 | U38: 34 | V38: DESCLASISICADA COM BASE NO ITEM 7.7 | W38: =AVERAGE(U38,U39) -> 36.5 | X38: DESCLASSIFICADO
A39: INSTITUIÇÕES SEM FINS LUCRATIVO | B39: =HYPERLINK("https://mapas.cultura.gov.br/inscricao/1910688381","on-1910688381") -> on-1910688381 | C39: Recife | D39: PE | E39: NORDESTE | F39: Avaliador 2 | G39: 10 | H39: 4 | I39: 4 | J39: 3 | K39: 3 | L39: 3 | M39: 3 | N39: 3 | O39: 0 | P39: 0 | Q39: 3 | R39: 0 | S39: 0 | T39: 3 | U39: 39 | W39: =W38 -> 36.5
A40: INSTITUIÇÕES SEM FINS LUCRATIVO | B40: =HYPERLINK("https://mapas.cultura.gov.br/inscricao/454359916","on-454359916") -> on-454359916 | C40: São Luis | D40: MA | E40: NORDESTE | F40: Avaliador 1 | G40: 5 | H40: 4 | I40: 4 | J40: 3 | K40: 3 | L40: 3 | M40: 3 | N40: 3 | O40: 0 | P40: 3 | Q40: 0 | R40: 3 | S40: 0 | T40: 0 | U40: 34 | V40: DESCLASISICADA COM BASE NO ITEM 7.7 | W40: =AVERAGE(U40,U41) -> 29 | X40: DESCLASSIFICADO
A41: INSTITUIÇÕES SEM FINS LUCRATIVO | B41: =HYPERLINK("https://mapas.cultura.gov.br/inscricao/454359916","on-454359916") -> on-454359916 | C41: São Luis | D41: MA | E41: NORDESTE | F41: Avaliador 2 | G41: 15 | H41: 0 | I41: 0 | J41: 3 | K41: 0 | L41: 0 | M41: 0 | N41: 0 | O41: 0 | P41: 3 | Q41: 0 | R41: 3 | S41: 0 | T41: 0 | U41: 24 | W41: =W40 -> 29
A42: INSTITUIÇÕES SEM FINS LUCRATIVO | B42: =HYPERLINK("https://mapas.cultura.gov.br/inscricao/1825018135","on-1825018135") -> on-1825018135 | C42: Grajaú | D42: MA | E42: NORDESTE | F42: Avaliador 1 | G42: 5 | H42: 0 | I42: 4 | J42: 3 | K42: 3 | L42: 3 | M42: 3 | N42: 3 | O42: 0 | P42: 0 | Q42: 0 | R42: 0 | S42: 0 | T42: 0 | U42: 24 | V42: DESCLASISICADA COM BASE NO ITEM 7.7 | W42: =AVERAGE(U42,U43) -> 20 | X42: DESCLASSIFICADO
A43: INSTITUIÇÕES SEM FINS LUCRATIVO | B43: =HYPERLINK("https://mapas.cultura.gov.br/inscricao/1825018135","on-1825018135") -> on-1825018135 | C43: Grajaú | D43: MA | E43: NORDESTE | F43: Avaliador 2 | G43: 10 | H43: 0 | I43: 0 | J43: 3 | K43: 0 | L43: 0 | M43: 0 | N43: 3 | O43: 0 | P43: 0 | Q43: 0 | R43: 0 | S43: 0 | T43: 0 | U43: 16 | W43: =W42 -> 20
A44: INSTITUIÇÕES SEM FINS LUCRATIVO | B44: =HYPERLINK("https://mapas.cultura.gov.br/inscricao/1044052628","on-1044052628") -> on-1044052628 | C44: Imperatriz | D44: MA | E44: NORDESTE | F44: Avaliador 1 | G44: 5 | H44: 4 | I44: 4 | J44: 3 | K44: 0 | L44: 0 | M44: 3 | N44: 0 | O44: 0 | P44: 3 | Q44: 0 | R44: 0 | S44: 0 | T44: 0 | U44: 22 | V44: DESCLASISICADA COM BASE NO ITEM 7.7 | W44: =AVERAGE(U44,U45) -> 19 | X44: DESCLASSIFICADO
A45: INSTITUIÇÕES SEM FINS LUCRATIVO | B45: =HYPERLINK("https://mapas.cultura.gov.br/inscricao/1044052628","on-1044052628") -> on-1044052628 | C45: Imperatriz | D45: MA | E45: NORDESTE | F45: Avaliador 2 | G45: 10 | H45: 0 | I45: 0 | J45: 3 | K45: 0 | L45: 0 | M45: 0 | N45: 0 | O45: 0 | P45: 3 | Q45: 0 | R45: 0 | S45: 0 | T45: 0 | U45: 16 | W45: =W44 -> 19
A46: INSTITUIÇÕES SEM FINS LUCRATIVO | B46: =HYPERLINK("https://mapas.cultura.gov.br/inscricao/1392881912","on-1392881912") -> on-1392881912 | C46: Recife | D46: PE | E46: NORDESTE | F46: Avaliador 1 | U46: 0 | V46: DESCLASISICADA COM BASE NO ITEM 7.7 | W46: =AVERAGE(U46,U47) -> 17.5 | X46: DESCLASSIFICADO
A47: INSTITUIÇÕES SEM FINS LUCRATIVO | B47: =HYPERLINK("https://mapas.cultura.gov.br/inscricao/1392881912","on-1392881912") -> on-1392881912 | C47: Recife | D47: PE | E47: NORDESTE | F47: Avaliador 2 | G47: 10 | H47: 4 | I47: 4 | J47: 3 | K47: 3 | L47: 5 | M47: 3 | N47: 3 | O47: 0 | P47: 0 | Q47: 0 | R47: 0 | S47: 0 | T47: 0 | U47: 35 | W47: =W46 -> 17.5
A48: INSTITUIÇÕES SEM FINS LUCRATIVO | B48: =HYPERLINK("https://mapas.cultura.gov.br/inscricao/1729802915","on-1729802915") -> on-1729802915 | C48: Fortaleza | D48: CE | E48: NORDESTE | F48: Avaliador 1 | G48: 0 | H48: 0 | I48: 0 | J48: 0 | K48: 0 | L48: 0 | M48: 0 | N48: 0 | O48: 0 | P48: 3 | Q48: 0 | R48: 0 | S48: 0 | T48: 0 | U48: 3 | V48: DESCLASISICADA COM BASE NO ITEM 7.7 | W48: =AVERAGE(U48,U49) -> 15.5 | X48: DESCLASSIFICADO
A49: INSTITUIÇÕES SEM FINS LUCRATIVO | B49: =HYPERLINK("https://mapas.cultura.gov.br/inscricao/1729802915","on-1729802915") -> on-1729802915 | C49: Fortaleza | D49: CE | E49: NORDESTE | F49: Avaliador 2 | G49: 5 | H49: 4 | I49: 0 | J49: 0 | K49: 5 | L49: 5 | M49: 3 | N49: 3 | O49: 0 | P49: 3 | Q49: 0 | R49: 0 | S49: 0 | T49: 0 | U49: 28 | W49: =W48 -> 15.5
A50: INSTITUIÇÕES SEM FINS LUCRATIVO | B50: =HYPERLINK("https://mapas.cultura.gov.br/inscricao/1857660921","on-1857660921") -> on-1857660921 | C50: Teresina | D50: PI | E50: NORDESTE | F50: Avaliador 1 | G50: 0 | H50: 0 | I50: 0 | J50: 0 | K50: 0 | L50: 0 | M50: 0 | N50: 0 | O50: 0 | P50: 3 | Q50: 3 | R50: 0 | S50: 0 | T50: 0 | U50: 6 | V50: DESCLASISICADA COM BASE NO ITEM 7.7 | W50: =AVERAGE(U50,U51) -> 6 | X50: DESCLASSIFICADO
A51: INSTITUIÇÕES SEM FINS LUCRATIVO | B51: =HYPERLINK("https://mapas.cultura.gov.br/inscricao/1857660921","on-1857660921") -> on-1857660921 | C51: Teresina | D51: PI | E51: NORDESTE | F51: Avaliador 2 | G51: 0 | H51: 0 | I51: 0 | J51: 0 | K51: 0 | L51: 0 | M51: 0 | N51: 0 | O51: 0 | P51: 3 | Q51: 3 | R51: 0 | S51: 0 | T51: 0 | U51: 6 | W51: =W50 -> 6
A52: INSTITUIÇÕES SEM FINS LUCRATIVO | B52: =HYPERLINK("https://mapas.cultura.gov.br/inscricao/1807581361","on-1807581361") -> on-1807581361 | C52: Aracaju | D52: SE | E52: NORDESTE | F52: Avaliador 1 | U52: 0 | V52: DESCLASSIFICADA COM BASE NO ITEM 7.5 | W52: =AVERAGE(U52,U53) -> 0 | X52: DESCLASSIFICADO
A53: INSTITUIÇÕES SEM FINS LUCRATIVO | B53: =HYPERLINK("https://mapas.cultura.gov.br/inscricao/1807581361","on-1807581361") -> on-1807581361 | C53: Aracaju | D53: SE | E53: NORDESTE | F53: Avaliador 2 | G53: 0 | H53: 0 | I53: 0 | J53: 0 | K53: 0 | L53: 0 | M53: 0 | N53: 0 | O53: 0 | P53: 0 | Q53: 0 | R53: 0 | S53: 0 | T53: 0 | U53: =SUM(G53:T53) -> 0 | W53: =W52 -> 0
A54: INSTITUIÇÕES SEM FINS LUCRATIVO | B54: =HYPERLINK("https://mapas.cultura.gov.br/inscricao/547260369","on-547260369") -> on-547260369 | C54: Cachoeira | D54: BA | E54: NORDESTE | F54: Avaliador 1 | U54: =SUM(G54:T54) -> 0 | V54: DESCLASSIFICADA COM BASE NO ITEM 7.5 | W54: =AVERAGE(U54,U55) -> 0 | X54: DESCLASSIFICADO
A55: INSTITUIÇÕES SEM FINS LUCRATIVO | B55: =HYPERLINK("https://mapas.cultura.gov.br/inscricao/547260369","on-547260369") -> on-547260369 | C55: Cachoeira | D55: BA | E55: NORDESTE | F55: Avaliador 2 | U55: =SUM(G55:T55) -> 0 | W55: =W54 -> 0
A56: INSTITUIÇÕES SEM FINS LUCRATIVO | B56: =HYPERLINK("https://mapas.cultura.gov.br/inscricao/418178532","on-418178532") -> on-418178532 | C56: Salvador | D56: BA | E56: NORDESTE | F56: Avaliador 1 | G56: 0 | H56: 0 | I56: 0 | J56: 0 | K56: 0 | L56: 0 | M56: 0 | N56: 0 | O56: 0 | P56: 0 | Q56: 0 | R56: 0 | S56: 0 | T56: 0 | U56: =SUM(G56:T56) -> 0 | V56: DESCLASSIFICADA COM BASE NO ITEM 8.1, alínea "d" | W56: =AVERAGE(U56,U57) -> 0 | X56: DESCLASSIFICADO
A57: INSTITUIÇÕES SEM FINS LUCRATIVO | B57: =HYPERLINK("https://mapas.cultura.gov.br/inscricao/418178532","on-418178532") -> on-418178532 | C57: Salvador | D57: BA | E57: NORDESTE | F57: Avaliador 2 | G57: 0 | H57: 0 | I57: 0 | J57: 0 | K57: 0 | L57: 0 | M57: 0 | N57: 0 | O57: 0 | P57: 0 | Q57: 0 | R57: 0 | S57: 0 | T57: 0 | U57: =SUM(G57:T57) -> 0 | W57: =W56 -> 0
